Workbook

Sheet BD_Ambiental_bk (hidden)
A1: Num. | B1: Dimensión | C1: Segundo Nivel | D1: Matriz de Resultado | E1: Indicador | F1: Subindicador | G1: Nombre de la región/Nacional | H1: Año | I1: Valor | J1: Unidad | K1: Fuente web | L1: Fuente ficha tecnica | M1: Link | N1: Descripción del indicador | O1: Observaciones internas | P1: Proyección | Q1: Semáforo
A2: 489 | B2: Ambiental | C2: II. LINEAMIENTO DE POLITICA Fomentar el uso y aprovechamiento sostenible de los Recursos Naturales. | D2: AGA.18.11 | E2: Presupuesto ejecutado por los tres niveles de gobierno en manejo eficiente de Recursos Forestales y Fauna Silvestre (PP 0130) - Soles | F2: Ejecutado en el respectivo año por G. Nacional | G2: Amazonas | H2: 2014 | I2: 458173 | J2: Soles | K2: Ministerio de Economía y Finanzas (MEF)- Seguimiento de la Ejecución Presupuestal (Consulta amigable) | L2: Portal de Transparencia Económica | M2: http://apps5.mineco.gob.pe/transparencia/Navegador/default.aspx?y=2015&ap=ActProy | P2: =IFERROR(IF(VLOOKUP(CONCATENATE(E2,F2,G2),ListaIndicadores!$Z$7:$AD$1345,3,FALSE)="","",VLOOKUP(CONCATENATE(E2,F2,G2),ListaIndicadores!$Z$7:$AD$1345,3,FALSE)),"") ->  | Q2: =VLOOKUP(CONCATENATE(E2,F2,G2),ListaIndicadores!$Z$7:$AD$1345,4,FALSE) -> 5952454
A3: 490 | B3: Ambiental | C3: II. LINEAMIENTO DE POLITICA Fomentar el uso y aprovechamiento sostenible de los Recursos Naturales. | D3: AGA.18.11 | E3: Presupuesto ejecutado por los tres niveles de gobierno en manejo eficiente de Recursos Forestales y Fauna Silvestre (PP 0130) - Soles | F3: Ejecutado en el respectivo año por G. Nacional | G3: Amazonas | H3: 2015 | I3: 5963656 | J3: Soles | K3: Ministerio de Economía y Finanzas (MEF)- Seguimiento de la Ejecución Presupuestal (Consulta amigable) | L3: Portal de Transparencia Económica | M3: http://apps5.mineco.gob.pe/transparencia/Navegador/default.aspx?y=2015&ap=ActProy | P3: =IFERROR(IF(VLOOKUP(CONCATENATE(E3,F3,G3),ListaIndicadores!$Z$7:$AD$1345,3,FALSE)="","",VLOOKUP(CONCATENATE(E3,F3,G3),ListaIndicadores!$Z$7:$AD$1345,3,FALSE)),"") ->  | Q3: =VLOOKUP(CONCATENATE(E3,F3,G3),ListaIndicadores!$Z$7:$AD$1345,4,FALSE) -> 5952454
A4: 491 | B4: Ambiental | C4: II. LINEAMIENTO DE POLITICA Fomentar el uso y aprovechamiento sostenible de los Recursos Naturales. | D4: AGA.18.11 | E4: Presupuesto ejecutado por los tres niveles de gobierno en manejo eficiente de Recursos Forestales y Fauna Silvestre (PP 0130) - Soles | F4: Ejecutado en el respectivo año por G. Nacional | G4: Amazonas | H4: 2016 | I4: 1675677 | J4: Soles | K4: Ministerio de Economía y Finanzas (MEF)- Seguimiento de la Ejecución Presupuestal (Consulta amigable) | L4: Portal de Transparencia Económica | M4: http://apps5.mineco.gob.pe/transparencia/Navegador/default.aspx?y=2015&ap=ActProy | P4: =IFERROR(IF(VLOOKUP(CONCATENATE(E4,F4,G4),ListaIndicadores!$Z$7:$AD$1345,3,FALSE)="","",VLOOKUP(CONCATENATE(E4,F4,G4),ListaIndicadores!$Z$7:$AD$1345,3,FALSE)),"") ->  | Q4: =VLOOKUP(CONCATENATE(E4,F4,G4),ListaIndicadores!$Z$7:$AD$1345,4,FALSE) -> 5952454
A5: 492 | B5: Ambiental | C5: II. LINEAMIENTO DE POLITICA Fomentar el uso y aprovechamiento sostenible de los Recursos Naturales. | D5: AGA.18.11 | E5: Presupuesto ejecutado por los tres niveles de gobierno en manejo eficiente de Recursos Forestales y Fauna Silvestre (PP 0130) - Soles | F5: Ejecutado en el respectivo año por G. Nacional | G5: Amazonas | H5: 2017 | I5: 3948846 | J5: Soles | K5: Ministerio de Economía y Finanzas (MEF)- Seguimiento de la Ejecución Presupuestal (Consulta amigable) | L5: Portal de Transparencia Económica | M5: http://apps5.mineco.gob.pe/transparencia/Navegador/default.aspx?y=2015&ap=ActProy | P5: =IFERROR(IF(VLOOKUP(CONCATENATE(E5,F5,G5),ListaIndicadores!$Z$7:$AD$1345,3,FALSE)="","",VLOOKUP(CONCATENATE(E5,F5,G5),ListaIndicadores!$Z$7:$AD$1345,3,FALSE)),"") ->  | Q5: =VLOOKUP(CONCATENATE(E5,F5,G5),ListaIndicadores!$Z$7:$AD$1345,4,FALSE) -> 5952454
A6: 493 | B6: Ambiental | C6: II. LINEAMIENTO DE POLITICA Fomentar el uso y aprovechamiento sostenible de los Recursos Naturales. | D6: AGA.18.11 | E6: Presupuesto ejecutado por los tres niveles de gobierno en manejo eficiente de Recursos Forestales y Fauna Silvestre (PP 0130) - Soles | F6: Ejecutado en el respectivo año por G. Nacional | G6: Amazonas | H6: 2018 | I6: 5061196 | J6: Soles | K6: Ministerio de Economía y Finanzas (MEF)- Seguimiento de la Ejecución Presupuestal (Consulta amigable) | L6: Portal de Transparencia Económica | M6: http://apps5.mineco.gob.pe/transparencia/Navegador/default.aspx?y=2015&ap=ActProy | P6: =IFERROR(IF(VLOOKUP(CONCATENATE(E6,F6,G6),ListaIndicadores!$Z$7:$AD$1345,3,FALSE)="","",VLOOKUP(CONCATENATE(E6,F6,G6),ListaIndicadores!$Z$7:$AD$1345,3,FALSE)),"") ->  | Q6: =VLOOKUP(CONCATENATE(E6,F6,G6),ListaIndicadores!$Z$7:$AD$1345,4,FALSE) -> 5952454
A7: 626 | B7: Ambiental | C7: II. LINEAMIENTO DE POLITICA Fomentar el uso y aprovechamiento sostenible de los Recursos Naturales. | D7: AGA.18.12 | E7: Presupuesto anual ejecutado en Conservación de la Diversidad Biológica y Aprovechamiento Sostenible del RRNN en Área Natural Protegida (PP 0057) - Soles | F7: Gobierno Nacional | G7: Amazonas | H7: 2014 | I7: 1282499 | J7: Soles | K7: Ministerio de Economía y Finanzas (MEF)- Seguimiento de la Ejecución Presupuestal (Consulta amigable) | L7: Portal de Transparencia Económica | M7: http://apps5.mineco.gob.pe/transparencia/Navegador/default.aspx?y=2015&ap=ActProy | N7: Solo existe G. Nacional y G. Regional | P7: =IFERROR(IF(VLOOKUP(CONCATENATE(E7,F7,G7),ListaIndicadores!$Z$7:$AD$1345,3,FALSE)="","",VLOOKUP(CONCATENATE(E7,F7,G7),ListaIndicadores!$Z$7:$AD$1345,3,FALSE)),"") ->  | Q7: =VLOOKUP(CONCATENATE(E7,F7,G7),ListaIndicadores!$Z$7:$AD$1345,4,FALSE) -> 2365073
A8: 627 | B8: Ambiental | C8: II. LINEAMIENTO DE POLITICA Fomentar el uso y aprovechamiento sostenible de los Recursos Naturales. | D8: AGA.18.12 | E8: Presupuesto anual ejecutado en Conservación de la Diversidad Biológica y Aprovechamiento Sostenible del RRNN en Área Natural Protegida (PP 0057) - Soles | F8: Gobierno Nacional | G8: Amazonas | H8: 2015 | I8: 1449710 | J8: Soles | K8: Ministerio de Economía y Finanzas (MEF)- Seguimiento de la Ejecución Presupuestal (Consulta amigable) | L8: Portal de Transparencia Económica | M8: http://apps5.mineco.gob.pe/transparencia/Navegador/default.aspx?y=2015&ap=ActProy | N8: Solo existe G. Nacional y G. Regional | P8: =IFERROR(IF(VLOOKUP(CONCATENATE(E8,F8,G8),ListaIndicadores!$Z$7:$AD$1345,3,FALSE)="","",VLOOKUP(CONCATENATE(E8,F8,G8),ListaIndicadores!$Z$7:$AD$1345,3,FALSE)),"") ->  | Q8: =VLOOKUP(CONCATENATE(E8,F8,G8),ListaIndicadores!$Z$7:$AD$1345,4,FALSE) -> 2365073
A9: 628 | B9: Ambiental | C9: II. LINEAMIENTO DE POLITICA Fomentar el uso y aprovechamiento sostenible de los Recursos Naturales. | D9: AGA.18.12 | E9: Presupuesto anual ejecutado en Conservación de la Diversidad Biológica y Aprovechamiento Sostenible del RRNN en Área Natural Protegida (PP 0057) - Soles | F9: Gobierno Nacional | G9: Amazonas | H9: 2016 | I9: 1456699 | J9: Soles | K9: Ministerio de Economía y Finanzas (MEF)- Seguimiento de la Ejecución Presupuestal (Consulta amigable) | L9: Portal de Transparencia Económica | M9: http://apps5.mineco.gob.pe/transparencia/Navegador/default.aspx?y=2015&ap=ActProy | N9: Solo existe G. Nacional y G. Regional | P9: =IFERROR(IF(VLOOKUP(CONCATENATE(E9,F9,G9),ListaIndicadores!$Z$7:$AD$1345,3,FALSE)="","",VLOOKUP(CONCATENATE(E9,F9,G9),ListaIndicadores!$Z$7:$AD$1345,3,FALSE)),"") ->  | Q9: =VLOOKUP(CONCATENATE(E9,F9,G9),ListaIndicadores!$Z$7:$AD$1345,4,FALSE) -> 2365073
A10: 629 | B10: Ambiental | C10: II. LINEAMIENTO DE POLITICA Fomentar el uso y aprovechamiento sostenible de los Recursos Naturales. | D10: AGA.18.12 | E10: Presupuesto anual ejecutado en Conservación de la Diversidad Biológica y Aprovechamiento Sostenible del RRNN en Área Natural Protegida (PP 0057) - Soles | F10: Gobierno Nacional | G10: Amazonas | H10: 2017 | I10: 1618180 | J10: Soles | K10: Ministerio de Economía y Finanzas (MEF)- Seguimiento de la Ejecución Presupuestal (Consulta amigable) | L10: Portal de Transparencia Económica | M10: http://apps5.mineco.gob.pe/transparencia/Navegador/default.aspx?y=2015&ap=ActProy | N10: Solo existe G. Nacional y G. Regional | P10: =IFERROR(IF(VLOOKUP(CONCATENATE(E10,F10,G10),ListaIndicadores!$Z$7:$AD$1345,3,FALSE)="","",VLOOKUP(CONCATENATE(E10,F10,G10),ListaIndicadores!$Z$7:$AD$1345,3,FALSE)),"") ->  | Q10: =VLOOKUP(CONCATENATE(E10,F10,G10),ListaIndicadores!$Z$7:$AD$1345,4,FALSE) -> 2365073
A11: 630 | B11: Ambiental | C11: II. LINEAMIENTO DE POLITICA Fomentar el uso y aprovechamiento sostenible de los Recursos Naturales. | D11: AGA.18.12 | E11: Presupuesto anual ejecutado en Conservación de la Diversidad Biológica y Aprovechamiento Sostenible del RRNN en Área Natural Protegida (PP 0057) - Soles | F11: Gobierno Nacional | G11: Amazonas | H11: 2018 | I11: 1716016 | J11: Soles | K11: Ministerio de Economía y Finanzas (MEF)- Seguimiento de la Ejecución Presupuestal (Consulta amigable) | L11: Portal de Transparencia Económica | M11: http://apps5.mineco.gob.pe/transparencia/Navegador/default.aspx?y=2015&ap=ActProy | N11: Solo existe G. Nacional y G. Regional | P11: =IFERROR(IF(VLOOKUP(CONCATENATE(E11,F11,G11),ListaIndicadores!$Z$7:$AD$1345,3,FALSE)="","",VLOOKUP(CONCATENATE(E11,F11,G11),ListaIndicadores!$Z$7:$AD$1345,3,FALSE)),"") ->  | Q11: =VLOOKUP(CONCATENATE(E11,F11,G11),ListaIndicadores!$Z$7:$AD$1345,4,FALSE) -> 2365073
A12: 751 | B12: Ambiental | C12: II. LINEAMIENTO DE POLITICA Fomentar el uso y aprovechamiento sostenible de los Recursos Naturales. | D12: AGA.18.12 | E12: Presupuesto anual ejecutado en Conservación de la Diversidad Biológica y Aprovechamiento Sostenible del RRNN en Área Natural Protegida (PP 0057) - Soles | F12: Gobierno Regional | G12: Amazonas | H12: 2014 | I12: 26250 | J12: Soles | K12: Ministerio de Economía y Finanzas (MEF)- Seguimiento de la Ejecución Presupuestal (Consulta amigable) | L12: Portal de Transparencia Económica | M12: http://apps5.mineco.gob.pe/transparencia/Navegador/default.aspx?y=2015&ap=ActProy | N12: Solo existe G. Nacional y G. Regional | P12: =IFERROR(IF(VLOOKUP(CONCATENATE(E12,F12,G12),ListaIndicadores!$Z$7:$AD$1345,3,FALSE)="","",VLOOKUP(CONCATENATE(E12,F12,G12),ListaIndicadores!$Z$7:$AD$1345,3,FALSE)),"") ->  | Q12: =VLOOKUP(CONCATENATE(E12,F12,G12),ListaIndicadores!$Z$7:$AD$1345,4,FALSE) -> -15443
A13: 752 | B13: Ambiental | C13: II. LINEAMIENTO DE POLITICA Fomentar el uso y aprovechamiento sostenible de los Recursos Naturales. | D13: AGA.18.12 | E13: Presupuesto anual ejecutado en Conservación de la Diversidad Biológica y Aprovechamiento Sostenible del RRNN en Área Natural Protegida (PP 0057) - Soles | F13: Gobierno Regional | G13: Amazonas | H13: 2015 | I13: 22892 | J13: Soles | K13: Ministerio de Economía y Finanzas (MEF)- Seguimiento de la Ejecución Presupuestal (Consulta amigable) | L13: Portal de Transparencia Económica | M13: http://apps5.mineco.gob.pe/transparencia/Navegador/default.aspx?y=2015&ap=ActProy | N13: Solo existe G. Nacional y G. Regional | P13: =IFERROR(IF(VLOOKUP(CONCATENATE(E13,F13,G13),ListaIndicadores!$Z$7:$AD$1345,3,FALSE)="","",VLOOKUP(CONCATENATE(E13,F13,G13),ListaIndicadores!$Z$7:$AD$1345,3,FALSE)),"") ->  | Q13: =VLOOKUP(CONCATENATE(E13,F13,G13),ListaIndicadores!$Z$7:$AD$1345,4,FALSE) -> -15443
A14: 753 | B14: Ambiental | C14: II. LINEAMIENTO DE POLITICA Fomentar el uso y aprovechamiento sostenible de los Recursos Naturales. | D14: AGA.18.12 | E14: Presupuesto anual ejecutado en Conservación de la Diversidad Biológica y Aprovechamiento Sostenible del RRNN en Área Natural Protegida (PP 0057) - Soles | F14: Gobierno Regional | G14: Amazonas | H14: 2016 | I14: Sin datos | J14: Soles | K14: Ministerio de Economía y Finanzas (MEF)- Seguimiento de la Ejecución Presupuestal (Consulta amigable) | L14: Portal de Transparencia Económica | M14: http://apps5.mineco.gob.pe/transparencia/Navegador/default.aspx?y=2015&ap=ActProy | N14: Solo existe G. Nacional y G. Regional | P14: =IFERROR(IF(VLOOKUP(CONCATENATE(E14,F14,G14),ListaIndicadores!$Z$7:$AD$1345,3,FALSE)="","",VLOOKUP(CONCATENATE(E14,F14,G14),ListaIndicadores!$Z$7:$AD$1345,3,FALSE)),"") ->  | Q14: =VLOOKUP(CONCATENATE(E14,F14,G14),ListaIndicadores!$Z$7:$AD$1345,4,FALSE) -> -15443
A15: 754 | B15: Ambiental | C15: II. LINEAMIENTO DE POLITICA Fomentar el uso y aprovechamiento sostenible de los Recursos Naturales. | D15: AGA.18.12 | E15: Presupuesto anual ejecutado en Conservación de la Diversidad Biológica y Aprovechamiento Sostenible del RRNN en Área Natural Protegida (PP 0057) - Soles | F15: Gobierno Regional | G15: Amazonas | H15: 2017 | I15: Sin datos | J15: Soles | K15: Ministerio de Economía y Finanzas (MEF)- Seguimiento de la Ejecución Presupuestal (Consulta amigable) | L15: Portal de Transparencia Económica | M15: http://apps5.mineco.gob.pe/transparencia/Navegador/default.aspx?y=2015&ap=ActProy | N15: Solo existe G. Nacional y G. Regional | P15: =IFERROR(IF(VLOOKUP(CONCATENATE(E15,F15,G15),ListaIndicadores!$Z$7:$AD$1345,3,FALSE)="","",VLOOKUP(CONCATENATE(E15,F15,G15),ListaIndicadores!$Z$7:$AD$1345,3,FALSE)),"") ->  | Q15: =VLOOKUP(CONCATENATE(E15,F15,G15),ListaIndicadores!$Z$7:$AD$1345,4,FALSE) -> -15443
A16: 755 | B16: Ambiental | C16: II. LINEAMIENTO DE POLITICA Fomentar el uso y aprovechamiento sostenible de los Recursos Naturales. | D16: AGA.18.12 | E16: Presupuesto anual ejecutado en Conservación de la Diversidad Biológica y Aprovechamiento Sostenible del RRNN en Área Natural Protegida (PP 0057) - Soles | F16: Gobierno Regional | G16: Amazonas | H16: 2018 | I16: Sin datos | J16: Soles | K16: Ministerio de Economía y Finanzas (MEF)- Seguimiento de la Ejecución Presupuestal (Consulta amigable) | L16: Portal de Transparencia Económica | M16: http://apps5.mineco.gob.pe/transparencia/Navegador/default.aspx?y=2015&ap=ActProy | N16: Solo existe G. Nacional y G. Regional | P16: =IFERROR(IF(VLOOKUP(CONCATENATE(E16,F16,G16),ListaIndicadores!$Z$7:$AD$1345,3,FALSE)="","",VLOOKUP(CONCATENATE(E16,F16,G16),ListaIndicadores!$Z$7:$AD$1345,3,FALSE)),"") ->  | Q16: =VLOOKUP(CONCATENATE(E16,F16,G16),ListaIndicadores!$Z$7:$AD$1345,4,FALSE) -> -15443
A17: 888 | B17: Ambiental | C17: II. LINEAMIENTO DE POLITICA Fomentar el uso y aprovechamiento sostenible de los Recursos Naturales. | D17: AGA.18.13 | E17: Presupuesto anual ejecutado en Gestión Sostenible de RRNN y diversidad Biológica (PP 0035) - Millones de Soles | F17: Gobierno Locales | G17: Amazonas | H17: 2014 | I17: 183956 | J17: Soles | K17: Ministerio de Economía y Finanzas (MEF)- Seguimiento de la Ejecución Presupuestal (Consulta amigable) | L17: Portal de Transparencia Económica | M17: http://apps5.mineco.gob.pe/transparencia/Navegador/default.aspx?y=2015&ap=ActProy | P17: =IFERROR(IF(VLOOKUP(CONCATENATE(E17,F17,G17),ListaIndicadores!$Z$7:$AD$1345,3,FALSE)="","",VLOOKUP(CONCATENATE(E17,F17,G17),ListaIndicadores!$Z$7:$AD$1345,3,FALSE)),"") ->  | Q17: =VLOOKUP(CONCATENATE(E17,F17,G17),ListaIndicadores!$Z$7:$AD$1345,4,FALSE) -> 221686
A18: 889 | B18: Ambiental | C18: II. LINEAMIENTO DE POLITICA Fomentar el uso y aprovechamiento sostenible de los Recursos Naturales. | D18: AGA.18.13 | E18: Presupuesto anual ejecutado en Gestión Sostenible de RRNN y diversidad Biológica (PP 0035) - Millones de Soles | F18: Gobierno Locales | G18: Amazonas | H18: 2015 | I18: 110530 | J18: Soles | K18: Ministerio de Economía y Finanzas (MEF)- Seguimiento de la Ejecución Presupuestal (Consulta amigable) | L18: Portal de Transparencia Económica | M18: http://apps5.mineco.gob.pe/transparencia/Navegador/default.aspx?y=2015&ap=ActProy | P18: =IFERROR(IF(VLOOKUP(CONCATENATE(E18,F18,G18),ListaIndicadores!$Z$7:$AD$1345,3,FALSE)="","",VLOOKUP(CONCATENATE(E18,F18,G18),ListaIndicadores!$Z$7:$AD$1345,3,FALSE)),"") ->  | Q18: =VLOOKUP(CONCATENATE(E18,F18,G18),ListaIndicadores!$Z$7:$AD$1345,4,FALSE) -> 221686
A19: 890 | B19: Ambiental | C19: II. LINEAMIENTO DE POLITICA Fomentar el uso y aprovechamiento sostenible de los Recursos Naturales. | D19: AGA.18.13 | E19: Presupuesto anual ejecutado en Gestión Sostenible de RRNN y diversidad Biológica (PP 0035) - Millones de Soles | F19: Gobierno Locales | G19: Amazonas | H19: 2016 | I19: 83763 | J19: Soles | K19: Ministerio de Economía y Finanzas (MEF)- Seguimiento de la Ejecución Presupuestal (Consulta amigable) | L19: Portal de Transparencia Económica | M19: http://apps5.mineco.gob.pe/transparencia/Navegador/default.aspx?y=2015&ap=ActProy | P19: =IFERROR(IF(VLOOKUP(CONCATENATE(E19,F19,G19),ListaIndicadores!$Z$7:$AD$1345,3,FALSE)="","",VLOOKUP(CONCATENATE(E19,F19,G19),ListaIndicadores!$Z$7:$AD$1345,3,FALSE)),"") ->  | Q19: =VLOOKUP(CONCATENATE(E19,F19,G19),ListaIndicadores!$Z$7:$AD$1345,4,FALSE) -> 221686
A20: 891 | B20: Ambiental | C20: II. LINEAMIENTO DE POLITICA Fomentar el uso y aprovechamiento sostenible de los Recursos Naturales. | D20: AGA.18.13 | E20: Presupuesto anual ejecutado en Gestión Sostenible de RRNN y diversidad Biológica (PP 0035) - Millones de Soles | F20: Gobierno Locales | G20: Amazonas | H20: 2017 | I20: Sin datos | J20: Soles | K20: Ministerio de Economía y Finanzas (MEF)- Seguimiento de la Ejecución Presupuestal (Consulta amigable) | L20: Portal de Transparencia Económica | M20: http://apps5.mineco.gob.pe/transparencia/Navegador/default.aspx?y=2015&ap=ActProy | P20: =IFERROR(IF(VLOOKUP(CONCATENATE(E20,F20,G20),ListaIndicadores!$Z$7:$AD$1345,3,FALSE)="","",VLOOKUP(CONCATENATE(E20,F20,G20),ListaIndicadores!$Z$7:$AD$1345,3,FALSE)),"") ->  | Q20: =VLOOKUP(CONCATENATE(E20,F20,G20),ListaIndicadores!$Z$7:$AD$1345,4,FALSE) -> 221686
A21: 892 | B21: Ambiental | C21: II. LINEAMIENTO DE POLITICA Fomentar el uso y aprovechamiento sostenible de los Recursos Naturales. | D21: AGA.18.13 | E21: Presupuesto anual ejecutado en Gestión Sostenible de RRNN y diversidad Biológica (PP 0035) - Millones de Soles | F21: Gobierno Locales | G21: Amazonas | H21: 2018 | I21: Sin datos | J21: Soles | K21: Ministerio de Economía y Finanzas (MEF)- Seguimiento de la Ejecución Presupuestal (Consulta amigable) | L21: Portal de Transparencia Económica | M21: http://apps5.mineco.gob.pe/transparencia/Navegador/default.aspx?y=2015&ap=ActProy | P21: =IFERROR(IF(VLOOKUP(CONCATENATE(E21,F21,G21),ListaIndicadores!$Z$7:$AD$1345,3,FALSE)="","",VLOOKUP(CONCATENATE(E21,F21,G21),ListaIndicadores!$Z$7:$AD$1345,3,FALSE)),"") ->  | Q21: =VLOOKUP(CONCATENATE(E21,F21,G21),ListaIndicadores!$Z$7:$AD$1345,4,FALSE) -> 221686
A22: 1013 | B22: Ambiental | C22: II. LINEAMIENTO DE POLITICA Fomentar el uso y aprovechamiento sostenible de los Recursos Naturales. | D22: AGA.18.13 | E22: Presupuesto anual ejecutado en Gestión Sostenible de RRNN y diversidad Biológica (PP 0035) - Millones de Soles | F22: Gobierno Nacional | G22: Amazonas | H22: 2014 | I22: 51639 | J22: Soles | K22: Ministerio de Economía y Finanzas (MEF)- Seguimiento de la Ejecución Presupuestal (Consulta amigable) | L22: Portal de Transparencia Económica | M22: http://apps5.mineco.gob.pe/transparencia/Navegador/default.aspx?y=2015&ap=ActProy | P22: =IFERROR(IF(VLOOKUP(CONCATENATE(E22,F22,G22),ListaIndicadores!$Z$7:$AD$1345,3,FALSE)="","",VLOOKUP(CONCATENATE(E22,F22,G22),ListaIndicadores!$Z$7:$AD$1345,3,FALSE)),"") ->  | Q22: =VLOOKUP(CONCATENATE(E22,F22,G22),ListaIndicadores!$Z$7:$AD$1345,4,FALSE) -> 1676169
A23: 1014 | B23: Ambiental | C23: II. LINEAMIENTO DE POLITICA Fomentar el uso y aprovechamiento sostenible de los Recursos Naturales. | D23: AGA.18.13 | E23: Presupuesto anual ejecutado en Gestión Sostenible de RRNN y diversidad Biológica (PP 0035) - Millones de Soles | F23: Gobierno Nacional | G23: Amazonas | H23: 2015 | I23: 540670 | J23: Soles | K23: Ministerio de Economía y Finanzas (MEF)- Seguimiento de la Ejecución Presupuestal (Consulta amigable) | L23: Portal de Transparencia Económica | M23: http://apps5.mineco.gob.pe/transparencia/Navegador/default.aspx?y=2015&ap=ActProy | P23: =IFERROR(IF(VLOOKUP(CONCATENATE(E23,F23,G23),ListaIndicadores!$Z$7:$AD$1345,3,FALSE)="","",VLOOKUP(CONCATENATE(E23,F23,G23),ListaIndicadores!$Z$7:$AD$1345,3,FALSE)),"") ->  | Q23: =VLOOKUP(CONCATENATE(E23,F23,G23),ListaIndicadores!$Z$7:$AD$1345,4,FALSE) -> 1676169
A24: 1015 | B24: Ambiental | C24: II. LINEAMIENTO DE POLITICA Fomentar el uso y aprovechamiento sostenible de los Recursos Naturales. | D24: AGA.18.13 | E24: Presupuesto anual ejecutado en Gestión Sostenible de RRNN y diversidad Biológica (PP 0035) - Millones de Soles | F24: Gobierno Nacional | G24: Amazonas | H24: 2016 | I24: 505581 | J24: Soles | K24: Ministerio de Economía y Finanzas (MEF)- Seguimiento de la Ejecución Presupuestal (Consulta amigable) | L24: Portal de Transparencia Económica | M24: http://apps5.mineco.gob.pe/transparencia/Navegador/default.aspx?y=2015&ap=ActProy | P24: =IFERROR(IF(VLOOKUP(CONCATENATE(E24,F24,G24),ListaIndicadores!$Z$7:$AD$1345,3,FALSE)="","",VLOOKUP(CONCATENATE(E24,F24,G24),ListaIndicadores!$Z$7:$AD$1345,3,FALSE)),"") ->  | Q24: =VLOOKUP(CONCATENATE(E24,F24,G24),ListaIndicadores!$Z$7:$AD$1345,4,FALSE) -> 1676169
A25: 1016 | B25: Ambiental | C25: II. LINEAMIENTO DE POLITICA Fomentar el uso y aprovechamiento sostenible de los Recursos Naturales. | D25: AGA.18.13 | E25: Presupuesto anual ejecutado en Gestión Sostenible de RRNN y diversidad Biológica (PP 0035) - Millones de Soles | F25: Gobierno Nacional | G25: Amazonas | H25: 2017 | I25: 569317 | J25: Soles | K25: Ministerio de Economía y Finanzas (MEF)- Seguimiento de la Ejecución Presupuestal (Consulta amigable) | L25: Portal de Transparencia Económica | M25: http://apps5.mineco.gob.pe/transparencia/Navegador/default.aspx?y=2015&ap=ActProy | P25: =IFERROR(IF(VLOOKUP(CONCATENATE(E25,F25,G25),ListaIndicadores!$Z$7:$AD$1345,3,FALSE)="","",VLOOKUP(CONCATENATE(E25,F25,G25),ListaIndicadores!$Z$7:$AD$1345,3,FALSE)),"") ->  | Q25: =VLOOKUP(CONCATENATE(E25,F25,G25),ListaIndicadores!$Z$7:$AD$1345,4,FALSE) -> 1676169
A26: 1017 | B26: Ambiental | C26: II. LINEAMIENTO DE POLITICA Fomentar el uso y aprovechamiento sostenible de los Recursos Naturales. | D26: AGA.18.13 | E26: Presupuesto anual ejecutado en Gestión Sostenible de RRNN y diversidad Biológica (PP 0035) - Millones de Soles | F26: Gobierno Nacional | G26: Amazonas | H26: 2018 | I26: 1061320 | J26: Soles | K26: Ministerio de Economía y Finanzas (MEF)- Seguimiento de la Ejecución Presupuestal (Consulta amigable) | L26: Portal de Transparencia Económica | M26: http://apps5.mineco.gob.pe/transparencia/Navegador/default.aspx?y=2015&ap=ActProy | P26: =IFERROR(IF(VLOOKUP(CONCATENATE(E26,F26,G26),ListaIndicadores!$Z$7:$AD$1345,3,FALSE)="","",VLOOKUP(CONCATENATE(E26,F26,G26),ListaIndicadores!$Z$7:$AD$1345,3,FALSE)),"") ->  | Q26: =VLOOKUP(CONCATENATE(E26,F26,G26),ListaIndicadores!$Z$7:$AD$1345,4,FALSE) -> 1676169
A27: 1138 | B27: Ambiental | C27: II. LINEAMIENTO DE POLITICA Fomentar el uso y aprovechamiento sostenible de los Recursos Naturales. | D27: AGA.18.13 | E27: Presupuesto anual ejecutado en Gestión Sostenible de RRNN y diversidad Biológica (PP 0035) - Millones de Soles | F27: Gobierno Regional | G27: Amazonas | H27: 2014 | I27: 2234700 | J27: Soles | K27: Ministerio de Economía y Finanzas (MEF)- Seguimiento de la Ejecución Presupuestal (Consulta amigable) | L27: Portal de Transparencia Económica | M27: http://apps5.mineco.gob.pe/transparencia/Navegador/default.aspx?y=2015&ap=ActProy | P27: =IFERROR(IF(VLOOKUP(CONCATENATE(E27,F27,G27),ListaIndicadores!$Z$7:$AD$1345,3,FALSE)="","",VLOOKUP(CONCATENATE(E27,F27,G27),ListaIndicadores!$Z$7:$AD$1345,3,FALSE)),"") ->  | Q27: =VLOOKUP(CONCATENATE(E27,F27,G27),ListaIndicadores!$Z$7:$AD$1345,4,FALSE) -> 3029418
A28: 1139 | B28: Ambiental | C28: II. LINEAMIENTO DE POLITICA Fomentar el uso y aprovechamiento sostenible de los Recursos Naturales. | D28: AGA.18.13 | E28: Presupuesto anual ejecutado en Gestión Sostenible de RRNN y diversidad Biológica (PP 0035) - Millones de Soles | F28: Gobierno Regional | G28: Amazonas | H28: 2015 | I28: 2213076 | J28: Soles | K28: Ministerio de Economía y Finanzas (MEF)- Seguimiento de la Ejecución Presupuestal (Consulta amigable) | L28: Portal de Transparencia Económica | M28: http://apps5.mineco.gob.pe/transparencia/Navegador/default.aspx?y=2015&ap=ActProy | P28: =IFERROR(IF(VLOOKUP(CONCATENATE(E28,F28,G28),ListaIndicadores!$Z$7:$AD$1345,3,FALSE)="","",VLOOKUP(CONCATENATE(E28,F28,G28),ListaIndicadores!$Z$7:$AD$1345,3,FALSE)),"") ->  | Q28: =VLOOKUP(CONCATENATE(E28,F28,G28),ListaIndicadores!$Z$7:$AD$1345,4,FALSE) -> 3029418
A29: 1140 | B29: Ambiental | C29: II. LINEAMIENTO DE POLITICA Fomentar el uso y aprovechamiento sostenible de los Recursos Naturales. | D29: AGA.18.13 | E29: Presupuesto anual ejecutado en Gestión Sostenible de RRNN y diversidad Biológica (PP 0035) - Millones de Soles | F29: Gobierno Regional | G29: Amazonas | H29: 2016 | I29: 1758119 | J29: Soles | K29: Ministerio de Economía y Finanzas (MEF)- Seguimiento de la Ejecución Presupuestal (Consulta amigable) | L29: Portal de Transparencia Económica | M29: http://apps5.mineco.gob.pe/transparencia/Navegador/default.aspx?y=2015&ap=ActProy | P29: =IFERROR(IF(VLOOKUP(CONCATENATE(E29,F29,G29),ListaIndicadores!$Z$7:$AD$1345,3,FALSE)="","",VLOOKUP(CONCATENATE(E29,F29,G29),ListaIndicadores!$Z$7:$AD$1345,3,FALSE)),"") ->  | Q29: =VLOOKUP(CONCATENATE(E29,F29,G29),ListaIndicadores!$Z$7:$AD$1345,4,FALSE) -> 3029418
A30: 1141 | B30: Ambiental | C30: II. LINEAMIENTO DE POLITICA Fomentar el uso y aprovechamiento sostenible de los Recursos Naturales. | D30: AGA.18.13 | E30: Presupuesto anual ejecutado en Gestión Sostenible de RRNN y diversidad Biológica (PP 0035) - Millones de Soles | F30: Gobierno Regional | G30: Amazonas | H30: 2017 | I30: 440095 | J30: Soles | K30: Ministerio de Economía y Finanzas (MEF)- Seguimiento de la Ejecución Presupuestal (Consulta amigable) | L30: Portal de Transparencia Económica | M30: http://apps5.mineco.gob.pe/transparencia/Navegador/default.aspx?y=2015&ap=ActProy | P30: =IFERROR(IF(VLOOKUP(CONCATENATE(E30,F30,G30),ListaIndicadores!$Z$7:$AD$1345,3,FALSE)="","",VLOOKUP(CONCATENATE(E30,F30,G30),ListaIndicadores!$Z$7:$AD$1345,3,FALSE)),"") ->  | Q30: =VLOOKUP(CONCATENATE(E30,F30,G30),ListaIndicadores!$Z$7:$AD$1345,4,FALSE) -> 3029418
A31: 1142 | B31: Ambiental | C31: II. LINEAMIENTO DE POLITICA Fomentar el uso y aprovechamiento sostenible de los Recursos Naturales. | D31: AGA.18.13 | E31: Presupuesto anual ejecutado en Gestión Sostenible de RRNN y diversidad Biológica (PP 0035) - Millones de Soles | F31: Gobierno Regional | G31: Amazonas | H31: 2018 | I31: 1809569 | J31: Soles | K31: Ministerio de Economía y Finanzas (MEF)- Seguimiento de la Ejecución Presupuestal (Consulta amigable) | L31: Portal de Transparencia Económica | M31: http://apps5.mineco.gob.pe/transparencia/Navegador/default.aspx?y=2015&ap=ActProy | P31: =IFERROR(IF(VLOOKUP(CONCATENATE(E31,F31,G31),ListaIndicadores!$Z$7:$AD$1345,3,FALSE)="","",VLOOKUP(CONCATENATE(E31,F31,G31),ListaIndicadores!$Z$7:$AD$1345,3,FALSE)),"") ->  | Q31: =VLOOKUP(CONCATENATE(E31,F31,G31),ListaIndicadores!$Z$7:$AD$1345,4,FALSE) -> 3029418
A32: 1331 | B32: Ambiental | C32: II. LINEAMIENTO DE POLITICA Fomentar el uso y aprovechamiento sostenible de los Recursos Naturales. | D32: AGA.20.4 | E32: Presupuesto Ejecutado en Reducción de la Degradación de los suelos agrarios (PP 0089) - Soles | F32: Gobierno Locales | G32: Amazonas | H32: 2014 | I32: 65939 | J32: Soles | K32: Ministerio de Economía y Finanzas (MEF)- Seguimiento de la Ejecución Presupuestal (Consulta amigable) | L32: Portal de Transparencia Económica | M32: http://apps5.mineco.gob.pe/transparencia/Navegador/default.aspx?y=2015&ap=ActProy | P32: =IFERROR(IF(VLOOKUP(CONCATENATE(E32,F32,G32),ListaIndicadores!$Z$7:$AD$1345,3,FALSE)="","",VLOOKUP(CONCATENATE(E32,F32,G32),ListaIndicadores!$Z$7:$AD$1345,3,FALSE)),"") ->  | Q32: =VLOOKUP(CONCATENATE(E32,F32,G32),ListaIndicadores!$Z$7:$AD$1345,4,FALSE) -> -14911
A33: 1332 | B33: Ambiental | C33: II. LINEAMIENTO DE POLITICA Fomentar el uso y aprovechamiento sostenible de los Recursos Naturales. | D33: AGA.20.4 | E33: Presupuesto Ejecutado en Reducción de la Degradación de los suelos agrarios (PP 0089) - Soles | F33: Gobierno Locales | G33: Amazonas | H33: 2015 | I33: Sin datos | J33: Soles | K33: Ministerio de Economía y Finanzas (MEF)- Seguimiento de la Ejecución Presupuestal (Consulta amigable) | L33: Portal de Transparencia Económica | M33: http://apps5.mineco.gob.pe/transparencia/Navegador/default.aspx?y=2015&ap=ActProy | P33: =IFERROR(IF(VLOOKUP(CONCATENATE(E33,F33,G33),ListaIndicadores!$Z$7:$AD$1345,3,FALSE)="","",VLOOKUP(CONCATENATE(E33,F33,G33),ListaIndicadores!$Z$7:$AD$1345,3,FALSE)),"") ->  | Q33: =VLOOKUP(CONCATENATE(E33,F33,G33),ListaIndicadores!$Z$7:$AD$1345,4,FALSE) -> -14911
A34: 1333 | B34: Ambiental | C34: II. LINEAMIENTO DE POLITICA Fomentar el uso y aprovechamiento sostenible de los Recursos Naturales. | D34: AGA.20.4 | E34: Presupuesto Ejecutado en Reducción de la Degradación de los suelos agrarios (PP 0089) - Soles | F34: Gobierno Locales | G34: Amazonas | H34: 2016 | I34: Sin datos | J34: Soles | K34: Ministerio de Economía y Finanzas (MEF)- Seguimiento de la Ejecución Presupuestal (Consulta amigable) | L34: Portal de Transparencia Económica | M34: http://apps5.mineco.gob.pe/transparencia/Navegador/default.aspx?y=2015&ap=ActProy | P34: =IFERROR(IF(VLOOKUP(CONCATENATE(E34,F34,G34),ListaIndicadores!$Z$7:$AD$1345,3,FALSE)="","",VLOOKUP(CONCATENATE(E34,F34,G34),ListaIndicadores!$Z$7:$AD$1345,3,FALSE)),"") ->  | Q34: =VLOOKUP(CONCATENATE(E34,F34,G34),ListaIndicadores!$Z$7:$AD$1345,4,FALSE) -> -14911
A35: 1334 | B35: Ambiental | C35: II. LINEAMIENTO DE POLITICA Fomentar el uso y aprovechamiento sostenible de los Recursos Naturales. | D35: AGA.20.4 | E35: Presupuesto Ejecutado en Reducción de la Degradación de los suelos agrarios (PP 0089) - Soles | F35: Gobierno Locales | G35: Amazonas | H35: 2017 | I35: Sin datos | J35: Soles | K35: Ministerio de Economía y Finanzas (MEF)- Seguimiento de la Ejecución Presupuestal (Consulta amigable) | L35: Portal de Transparencia Económica | M35: http://apps5.mineco.gob.pe/transparencia/Navegador/default.aspx?y=2015&ap=ActProy | P35: =IFERROR(IF(VLOOKUP(CONCATENATE(E35,F35,G35),ListaIndicadores!$Z$7:$AD$1345,3,FALSE)="","",VLOOKUP(CONCATENATE(E35,F35,G35),ListaIndicadores!$Z$7:$AD$1345,3,FALSE)),"") ->  | Q35: =VLOOKUP(CONCATENATE(E35,F35,G35),ListaIndicadores!$Z$7:$AD$1345,4,FALSE) -> -14911
A36: 1335 | B36: Ambiental | C36: II. LINEAMIENTO DE POLITICA Fomentar el uso y aprovechamiento sostenible de los Recursos Naturales. | D36: AGA.20.4 | E36: Presupuesto Ejecutado en Reducción de la Degradación de los suelos agrarios (PP 0089) - Soles | F36: Gobierno Locales | G36: Amazonas | H36: 2018 | I36: 9000 | J36: Soles | K36: Ministerio de Economía y Finanzas (MEF)- Seguimiento de la Ejecución Presupuestal (Consulta amigable) | L36: Portal de Transparencia Económica | M36: http://apps5.mineco.gob.pe/transparencia/Navegador/default.aspx?y=2015&ap=ActProy | P36: =IFERROR(IF(VLOOKUP(CONCATENATE(E36,F36,G36),ListaIndicadores!$Z$7:$AD$1345,3,FALSE)="","",VLOOKUP(CONCATENATE(E36,F36,G36),ListaIndicadores!$Z$7:$AD$1345,3,FALSE)),"") ->  | Q36: =VLOOKUP(CONCATENATE(E36,F36,G36),ListaIndicadores!$Z$7:$AD$1345,4,FALSE) -> -14911
A37: 1460 | B37: Ambiental | C37: II. LINEAMIENTO DE POLITICA Fomentar el uso y aprovechamiento sostenible de los Recursos Naturales. | D37: AGA.20.4 | E37: Presupuesto Ejecutado en Reducción de la Degradación de los suelos agrarios (PP 0089) - Soles | F37: Gobierno Nacional | G37: Amazonas | H37: 2014 | I37: 292606 | J37: Soles | K37: Ministerio de Economía y Finanzas (MEF)- Seguimiento de la Ejecución Presupuestal (Consulta amigable) | L37: Portal de Transparencia Económica | M37: http://apps5.mineco.gob.pe/transparencia/Navegador/default.aspx?y=2015&ap=ActProy | P37: =IFERROR(IF(VLOOKUP(CONCATENATE(E37,F37,G37),ListaIndicadores!$Z$7:$AD$1345,3,FALSE)="","",VLOOKUP(CONCATENATE(E37,F37,G37),ListaIndicadores!$Z$7:$AD$1345,3,FALSE)),"") ->  | Q37: =VLOOKUP(CONCATENATE(E37,F37,G37),ListaIndicadores!$Z$7:$AD$1345,4,FALSE) -> 887522
A38: 1461 | B38: Ambiental | C38: II. LINEAMIENTO DE POLITICA Fomentar el uso y aprovechamiento sostenible de los Recursos Naturales. | D38: AGA.20.4 | E38: Presupuesto Ejecutado en Reducción de la Degradación de los suelos agrarios (PP 0089) - Soles | F38: Gobierno Nacional | G38: Amazonas | H38: 2015 | I38: 21000 | J38: Soles | K38: Ministerio de Economía y Finanzas (MEF)- Seguimiento de la Ejecución Presupuestal (Consulta amigable) | L38: Portal de Transparencia Económica | M38: http://apps5.mineco.gob.pe/transparencia/Navegador/default.aspx?y=2015&ap=ActProy | P38: =IFERROR(IF(VLOOKUP(CONCATENATE(E38,F38,G38),ListaIndicadores!$Z$7:$AD$1345,3,FALSE)="","",VLOOKUP(CONCATENATE(E38,F38,G38),ListaIndicadores!$Z$7:$AD$1345,3,FALSE)),"") ->  | Q38: =VLOOKUP(CONCATENATE(E38,F38,G38),ListaIndicadores!$Z$7:$AD$1345,4,FALSE) -> 887522
A39: 1462 | B39: Ambiental | C39: II. LINEAMIENTO DE POLITICA Fomentar el uso y aprovechamiento sostenible de los Recursos Naturales. | D39: AGA.20.4 | E39: Presupuesto Ejecutado en Reducción de la Degradación de los suelos agrarios (PP 0089) - Soles | F39: Gobierno Nacional | G39: Amazonas | H39: 2016 | I39: 581842 | J39: Soles | K39: Ministerio de Economía y Finanzas (MEF)- Seguimiento de la Ejecución Presupuestal (Consulta amigable) | L39: Portal de Transparencia Económica | M39: http://apps5.mineco.gob.pe/transparencia/Navegador/default.aspx?y=2015&ap=ActProy | P39: =IFERROR(IF(VLOOKUP(CONCATENATE(E39,F39,G39),ListaIndicadores!$Z$7:$AD$1345,3,FALSE)="","",VLOOKUP(CONCATENATE(E39,F39,G39),ListaIndicadores!$Z$7:$AD$1345,3,FALSE)),"") ->  | Q39: =VLOOKUP(CONCATENATE(E39,F39,G39),ListaIndicadores!$Z$7:$AD$1345,4,FALSE) -> 887522
A40: 1463 | B40: Ambiental | C40: II. LINEAMIENTO DE POLITICA Fomentar el uso y aprovechamiento sostenible de los Recursos Naturales. | D40: AGA.20.4 | E40: Presupuesto Ejecutado en Reducción de la Degradación de los suelos agrarios (PP 0089) - Soles | F40: Gobierno Nacional | G40: Amazonas | H40: 2017 | I40: 708311 | J40: Soles | K40: Ministerio de Economía y Finanzas (MEF)- Seguimiento de la Ejecución Presupuestal (Consulta amigable) | L40: Portal de Transparencia Económica | M40: http://apps5.mineco.gob.pe/transparencia/Navegador/default.aspx?y=2015&ap=ActProy | P40: =IFERROR(IF(VLOOKUP(CONCATENATE(E40,F40,G40),ListaIndicadores!$Z$7:$AD$1345,3,FALSE)="","",VLOOKUP(CONCATENATE(E40,F40,G40),ListaIndicadores!$Z$7:$AD$1345,3,FALSE)),"") ->  | Q40: =VLOOKUP(CONCATENATE(E40,F40,G40),ListaIndicadores!$Z$7:$AD$1345,4,FALSE) -> 887522
A41: 1464 | B41: Ambiental | C41: II. LINEAMIENTO DE POLITICA Fomentar el uso y aprovechamiento sostenible de los Recursos Naturales. | D41: AGA.20.4 | E41: Presupuesto Ejecutado en Reducción de la Degradación de los suelos agrarios (PP 0089) - Soles | F41: Gobierno Nacional | G41: Amazonas | H41: 2018 | I41: 211214 | J41: Soles | K41: Ministerio de Economía y Finanzas (MEF)- Seguimiento de la Ejecución Presupuestal (Consulta amigable) | L41: Portal de Transparencia Económica | M41: http://apps5.mineco.gob.pe/transparencia/Navegador/default.aspx?y=2015&ap=ActProy | P41: =IFERROR(IF(VLOOKUP(CONCATENATE(E41,F41,G41),ListaIndicadores!$Z$7:$AD$1345,3,FALSE)="","",VLOOKUP(CONCATENATE(E41,F41,G41),ListaIndicadores!$Z$7:$AD$1345,3,FALSE)),"") ->  | Q41: =VLOOKUP(CONCATENATE(E41,F41,G41),ListaIndicadores!$Z$7:$AD$1345,4,FALSE) -> 887522
A42: 1585 | B42: Ambiental | C42: II. LINEAMIENTO DE POLITICA Fomentar el uso y aprovechamiento sostenible de los Recursos Naturales. | D42: AGA.20.4 | E42: Presupuesto Ejecutado en Reducción de la Degradación de los suelos agrarios (PP 0089) - Soles | F42: Gobierno Regional | G42: Amazonas | H42: 2014 | I42: Sin datos | J42: Soles | K42: Ministerio de Economía y Finanzas (MEF)- Seguimiento de la Ejecución Presupuestal (Consulta amigable) | L42: Portal de Transparencia Económica | M42: http://apps5.mineco.gob.pe/transparencia/Navegador/default.aspx?y=2015&ap=ActProy | P42: =IFERROR(IF(VLOOKUP(CONCATENATE(E42,F42,G42),ListaIndicadores!$Z$7:$AD$1345,3,FALSE)="","",VLOOKUP(CONCATENATE(E42,F42,G42),ListaIndicadores!$Z$7:$AD$1345,3,FALSE)),"") ->  | Q42: =VLOOKUP(CONCATENATE(E42,F42,G42),ListaIndicadores!$Z$7:$AD$1345,4,FALSE) -> 16993
A43: 1586 | B43: Ambiental | C43: II. LINEAMIENTO DE POLITICA Fomentar el uso y aprovechamiento sostenible de los Recursos Naturales. | D43: AGA.20.4 | E43: Presupuesto Ejecutado en Reducción de la Degradación de los suelos agrarios (PP 0089) - Soles | F43: Gobierno Regional | G43: Amazonas | H43: 2015 | I43: Sin datos | J43: Soles | K43: Ministerio de Economía y Finanzas (MEF)- Seguimiento de la Ejecución Presupuestal (Consulta amigable) | L43: Portal de Transparencia Económica | M43: http://apps5.mineco.gob.pe/transparencia/Navegador/default.aspx?y=2015&ap=ActProy | P43: =IFERROR(IF(VLOOKUP(CONCATENATE(E43,F43,G43),ListaIndicadores!$Z$7:$AD$1345,3,FALSE)="","",VLOOKUP(CONCATENATE(E43,F43,G43),ListaIndicadores!$Z$7:$AD$1345,3,FALSE)),"") ->  | Q43: =VLOOKUP(CONCATENATE(E43,F43,G43),ListaIndicadores!$Z$7:$AD$1345,4,FALSE) -> 16993
A44: 1587 | B44: Ambiental | C44: II. LINEAMIENTO DE POLITICA Fomentar el uso y aprovechamiento sostenible de los Recursos Naturales. | D44: AGA.20.4 | E44: Presupuesto Ejecutado en Reducción de la Degradación de los suelos agrarios (PP 0089) - Soles | F44: Gobierno Regional | G44: Amazonas | H44: 2016 | I44: Sin datos | J44: Soles | K44: Ministerio de Economía y Finanzas (MEF)- Seguimiento de la Ejecución Presupuestal (Consulta amigable) | L44: Portal de Transparencia Económica | M44: http://apps5.mineco.gob.pe/transparencia/Navegador/default.aspx?y=2015&ap=ActProy | P44: =IFERROR(IF(VLOOKUP(CONCATENATE(E44,F44,G44),ListaIndicadores!$Z$7:$AD$1345,3,FALSE)="","",VLOOKUP(CONCATENATE(E44,F44,G44),ListaIndicadores!$Z$7:$AD$1345,3,FALSE)),"") ->  | Q44: =VLOOKUP(CONCATENATE(E44,F44,G44),ListaIndicadores!$Z$7:$AD$1345,4,FALSE) -> 16993
A45: 1588 | B45: Ambiental | C45: II. LINEAMIENTO DE POLITICA Fomentar el uso y aprovechamiento sostenible de los Recursos Naturales. | D45: AGA.20.4 | E45: Presupuesto Ejecutado en Reducción de la Degradación de los suelos agrarios (PP 0089) - Soles | F45: Gobierno Regional | G45: Amazonas | H45: 2017 | I45: Sin datos | J45: Soles | K45: Ministerio de Economía y Finanzas (MEF)- Seguimiento de la Ejecución Presupuestal (Consulta amigable) | L45: Portal de Transparencia Económica | M45: http://apps5.mineco.gob.pe/transparencia/Navegador/default.aspx?y=2015&ap=ActProy | P45: =IFERROR(IF(VLOOKUP(CONCATENATE(E45,F45,G45),ListaIndicadores!$Z$7:$AD$1345,3,FALSE)="","",VLOOKUP(CONCATENATE(E45,F45,G45),ListaIndicadores!$Z$7:$AD$1345,3,FALSE)),"") ->  | Q45: =VLOOKUP(CONCATENATE(E45,F45,G45),ListaIndicadores!$Z$7:$AD$1345,4,FALSE) -> 16993
A46: 1589 | B46: Ambiental | C46: II. LINEAMIENTO DE POLITICA Fomentar el uso y aprovechamiento sostenible de los Recursos Naturales. | D46: AGA.20.4 | E46: Presupuesto Ejecutado en Reducción de la Degradación de los suelos agrarios (PP 0089) - Soles | F46: Gobierno Regional | G46: Amazonas | H46: 2018 | I46: Sin datos | J46: Soles | K46: Ministerio de Economía y Finanzas (MEF)- Seguimiento de la Ejecución Presupuestal (Consulta amigable) | L46: Portal de Transparencia Económica | M46: http://apps5.mineco.gob.pe/transparencia/Navegador/default.aspx?y=2015&ap=ActProy | P46: =IFERROR(IF(VLOOKUP(CONCATENATE(E46,F46,G46),ListaIndicadores!$Z$7:$AD$1345,3,FALSE)="","",VLOOKUP(CONCATENATE(E46,F46,G46),ListaIndicadores!$Z$7:$AD$1345,3,FALSE)),"") ->  | Q46: =VLOOKUP(CONCATENATE(E46,F46,G46),ListaIndicadores!$Z$7:$AD$1345,4,FALSE) -> 16993
A47: 1822 | B47: Ambiental | C47: IV. LINEAMIENTO DE POLITICA: Promover Ciudades y Comunidades Saludables en armonía con su entorno natural. | D47: AGA.30.2. | E47: Número de gobiernos locales que cuentan con instrumentos de gestión ambiental | F47: Departamental | G47: Amazonas | H47: 2014 | I47: 24 | J47: Municipalidades | K47: Instituto Nacional de Estadística e Informática (INEI) - Registro Nacional de Municipalidades (RENAMU) | L47: Instituto Nacional de Estadística e Informática (INEI) - Registro Nacional de Municipalidades (RENAMU) | M47: https://www.inei.gob.pe/media/MenuRecursivo/publicaciones_digitales/Est/Lib1246/index.html | P47: =IFERROR(IF(VLOOKUP(CONCATENATE(E47,F47,G47),ListaIndicadores!$Z$7:$AD$1345,3,FALSE)="","",VLOOKUP(CONCATENATE(E47,F47,G47),ListaIndicadores!$Z$7:$AD$1345,3,FALSE)),"") ->  | Q47: =VLOOKUP(CONCATENATE(E47,F47,G47),ListaIndicadores!$Z$7:$AD$1345,4,FALSE) -> 113
A48: 1823 | B48: Ambiental | C48: IV. LINEAMIENTO DE POLITICA: Promover Ciudades y Comunidades Saludables en armonía con su entorno natural. | D48: AGA.30.2. | E48: Número de gobiernos locales que cuentan con instrumentos de gestión ambiental | F48: Departamental | G48: Amazonas | H48: 2015 | I48: 23 | J48: Municipalidades | K48: Instituto Nacional de Estadística e Informática (INEI) - Registro Nacional de Municipalidades (RENAMU) | L48: Instituto Nacional de Estadística e Informática (INEI) - Registro Nacional de Municipalidades (RENAMU) | M48: https://www.inei.gob.pe/media/MenuRecursivo/publicaciones_digitales/Est/Lib1362/index.html | P48: =IFERROR(IF(VLOOKUP(CONCATENATE(E48,F48,G48),ListaIndicadores!$Z$7:$AD$1345,3,FALSE)="","",VLOOKUP(CONCATENATE(E48,F48,G48),ListaIndicadores!$Z$7:$AD$1345,3,FALSE)),"") ->  | Q48: =VLOOKUP(CONCATENATE(E48,F48,G48),ListaIndicadores!$Z$7:$AD$1345,4,FALSE) -> 113
A49: 1824 | B49: Ambiental | C49: IV. LINEAMIENTO DE POLITICA: Promover Ciudades y Comunidades Saludables en armonía con su entorno natural. | D49: AGA.30.2. | E49: Número de gobiernos locales que cuentan con instrumentos de gestión ambiental | F49: Departamental | G49: Amazonas | H49: 2016 | I49: 35 | J49: Municipalidades | K49: Instituto Nacional de Estadística e Informática (INEI) - Registro Nacional de Municipalidades (RENAMU) | L49: Instituto Nacional de Estadística e Informática (INEI) - Registro Nacional de Municipalidades (RENAMU) | M49: https://www.inei.gob.pe/media/MenuRecursivo/publicaciones_digitales/Est/Lib1417/libro.pdf | P49: =IFERROR(IF(VLOOKUP(CONCATENATE(E49,F49,G49),ListaIndicadores!$Z$7:$AD$1345,3,FALSE)="","",VLOOKUP(CONCATENATE(E49,F49,G49),ListaIndicadores!$Z$7:$AD$1345,3,FALSE)),"") ->  | Q49: =VLOOKUP(CONCATENATE(E49,F49,G49),ListaIndicadores!$Z$7:$AD$1345,4,FALSE) -> 113
A50: 1825 | B50: Ambiental | C50: IV. LINEAMIENTO DE POLITICA: Promover Ciudades y Comunidades Saludables en armonía con su entorno natural. | D50: AGA.30.2. | E50: Número de gobiernos locales que cuentan con instrumentos de gestión ambiental | F50: Departamental | G50: Amazonas | H50: 2017 | I50: 35 | J50: Municipalidades | K50: Instituto Nacional de Estadística e Informática (INEI) - Registro Nacional de Municipalidades (RENAMU) | L50: Instituto Nacional de Estadística e Informática (INEI) - Registro Nacional de Municipalidades (RENAMU) | M50: https://www.inei.gob.pe/media/MenuRecursivo/publicaciones_digitales/Est/Lib1474/ | P50: =IFERROR(IF(VLOOKUP(CONCATENATE(E50,F50,G50),ListaIndicadores!$Z$7:$AD$1345,3,FALSE)="","",VLOOKUP(CONCATENATE(E50,F50,G50),ListaIndicadores!$Z$7:$AD$1345,3,FALSE)),"") ->  | Q50: =VLOOKUP(CONCATENATE(E50,F50,G50),ListaIndicadores!$Z$7:$AD$1345,4,FALSE) -> 113
A51: 1826 | B51: Ambiental | C51: IV. LINEAMIENTO DE POLITICA: Promover Ciudades y Comunidades Saludables en armonía con su entorno natural. | D51: AGA.30.2. | E51: Número de gobiernos locales que cuentan con instrumentos de gestión ambiental | F51: Departamental | G51: Amazonas | H51: 2018 | I51: 51 | J51: Municipalidades | K51: Instituto Nacional de Estadística e Informática (INEI) - Registro Nacional de Municipalidades (RENAMU) | L51: Instituto Nacional de Estadística e Informática (INEI) - Registro Nacional de Municipalidades (RENAMU) | M51: https://www.inei.gob.pe/media/MenuRecursivo/publicaciones_digitales/Est/Lib1636/index.html | P51: =IFERROR(IF(VLOOKUP(CONCATENATE(E51,F51,G51),ListaIndicadores!$Z$7:$AD$1345,3,FALSE)="","",VLOOKUP(CONCATENATE(E51,F51,G51),ListaIndicadores!$Z$7:$AD$1345,3,FALSE)),"") ->  | Q51: =VLOOKUP(CONCATENATE(E51,F51,G51),ListaIndicadores!$Z$7:$AD$1345,4,FALSE) -> 113
A52: 2045 | B52: Ambiental | C52: IV. LINEAMIENTO DE POLITICA: Promover Ciudades y Comunidades Saludables en armonía con su entorno natural. | D52: AGA.32.4 | E52: Presupuesto anual ejecutado Programa Nacional de Saneamiento Rural (PP 0083) - En Soles | F52: Gobierno Locales | G52: Amazonas | H52: 2014 | I52: 85162609 | J52: Soles | K52: Ministerio de Economía y Finanzas (MEF)- Seguimiento de la Ejecución Presupuestal (Consulta amigable) | L52: Portal de Transparencia Económica | M52: http://apps5.mineco.gob.pe/transparencia/Navegador/default.aspx?y=2015&ap=ActProy | P52: =IFERROR(IF(VLOOKUP(CONCATENATE(E52,F52,G52),ListaIndicadores!$Z$7:$AD$1345,3,FALSE)="","",VLOOKUP(CONCATENATE(E52,F52,G52),ListaIndicadores!$Z$7:$AD$1345,3,FALSE)),"") ->  | Q52: =VLOOKUP(CONCATENATE(E52,F52,G52),ListaIndicadores!$Z$7:$AD$1345,4,FALSE) -> 101446299
A53: 2046 | B53: Ambiental | C53: IV. LINEAMIENTO DE POLITICA: Promover Ciudades y Comunidades Saludables en armonía con su entorno natural. | D53: AGA.32.4 | E53: Presupuesto anual ejecutado Programa Nacional de Saneamiento Rural (PP 0083) - En Soles | F53: Gobierno Locales | G53: Amazonas | H53: 2015 | I53: 54183357 | J53: Soles | K53: Ministerio de Economía y Finanzas (MEF)- Seguimiento de la Ejecución Presupuestal (Consulta amigable) | L53: Portal de Transparencia Económica | M53: http://apps5.mineco.gob.pe/transparencia/Navegador/default.aspx?y=2015&ap=ActProy | P53: =IFERROR(IF(VLOOKUP(CONCATENATE(E53,F53,G53),ListaIndicadores!$Z$7:$AD$1345,3,FALSE)="","",VLOOKUP(CONCATENATE(E53,F53,G53),ListaIndicadores!$Z$7:$AD$1345,3,FALSE)),"") ->  | Q53: =VLOOKUP(CONCATENATE(E53,F53,G53),ListaIndicadores!$Z$7:$AD$1345,4,FALSE) -> 101446299
A54: 2047 | B54: Ambiental | C54: IV. LINEAMIENTO DE POLITICA: Promover Ciudades y Comunidades Saludables en armonía con su entorno natural. | D54: AGA.32.4 | E54: Presupuesto anual ejecutado Programa Nacional de Saneamiento Rural (PP 0083) - En Soles | F54: Gobierno Locales | G54: Amazonas | H54: 2016 | I54: 56396241 | J54: Soles | K54: Ministerio de Economía y Finanzas (MEF)- Seguimiento de la Ejecución Presupuestal (Consulta amigable) | L54: Portal de Transparencia Económica | M54: http://apps5.mineco.gob.pe/transparencia/Navegador/default.aspx?y=2015&ap=ActProy | P54: =IFERROR(IF(VLOOKUP(CONCATENATE(E54,F54,G54),ListaIndicadores!$Z$7:$AD$1345,3,FALSE)="","",VLOOKUP(CONCATENATE(E54,F54,G54),ListaIndicadores!$Z$7:$AD$1345,3,FALSE)),"") ->  | Q54: =VLOOKUP(CONCATENATE(E54,F54,G54),ListaIndicadores!$Z$7:$AD$1345,4,FALSE) -> 101446299
A55: 2048 | B55: Ambiental | C55: IV. LINEAMIENTO DE POLITICA: Promover Ciudades y Comunidades Saludables en armonía con su entorno natural. | D55: AGA.32.4 | E55: Presupuesto anual ejecutado Programa Nacional de Saneamiento Rural (PP 0083) - En Soles | F55: Gobierno Locales | G55: Amazonas | H55: 2017 | I55: 93856179 | J55: Soles | K55: Ministerio de Economía y Finanzas (MEF)- Seguimiento de la Ejecución Presupuestal (Consulta amigable) | L55: Portal de Transparencia Económica | M55: http://apps5.mineco.gob.pe/transparencia/Navegador/default.aspx?y=2015&ap=ActProy | P55: =IFERROR(IF(VLOOKUP(CONCATENATE(E55,F55,G55),ListaIndicadores!$Z$7:$AD$1345,3,FALSE)="","",VLOOKUP(CONCATENATE(E55,F55,G55),ListaIndicadores!$Z$7:$AD$1345,3,FALSE)),"") ->  | Q55: =VLOOKUP(CONCATENATE(E55,F55,G55),ListaIndicadores!$Z$7:$AD$1345,4,FALSE) -> 101446299
A56: 2049 | B56: Ambiental | C56: IV. LINEAMIENTO DE POLITICA: Promover Ciudades y Comunidades Saludables en armonía con su entorno natural. | D56: AGA.32.4 | E56: Presupuesto anual ejecutado Programa Nacional de Saneamiento Rural (PP 0083) - En Soles | F56: Gobierno Locales | G56: Amazonas | H56: 2018 | I56: 101805331 | J56: Soles | K56: Ministerio de Economía y Finanzas (MEF)- Seguimiento de la Ejecución Presupuestal (Consulta amigable) | L56: Portal de Transparencia Económica | M56: http://apps5.mineco.gob.pe/transparencia/Navegador/default.aspx?y=2015&ap=ActProy | P56: =IFERROR(IF(VLOOKUP(CONCATENATE(E56,F56,G56),ListaIndicadores!$Z$7:$AD$1345,3,FALSE)="","",VLOOKUP(CONCATENATE(E56,F56,G56),ListaIndicadores!$Z$7:$AD$1345,3,FALSE)),"") ->  | Q56: =VLOOKUP(CONCATENATE(E56,F56,G56),ListaIndicadores!$Z$7:$AD$1345,4,FALSE) -> 101446299
A57: 2174 | B57: Ambiental | C57: IV. LINEAMIENTO DE POLITICA: Promover Ciudades y Comunidades Saludables en armonía con su entorno natural. | D57: AGA.32.4 | E57: Presupuesto anual ejecutado Programa Nacional de Saneamiento Rural (PP 0083) - En Soles | F57: Gobierno Nacional | G57: Amazonas | H57: 2014 | I57: 10342525 | J57: Soles | K57: Ministerio de Economía y Finanzas (MEF)- Seguimiento de la Ejecución Presupuestal (Consulta amigable) | L57: Portal de Transparencia Económica | M57: http://apps5.mineco.gob.pe/transparencia/Navegador/default.aspx?y=2015&ap=ActProy | P57: =IFERROR(IF(VLOOKUP(CONCATENATE(E57,F57,G57),ListaIndicadores!$Z$7:$AD$1345,3,FALSE)="","",VLOOKUP(CONCATENATE(E57,F57,G57),ListaIndicadores!$Z$7:$AD$1345,3,FALSE)),"") ->  | Q57: =VLOOKUP(CONCATENATE(E57,F57,G57),ListaIndicadores!$Z$7:$AD$1345,4,FALSE) -> 97214657
A58: 2175 | B58: Ambiental | C58: IV. LINEAMIENTO DE POLITICA: Promover Ciudades y Comunidades Saludables en armonía con su entorno natural. | D58: AGA.32.4 | E58: Presupuesto anual ejecutado Programa Nacional de Saneamiento Rural (PP 0083) - En Soles | F58: Gobierno Nacional | G58: Amazonas | H58: 2015 | I58: 24531627 | J58: Soles | K58: Ministerio de Economía y Finanzas (MEF)- Seguimiento de la Ejecución Presupuestal (Consulta amigable) | L58: Portal de Transparencia Económica | M58: http://apps5.mineco.gob.pe/transparencia/Navegador/default.aspx?y=2015&ap=ActProy | P58: =IFERROR(IF(VLOOKUP(CONCATENATE(E58,F58,G58),ListaIndicadores!$Z$7:$AD$1345,3,FALSE)="","",VLOOKUP(CONCATENATE(E58,F58,G58),ListaIndicadores!$Z$7:$AD$1345,3,FALSE)),"") ->  | Q58: =VLOOKUP(CONCATENATE(E58,F58,G58),ListaIndicadores!$Z$7:$AD$1345,4,FALSE) -> 97214657
A59: 2176 | B59: Ambiental | C59: IV. LINEAMIENTO DE POLITICA: Promover Ciudades y Comunidades Saludables en armonía con su entorno natural. | D59: AGA.32.4 | E59: Presupuesto anual ejecutado Programa Nacional de Saneamiento Rural (PP 0083) - En Soles | F59: Gobierno Nacional | G59: Amazonas | H59: 2016 | I59: 1811456 | J59: Soles | K59: Ministerio de Economía y Finanzas (MEF)- Seguimiento de la Ejecución Presupuestal (Consulta amigable) | L59: Portal de Transparencia Económica | M59: http://apps5.mineco.gob.pe/transparencia/Navegador/default.aspx?y=2015&ap=ActProy | P59: =IFERROR(IF(VLOOKUP(CONCATENATE(E59,F59,G59),ListaIndicadores!$Z$7:$AD$1345,3,FALSE)="","",VLOOKUP(CONCATENATE(E59,F59,G59),ListaIndicadores!$Z$7:$AD$1345,3,FALSE)),"") ->  | Q59: =VLOOKUP(CONCATENATE(E59,F59,G59),ListaIndicadores!$Z$7:$AD$1345,4,FALSE) -> 97214657
A60: 2177 | B60: Ambiental | C60: IV. LINEAMIENTO DE POLITICA: Promover Ciudades y Comunidades Saludables en armonía con su entorno natural. | D60: AGA.32.4 | E60: Presupuesto anual ejecutado Programa Nacional de Saneamiento Rural (PP 0083) - En Soles | F60: Gobierno Nacional | G60: Amazonas | H60: 2017 | I60: 150813841 | J60: Soles | K60: Ministerio de Economía y Finanzas (MEF)- Seguimiento de la Ejecución Presupuestal (Consulta amigable) | L60: Portal de Transparencia Económica | M60: http://apps5.mineco.gob.pe/transparencia/Navegador/default.aspx?y=2015&ap=ActProy | P60: =IFERROR(IF(VLOOKUP(CONCATENATE(E60,F60,G60),ListaIndicadores!$Z$7:$AD$1345,3,FALSE)="","",VLOOKUP(CONCATENATE(E60,F60,G60),ListaIndicadores!$Z$7:$AD$1345,3,FALSE)),"") ->  | Q60: =VLOOKUP(CONCATENATE(E60,F60,G60),ListaIndicadores!$Z$7:$AD$1345,4,FALSE) -> 97214657
A61: 2178 | B61: Ambiental | C61: IV. LINEAMIENTO DE POLITICA: Promover Ciudades y Comunidades Saludables en armonía con su entorno natural. | D61: AGA.32.4 | E61: Presupuesto anual ejecutado Programa Nacional de Saneamiento Rural (PP 0083) - En Soles | F61: Gobierno Nacional | G61: Amazonas | H61: 2018 | I61: 308305339 | J61: Soles | K61: Ministerio de Economía y Finanzas (MEF)- Seguimiento de la Ejecución Presupuestal (Consulta amigable) | L61: Portal de Transparencia Económica | M61: http://apps5.mineco.gob.pe/transparencia/Navegador/default.aspx?y=2015&ap=ActProy | P61: =IFERROR(IF(VLOOKUP(CONCATENATE(E61,F61,G61),ListaIndicadores!$Z$7:$AD$1345,3,FALSE)="","",VLOOKUP(CONCATENATE(E61,F61,G61),ListaIndicadores!$Z$7:$AD$1345,3,FALSE)),"") ->  | Q61: =VLOOKUP(CONCATENATE(E61,F61,G61),ListaIndicadores!$Z$7:$AD$1345,4,FALSE) -> 97214657
A62: 2299 | B62: Ambiental | C62: IV. LINEAMIENTO DE POLITICA: Promover Ciudades y Comunidades Saludables en armonía con su entorno natural. | D62: AGA.32.4 | E62: Presupuesto anual ejecutado Programa Nacional de Saneamiento Rural (PP 0083) - En Soles | F62: Gobierno Regional | G62: Amazonas | H62: 2014 | I62: 85152093 | J62: Soles | K62: Ministerio de Economía y Finanzas (MEF)- Seguimiento de la Ejecución Presupuestal (Consulta amigable) | L62: Portal de Transparencia Económica | M62: http://apps5.mineco.gob.pe/transparencia/Navegador/default.aspx?y=2015&ap=ActProy | P62: =IFERROR(IF(VLOOKUP(CONCATENATE(E62,F62,G62),ListaIndicadores!$Z$7:$AD$1345,3,FALSE)="","",VLOOKUP(CONCATENATE(E62,F62,G62),ListaIndicadores!$Z$7:$AD$1345,3,FALSE)),"") ->  | Q62: =VLOOKUP(CONCATENATE(E62,F62,G62),ListaIndicadores!$Z$7:$AD$1345,4,FALSE) -> -11874396
A63: 2300 | B63: Ambiental | C63: IV. LINEAMIENTO DE POLITICA: Promover Ciudades y Comunidades Saludables en armonía con su entorno natural. | D63: AGA.32.4 | E63: Presupuesto anual ejecutado Programa Nacional de Saneamiento Rural (PP 0083) - En Soles | F63: Gobierno Regional | G63: Amazonas | H63: 2015 | I63: 54183357 | J63: Soles | K63: Ministerio de Economía y Finanzas (MEF)- Seguimiento de la Ejecución Presupuestal (Consulta amigable) | L63: Portal de Transparencia Económica | M63: http://apps5.mineco.gob.pe/transparencia/Navegador/default.aspx?y=2015&ap=ActProy | P63: =IFERROR(IF(VLOOKUP(CONCATENATE(E63,F63,G63),ListaIndicadores!$Z$7:$AD$1345,3,FALSE)="","",VLOOKUP(CONCATENATE(E63,F63,G63),ListaIndicadores!$Z$7:$AD$1345,3,FALSE)),"") ->  | Q63: =VLOOKUP(CONCATENATE(E63,F63,G63),ListaIndicadores!$Z$7:$AD$1345,4,FALSE) -> -11874396
A64: 2301 | B64: Ambiental | C64: IV. LINEAMIENTO DE POLITICA: Promover Ciudades y Comunidades Saludables en armonía con su entorno natural. | D64: AGA.32.4 | E64: Presupuesto anual ejecutado Programa Nacional de Saneamiento Rural (PP 0083) - En Soles | F64: Gobierno Regional | G64: Amazonas | H64: 2016 | I64: 11415656 | J64: Soles | K64: Ministerio de Economía y Finanzas (MEF)- Seguimiento de la Ejecución Presupuestal (Consulta amigable) | L64: Portal de Transparencia Económica | M64: http://apps5.mineco.gob.pe/transparencia/Navegador/default.aspx?y=2015&ap=ActProy | P64: =IFERROR(IF(VLOOKUP(CONCATENATE(E64,F64,G64),ListaIndicadores!$Z$7:$AD$1345,3,FALSE)="","",VLOOKUP(CONCATENATE(E64,F64,G64),ListaIndicadores!$Z$7:$AD$1345,3,FALSE)),"") ->  | Q64: =VLOOKUP(CONCATENATE(E64,F64,G64),ListaIndicadores!$Z$7:$AD$1345,4,FALSE) -> -11874396
A65: 2302 | B65: Ambiental | C65: IV. LINEAMIENTO DE POLITICA: Promover Ciudades y Comunidades Saludables en armonía con su entorno natural. | D65: AGA.32.4 | E65: Presupuesto anual ejecutado Programa Nacional de Saneamiento Rural (PP 0083) - En Soles | F65: Gobierno Regional | G65: Amazonas | H65: 2017 | I65: 15158612 | J65: Soles | K65: Ministerio de Economía y Finanzas (MEF)- Seguimiento de la Ejecución Presupuestal (Consulta amigable) | L65: Portal de Transparencia Económica | M65: http://apps5.mineco.gob.pe/transparencia/Navegador/default.aspx?y=2015&ap=ActProy | P65: =IFERROR(IF(VLOOKUP(CONCATENATE(E65,F65,G65),ListaIndicadores!$Z$7:$AD$1345,3,FALSE)="","",VLOOKUP(CONCATENATE(E65,F65,G65),ListaIndicadores!$Z$7:$AD$1345,3,FALSE)),"") ->  | Q65: =VLOOKUP(CONCATENATE(E65,F65,G65),ListaIndicadores!$Z$7:$AD$1345,4,FALSE) -> -11874396
A66: 2303 | B66: Ambiental | C66: IV. LINEAMIENTO DE POLITICA: Promover Ciudades y Comunidades Saludables en armonía con su entorno natural. | D66: AGA.32.4 | E66: Presupuesto anual ejecutado Programa Nacional de Saneamiento Rural (PP 0083) - En Soles | F66: Gobierno Regional | G66: Amazonas | H66: 2018 | I66: 10827173 | J66: Soles | K66: Ministerio de Economía y Finanzas (MEF)- Seguimiento de la Ejecución Presupuestal (Consulta amigable) | L66: Portal de Transparencia Económica | M66: http://apps5.mineco.gob.pe/transparencia/Navegador/default.aspx?y=2015&ap=ActProy | P66: =IFERROR(IF(VLOOKUP(CONCATENATE(E66,F66,G66),ListaIndicadores!$Z$7:$AD$1345,3,FALSE)="","",VLOOKUP(CONCATENATE(E66,F66,G66),ListaIndicadores!$Z$7:$AD$1345,3,FALSE)),"") ->  | Q66: =VLOOKUP(CONCATENATE(E66,F66,G66),ListaIndicadores!$Z$7:$AD$1345,4,FALSE) -> -11874396
A67: 2432 | B67: Ambiental | C67: IV. LINEAMIENTO DE POLITICA: Promover Ciudades y Comunidades Saludables en armonía con su entorno natural. | D67: AGA.32.5 | E67: Presupuesto anual del Programa Nacional de Saneamiento Urbano del Gobierno Nacional (PP 0082) - Soles | F67: Gobierno Locales | G67: Amazonas | H67: 2014 | I67: Sin datos | J67: Soles | K67: Ministerio de Economía y Finanzas (MEF)- Seguimiento de la Ejecución Presupuestal (Consulta amigable) | L67: Portal de Transparencia Económica | M67: http://apps5.mineco.gob.pe/transparencia/Navegador/default.aspx?y=2015&ap=ActProy | P67: =IFERROR(IF(VLOOKUP(CONCATENATE(E67,F67,G67),ListaIndicadores!$Z$7:$AD$1345,3,FALSE)="","",VLOOKUP(CONCATENATE(E67,F67,G67),ListaIndicadores!$Z$7:$AD$1345,3,FALSE)),"") ->  | Q67: =VLOOKUP(CONCATENATE(E67,F67,G67),ListaIndicadores!$Z$7:$AD$1345,4,FALSE) -> -19411003
A68: 2433 | B68: Ambiental | C68: IV. LINEAMIENTO DE POLITICA: Promover Ciudades y Comunidades Saludables en armonía con su entorno natural. | D68: AGA.32.5 | E68: Presupuesto anual del Programa Nacional de Saneamiento Urbano del Gobierno Nacional (PP 0082) - Soles | F68: Gobierno Locales | G68: Amazonas | H68: 2015 | I68: 32229607 | J68: Soles | K68: Ministerio de Economía y Finanzas (MEF)- Seguimiento de la Ejecución Presupuestal (Consulta amigable) | L68: Portal de Transparencia Económica | M68: http://apps5.mineco.gob.pe/transparencia/Navegador/default.aspx?y=2015&ap=ActProy | P68: =IFERROR(IF(VLOOKUP(CONCATENATE(E68,F68,G68),ListaIndicadores!$Z$7:$AD$1345,3,FALSE)="","",VLOOKUP(CONCATENATE(E68,F68,G68),ListaIndicadores!$Z$7:$AD$1345,3,FALSE)),"") ->  | Q68: =VLOOKUP(CONCATENATE(E68,F68,G68),ListaIndicadores!$Z$7:$AD$1345,4,FALSE) -> -19411003
A69: 2434 | B69: Ambiental | C69: IV. LINEAMIENTO DE POLITICA: Promover Ciudades y Comunidades Saludables en armonía con su entorno natural. | D69: AGA.32.5 | E69: Presupuesto anual del Programa Nacional de Saneamiento Urbano del Gobierno Nacional (PP 0082) - Soles | F69: Gobierno Locales | G69: Amazonas | H69: 2016 | I69: 19318351 | J69: Soles | K69: Ministerio de Economía y Finanzas (MEF)- Seguimiento de la Ejecución Presupuestal (Consulta amigable) | L69: Portal de Transparencia Económica | M69: http://apps5.mineco.gob.pe/transparencia/Navegador/default.aspx?y=2015&ap=ActProy | P69: =IFERROR(IF(VLOOKUP(CONCATENATE(E69,F69,G69),ListaIndicadores!$Z$7:$AD$1345,3,FALSE)="","",VLOOKUP(CONCATENATE(E69,F69,G69),ListaIndicadores!$Z$7:$AD$1345,3,FALSE)),"") ->  | Q69: =VLOOKUP(CONCATENATE(E69,F69,G69),ListaIndicadores!$Z$7:$AD$1345,4,FALSE) -> -19411003
A70: 2435 | B70: Ambiental | C70: IV. LINEAMIENTO DE POLITICA: Promover Ciudades y Comunidades Saludables en armonía con su entorno natural. | D70: AGA.32.5 | E70: Presupuesto anual del Programa Nacional de Saneamiento Urbano del Gobierno Nacional (PP 0082) - Soles | F70: Gobierno Locales | G70: Amazonas | H70: 2017 | I70: 14314057 | J70: Soles | K70: Ministerio de Economía y Finanzas (MEF)- Seguimiento de la Ejecución Presupuestal (Consulta amigable) | L70: Portal de Transparencia Económica | M70: http://apps5.mineco.gob.pe/transparencia/Navegador/default.aspx?y=2015&ap=ActProy | P70: =IFERROR(IF(VLOOKUP(CONCATENATE(E70,F70,G70),ListaIndicadores!$Z$7:$AD$1345,3,FALSE)="","",VLOOKUP(CONCATENATE(E70,F70,G70),ListaIndicadores!$Z$7:$AD$1345,3,FALSE)),"") ->  | Q70: =VLOOKUP(CONCATENATE(E70,F70,G70),ListaIndicadores!$Z$7:$AD$1345,4,FALSE) -> -19411003
A71: 2436 | B71: Ambiental | C71: IV. LINEAMIENTO DE POLITICA: Promover Ciudades y Comunidades Saludables en armonía con su entorno natural. | D71: AGA.32.5 | E71: Presupuesto anual del Programa Nacional de Saneamiento Urbano del Gobierno Nacional (PP 0082) - Soles | F71: Gobierno Locales | G71: Amazonas | H71: 2018 | I71: 8029292 | J71: Soles | K71: Ministerio de Economía y Finanzas (MEF)- Seguimiento de la Ejecución Presupuestal (Consulta amigable) | L71: Portal de Transparencia Económica | M71: http://apps5.mineco.gob.pe/transparencia/Navegador/default.aspx?y=2015&ap=ActProy | P71: =IFERROR(IF(VLOOKUP(CONCATENATE(E71,F71,G71),ListaIndicadores!$Z$7:$AD$1345,3,FALSE)="","",VLOOKUP(CONCATENATE(E71,F71,G71),ListaIndicadores!$Z$7:$AD$1345,3,FALSE)),"") ->  | Q71: =VLOOKUP(CONCATENATE(E71,F71,G71),ListaIndicadores!$Z$7:$AD$1345,4,FALSE) -> -19411003
A72: 2561 | B72: Ambiental | C72: IV. LINEAMIENTO DE POLITICA: Promover Ciudades y Comunidades Saludables en armonía con su entorno natural. | D72: AGA.32.5 | E72: Presupuesto anual del Programa Nacional de Saneamiento Urbano del Gobierno Nacional (PP 0082) - Soles | F72: Gobierno Nacional | G72: Amazonas | H72: 2014 | I72: Sin datos | J72: Soles | K72: Ministerio de Economía y Finanzas (MEF)- Seguimiento de la Ejecución Presupuestal (Consulta amigable) | L72: Portal de Transparencia Económica | M72: http://apps5.mineco.gob.pe/transparencia/Navegador/default.aspx?y=2015&ap=ActProy | P72: =IFERROR(IF(VLOOKUP(CONCATENATE(E72,F72,G72),ListaIndicadores!$Z$7:$AD$1345,3,FALSE)="","",VLOOKUP(CONCATENATE(E72,F72,G72),ListaIndicadores!$Z$7:$AD$1345,3,FALSE)),"") ->  | Q72: =VLOOKUP(CONCATENATE(E72,F72,G72),ListaIndicadores!$Z$7:$AD$1345,4,FALSE) -> -2688167
A73: 2562 | B73: Ambiental | C73: IV. LINEAMIENTO DE POLITICA: Promover Ciudades y Comunidades Saludables en armonía con su entorno natural. | D73: AGA.32.5 | E73: Presupuesto anual del Programa Nacional de Saneamiento Urbano del Gobierno Nacional (PP 0082) - Soles | F73: Gobierno Nacional | G73: Amazonas | H73: 2015 | I73: 3297607 | J73: Soles | K73: Ministerio de Economía y Finanzas (MEF)- Seguimiento de la Ejecución Presupuestal (Consulta amigable) | L73: Portal de Transparencia Económica | M73: http://apps5.mineco.gob.pe/transparencia/Navegador/default.aspx?y=2015&ap=ActProy | P73: =IFERROR(IF(VLOOKUP(CONCATENATE(E73,F73,G73),ListaIndicadores!$Z$7:$AD$1345,3,FALSE)="","",VLOOKUP(CONCATENATE(E73,F73,G73),ListaIndicadores!$Z$7:$AD$1345,3,FALSE)),"") ->  | Q73: =VLOOKUP(CONCATENATE(E73,F73,G73),ListaIndicadores!$Z$7:$AD$1345,4,FALSE) -> -2688167
A74: 2563 | B74: Ambiental | C74: IV. LINEAMIENTO DE POLITICA: Promover Ciudades y Comunidades Saludables en armonía con su entorno natural. | D74: AGA.32.5 | E74: Presupuesto anual del Programa Nacional de Saneamiento Urbano del Gobierno Nacional (PP 0082) - Soles | F74: Gobierno Nacional | G74: Amazonas | H74: 2016 | I74: Sin datos | J74: Soles | K74: Ministerio de Economía y Finanzas (MEF)- Seguimiento de la Ejecución Presupuestal (Consulta amigable) | L74: Portal de Transparencia Económica | M74: http://apps5.mineco.gob.pe/transparencia/Navegador/default.aspx?y=2015&ap=ActProy | P74: =IFERROR(IF(VLOOKUP(CONCATENATE(E74,F74,G74),ListaIndicadores!$Z$7:$AD$1345,3,FALSE)="","",VLOOKUP(CONCATENATE(E74,F74,G74),ListaIndicadores!$Z$7:$AD$1345,3,FALSE)),"") ->  | Q74: =VLOOKUP(CONCATENATE(E74,F74,G74),ListaIndicadores!$Z$7:$AD$1345,4,FALSE) -> -2688167
A75: 2564 | B75: Ambiental | C75: IV. LINEAMIENTO DE POLITICA: Promover Ciudades y Comunidades Saludables en armonía con su entorno natural. | D75: AGA.32.5 | E75: Presupuesto anual del Programa Nacional de Saneamiento Urbano del Gobierno Nacional (PP 0082) - Soles | F75: Gobierno Nacional | G75: Amazonas | H75: 2017 | I75: 564074 | J75: Soles | K75: Ministerio de Economía y Finanzas (MEF)- Seguimiento de la Ejecución Presupuestal (Consulta amigable) | L75: Portal de Transparencia Económica | M75: http://apps5.mineco.gob.pe/transparencia/Navegador/default.aspx?y=2015&ap=ActProy | P75: =IFERROR(IF(VLOOKUP(CONCATENATE(E75,F75,G75),ListaIndicadores!$Z$7:$AD$1345,3,FALSE)="","",VLOOKUP(CONCATENATE(E75,F75,G75),ListaIndicadores!$Z$7:$AD$1345,3,FALSE)),"") ->  | Q75: =VLOOKUP(CONCATENATE(E75,F75,G75),ListaIndicadores!$Z$7:$AD$1345,4,FALSE) -> -2688167
A76: 2565 | B76: Ambiental | C76: IV. LINEAMIENTO DE POLITICA: Promover Ciudades y Comunidades Saludables en armonía con su entorno natural. | D76: AGA.32.5 | E76: Presupuesto anual del Programa Nacional de Saneamiento Urbano del Gobierno Nacional (PP 0082) - Soles | F76: Gobierno Nacional | G76: Amazonas | H76: 2018 | I76: 1135573 | J76: Soles | K76: Ministerio de Economía y Finanzas (MEF)- Seguimiento de la Ejecución Presupuestal (Consulta amigable) | L76: Portal de Transparencia Económica | M76: http://apps5.mineco.gob.pe/transparencia/Navegador/default.aspx?y=2015&ap=ActProy | P76: =IFERROR(IF(VLOOKUP(CONCATENATE(E76,F76,G76),ListaIndicadores!$Z$7:$AD$1345,3,FALSE)="","",VLOOKUP(CONCATENATE(E76,F76,G76),ListaIndicadores!$Z$7:$AD$1345,3,FALSE)),"") ->  | Q76: =VLOOKUP(CONCATENATE(E76,F76,G76),ListaIndicadores!$Z$7:$AD$1345,4,FALSE) -> -2688167
A77: 2690 | B77: Ambiental | C77: IV. LINEAMIENTO DE POLITICA: Promover Ciudades y Comunidades Saludables en armonía con su entorno natural. | D77: AGA.32.5 | E77: Presupuesto anual del Programa Nacional de Saneamiento Urbano del Gobierno Nacional (PP 0082) - Soles | F77: Gobierno Regional | G77: Amazonas | H77: 2014 | I77: 1872469 | J77: Soles | K77: Ministerio de Economía y Finanzas (MEF)- Seguimiento de la Ejecución Presupuestal (Consulta amigable) | L77: Portal de Transparencia Económica | M77: http://apps5.mineco.gob.pe/transparencia/Navegador/default.aspx?y=2015&ap=ActProy | P77: =IFERROR(IF(VLOOKUP(CONCATENATE(E77,F77,G77),ListaIndicadores!$Z$7:$AD$1345,3,FALSE)="","",VLOOKUP(CONCATENATE(E77,F77,G77),ListaIndicadores!$Z$7:$AD$1345,3,FALSE)),"") ->  | Q77: =VLOOKUP(CONCATENATE(E77,F77,G77),ListaIndicadores!$Z$7:$AD$1345,4,FALSE) -> 5158884
A78: 2691 | B78: Ambiental | C78: IV. LINEAMIENTO DE POLITICA: Promover Ciudades y Comunidades Saludables en armonía con su entorno natural. | D78: AGA.32.5 | E78: Presupuesto anual del Programa Nacional de Saneamiento Urbano del Gobierno Nacional (PP 0082) - Soles | F78: Gobierno Regional | G78: Amazonas | H78: 2015 | I78: 419260 | J78: Soles | K78: Ministerio de Economía y Finanzas (MEF)- Seguimiento de la Ejecución Presupuestal (Consulta amigable) | L78: Portal de Transparencia Económica | M78: http://apps5.mineco.gob.pe/transparencia/Navegador/default.aspx?y=2015&ap=ActProy | P78: =IFERROR(IF(VLOOKUP(CONCATENATE(E78,F78,G78),ListaIndicadores!$Z$7:$AD$1345,3,FALSE)="","",VLOOKUP(CONCATENATE(E78,F78,G78),ListaIndicadores!$Z$7:$AD$1345,3,FALSE)),"") ->  | Q78: =VLOOKUP(CONCATENATE(E78,F78,G78),ListaIndicadores!$Z$7:$AD$1345,4,FALSE) -> 5158884
A79: 2692 | B79: Ambiental | C79: IV. LINEAMIENTO DE POLITICA: Promover Ciudades y Comunidades Saludables en armonía con su entorno natural. | D79: AGA.32.5 | E79: Presupuesto anual del Programa Nacional de Saneamiento Urbano del Gobierno Nacional (PP 0082) - Soles | F79: Gobierno Regional | G79: Amazonas | H79: 2016 | I79: 8269 | J79: Soles | K79: Ministerio de Economía y Finanzas (MEF)- Seguimiento de la Ejecución Presupuestal (Consulta amigable) | L79: Portal de Transparencia Económica | M79: http://apps5.mineco.gob.pe/transparencia/Navegador/default.aspx?y=2015&ap=ActProy | P79: =IFERROR(IF(VLOOKUP(CONCATENATE(E79,F79,G79),ListaIndicadores!$Z$7:$AD$1345,3,FALSE)="","",VLOOKUP(CONCATENATE(E79,F79,G79),ListaIndicadores!$Z$7:$AD$1345,3,FALSE)),"") ->  | Q79: =VLOOKUP(CONCATENATE(E79,F79,G79),ListaIndicadores!$Z$7:$AD$1345,4,FALSE) -> 5158884
A80: 2693 | B80: Ambiental | C80: IV. LINEAMIENTO DE POLITICA: Promover Ciudades y Comunidades Saludables en armonía con su entorno natural. | D80: AGA.32.5 | E80: Presupuesto anual del Programa Nacional de Saneamiento Urbano del Gobierno Nacional (PP 0082) - Soles | F80: Gobierno Regional | G80: Amazonas | H80: 2017 | I80: 593608 | J80: Soles | K80: Ministerio de Economía y Finanzas (MEF)- Seguimiento de la Ejecución Presupuestal (Consulta amigable) | L80: Portal de Transparencia Económica | M80: http://apps5.mineco.gob.pe/transparencia/Navegador/default.aspx?y=2015&ap=ActProy | P80: =IFERROR(IF(VLOOKUP(CONCATENATE(E80,F80,G80),ListaIndicadores!$Z$7:$AD$1345,3,FALSE)="","",VLOOKUP(CONCATENATE(E80,F80,G80),ListaIndicadores!$Z$7:$AD$1345,3,FALSE)),"") ->  | Q80: =VLOOKUP(CONCATENATE(E80,F80,G80),ListaIndicadores!$Z$7:$AD$1345,4,FALSE) -> 5158884
A81: 2694 | B81: Ambiental | C81: IV. LINEAMIENTO DE POLITICA: Promover Ciudades y Comunidades Saludables en armonía con su entorno natural. | D81: AGA.32.5 | E81: Presupuesto anual del Programa Nacional de Saneamiento Urbano del Gobierno Nacional (PP 0082) - Soles | F81: Gobierno Regional | G81: Amazonas | H81: 2018 | I81: 953652 | J81: Soles | K81: Ministerio de Economía y Finanzas (MEF)- Seguimiento de la Ejecución Presupuestal (Consulta amigable) | L81: Portal de Transparencia Económica | M81: http://apps5.mineco.gob.pe/transparencia/Navegador/default.aspx?y=2015&ap=ActProy | P81: =IFERROR(IF(VLOOKUP(CONCATENATE(E81,F81,G81),ListaIndicadores!$Z$7:$AD$1345,3,FALSE)="","",VLOOKUP(CONCATENATE(E81,F81,G81),ListaIndicadores!$Z$7:$AD$1345,3,FALSE)),"") ->  | Q81: =VLOOKUP(CONCATENATE(E81,F81,G81),ListaIndicadores!$Z$7:$AD$1345,4,FALSE) -> 5158884
A82: 2887 | B82: Ambiental | C82: IV. LINEAMIENTO DE POLITICA: Promover Ciudades y Comunidades Saludables en armonía con su entorno natural. | D82: AGA.35.1 | E82: Porcentaje Municipalidades cuentan con instrumentos de gestión de Residuos Sólidos - RRSS | F82: Municipalidades cuentan con instrumentos | G82: Amazonas | H82: 2014 | I82: 0.6 | J82: Porcentaje | K82: Instituto Nacional de Estadística e Informática (INEI) - Registro Nacional de Municipalidades (RENAMU) | L82: Instituto Nacional de Estadística e Informática (INEI) - Registro Nacional de Municipalidades (RENAMU) | M82: https://www.inei.gob.pe/media/MenuRecursivo/publicaciones_digitales/Est/Lib1246/index.html | P82: =IFERROR(IF(VLOOKUP(CONCATENATE(E82,F82,G82),ListaIndicadores!$Z$7:$AD$1345,3,FALSE)="","",VLOOKUP(CONCATENATE(E82,F82,G82),ListaIndicadores!$Z$7:$AD$1345,3,FALSE)),"") ->  | Q82: =VLOOKUP(CONCATENATE(E82,F82,G82),ListaIndicadores!$Z$7:$AD$1345,4,FALSE) -> 8
A83: 2888 | B83: Ambiental | C83: IV. LINEAMIENTO DE POLITICA: Promover Ciudades y Comunidades Saludables en armonía con su entorno natural. | D83: AGA.35.1 | E83: Porcentaje Municipalidades cuentan con instrumentos de gestión de Residuos Sólidos - RRSS | F83: Municipalidades cuentan con instrumentos | G83: Amazonas | H83: 2015 | I83: 0.7 | J83: Porcentaje | K83: Instituto Nacional de Estadística e Informática (INEI) - Registro Nacional de Municipalidades (RENAMU) | L83: Instituto Nacional de Estadística e Informática (INEI) - Registro Nacional de Municipalidades (RENAMU) | M83: https://www.inei.gob.pe/media/MenuRecursivo/publicaciones_digitales/Est/Lib1362/index.html | P83: =IFERROR(IF(VLOOKUP(CONCATENATE(E83,F83,G83),ListaIndicadores!$Z$7:$AD$1345,3,FALSE)="","",VLOOKUP(CONCATENATE(E83,F83,G83),ListaIndicadores!$Z$7:$AD$1345,3,FALSE)),"") ->  | Q83: =VLOOKUP(CONCATENATE(E83,F83,G83),ListaIndicadores!$Z$7:$AD$1345,4,FALSE) -> 8
A84: 2889 | B84: Ambiental | C84: IV. LINEAMIENTO DE POLITICA: Promover Ciudades y Comunidades Saludables en armonía con su entorno natural. | D84: AGA.35.1 | E84: Porcentaje Municipalidades cuentan con instrumentos de gestión de Residuos Sólidos - RRSS | F84: Municipalidades cuentan con instrumentos | G84: Amazonas | H84: 2016 | I84: 0.7 | J84: Porcentaje | K84: Instituto Nacional de Estadística e Informática (INEI) - Registro Nacional de Municipalidades (RENAMU) | L84: Instituto Nacional de Estadística e Informática (INEI) - Registro Nacional de Municipalidades (RENAMU) | M84: https://www.inei.gob.pe/media/MenuRecursivo/publicaciones_digitales/Est/Lib1417/index.html | P84: =IFERROR(IF(VLOOKUP(CONCATENATE(E84,F84,G84),ListaIndicadores!$Z$7:$AD$1345,3,FALSE)="","",VLOOKUP(CONCATENATE(E84,F84,G84),ListaIndicadores!$Z$7:$AD$1345,3,FALSE)),"") ->  | Q84: =VLOOKUP(CONCATENATE(E84,F84,G84),ListaIndicadores!$Z$7:$AD$1345,4,FALSE) -> 8
A85: 2890 | B85: Ambiental | C85: IV. LINEAMIENTO DE POLITICA: Promover Ciudades y Comunidades Saludables en armonía con su entorno natural. | D85: AGA.35.1 | E85: Porcentaje Municipalidades cuentan con instrumentos de gestión de Residuos Sólidos - RRSS | F85: Municipalidades cuentan con instrumentos | G85: Amazonas | H85: 2017 | I85: 0.9 | J85: Porcentaje | K85: Instituto Nacional de Estadística e Informática (INEI) - Registro Nacional de Municipalidades (RENAMU) | L85: Instituto Nacional de Estadística e Informática (INEI) - Registro Nacional de Municipalidades (RENAMU) | M85: https://www.inei.gob.pe/media/MenuRecursivo/publicaciones_digitales/Est/Lib1474/index.html | P85: =IFERROR(IF(VLOOKUP(CONCATENATE(E85,F85,G85),ListaIndicadores!$Z$7:$AD$1345,3,FALSE)="","",VLOOKUP(CONCATENATE(E85,F85,G85),ListaIndicadores!$Z$7:$AD$1345,3,FALSE)),"") ->  | Q85: =VLOOKUP(CONCATENATE(E85,F85,G85),ListaIndicadores!$Z$7:$AD$1345,4,FALSE) -> 8
A86: 2891 | B86: Ambiental | C86: IV. LINEAMIENTO DE POLITICA: Promover Ciudades y Comunidades Saludables en armonía con su entorno natural. | D86: AGA.35.1 | E86: Porcentaje Municipalidades cuentan con instrumentos de gestión de Residuos Sólidos - RRSS | F86: Municipalidades cuentan con instrumentos | G86: Amazonas | H86: 2018 | I86: Sin datos | J86: Porcentaje | K86: Instituto Nacional de Estadística e Informática (INEI) - Registro Nacional de Municipalidades (RENAMU) | L86: Instituto Nacional de Estadística e Informática (INEI) - Registro Nacional de Municipalidades (RENAMU) | M86: https://www.inei.gob.pe/media/MenuRecursivo/publicaciones_digitales/Est/Lib1636/index.html | P86: =IFERROR(IF(VLOOKUP(CONCATENATE(E86,F86,G86),ListaIndicadores!$Z$7:$AD$1345,3,FALSE)="","",VLOOKUP(CONCATENATE(E86,F86,G86),ListaIndicadores!$Z$7:$AD$1345,3,FALSE)),"") ->  | Q86: =VLOOKUP(CONCATENATE(E86,F86,G86),ListaIndicadores!$Z$7:$AD$1345,4,FALSE) -> 8
A87: 3022 | B87: Ambiental | C87: IV. LINEAMIENTO DE POLITICA: Promover Ciudades y Comunidades Saludables en armonía con su entorno natural. | D87: AGA.35.1 | E87: Porcentaje Municipalidades cuentan con instrumentos de gestión de Residuos Sólidos - RRSS | F87: Plan de Gestión Ambiental de RRSS | G87: Amazonas | H87: 2014 | I87: 15.5 | J87: Porcentaje | K87: Instituto Nacional de Estadística e Informática (INEI) - Registro Nacional de Municipalidades (RENAMU) | L87: Instituto Nacional de Estadística e Informática (INEI) - Registro Nacional de Municipalidades (RENAMU) | M87: https://www.inei.gob.pe/media/MenuRecursivo/publicaciones_digitales/Est/Lib1246/index.html | P87: =IFERROR(IF(VLOOKUP(CONCATENATE(E87,F87,G87),ListaIndicadores!$Z$7:$AD$1345,3,FALSE)="","",VLOOKUP(CONCATENATE(E87,F87,G87),ListaIndicadores!$Z$7:$AD$1345,3,FALSE)),"") ->  | Q87: =VLOOKUP(CONCATENATE(E87,F87,G87),ListaIndicadores!$Z$7:$AD$1345,4,FALSE) -> -21
A88: 3023 | B88: Ambiental | C88: IV. LINEAMIENTO DE POLITICA: Promover Ciudades y Comunidades Saludables en armonía con su entorno natural. | D88: AGA.35.1 | E88: Porcentaje Municipalidades cuentan con instrumentos de gestión de Residuos Sólidos - RRSS | F88: Plan de Gestión Ambiental de RRSS | G88: Amazonas | H88: 2015 | I88: 25 | J88: Porcentaje | K88: Instituto Nacional de Estadística e Informática (INEI) - Registro Nacional de Municipalidades (RENAMU) | L88: Instituto Nacional de Estadística e Informática (INEI) - Registro Nacional de Municipalidades (RENAMU) | M88: https://www.inei.gob.pe/media/MenuRecursivo/publicaciones_digitales/Est/Lib1362/index.html | P88: =IFERROR(IF(VLOOKUP(CONCATENATE(E88,F88,G88),ListaIndicadores!$Z$7:$AD$1345,3,FALSE)="","",VLOOKUP(CONCATENATE(E88,F88,G88),ListaIndicadores!$Z$7:$AD$1345,3,FALSE)),"") ->  | Q88: =VLOOKUP(CONCATENATE(E88,F88,G88),ListaIndicadores!$Z$7:$AD$1345,4,FALSE) -> -21
A89: 3024 | B89: Ambiental | C89: IV. LINEAMIENTO DE POLITICA: Promover Ciudades y Comunidades Saludables en armonía con su entorno natural. | D89: AGA.35.1 | E89: Porcentaje Municipalidades cuentan con instrumentos de gestión de Residuos Sólidos - RRSS | F89: Plan de Gestión Ambiental de RRSS | G89: Amazonas | H89: 2016 | I89: 29.8 | J89: Porcentaje | K89: Instituto Nacional de Estadística e Informática (INEI) - Registro Nacional de Municipalidades (RENAMU) | L89: Instituto Nacional de Estadística e Informática (INEI) - Registro Nacional de Municipalidades (RENAMU) | M89: https://www.inei.gob.pe/media/MenuRecursivo/publicaciones_digitales/Est/Lib1417/index.html | P89: =IFERROR(IF(VLOOKUP(CONCATENATE(E89,F89,G89),ListaIndicadores!$Z$7:$AD$1345,3,FALSE)="","",VLOOKUP(CONCATENATE(E89,F89,G89),ListaIndicadores!$Z$7:$AD$1345,3,FALSE)),"") ->  | Q89: =VLOOKUP(CONCATENATE(E89,F89,G89),ListaIndicadores!$Z$7:$AD$1345,4,FALSE) -> -21
A90: 3025 | B90: Ambiental | C90: IV. LINEAMIENTO DE POLITICA: Promover Ciudades y Comunidades Saludables en armonía con su entorno natural. | D90: AGA.35.1 | E90: Porcentaje Municipalidades cuentan con instrumentos de gestión de Residuos Sólidos - RRSS | F90: Plan de Gestión Ambiental de RRSS | G90: Amazonas | H90: 2017 | I90: 8.3 | J90: Porcentaje | K90: Instituto Nacional de Estadística e Informática (INEI) - Registro Nacional de Municipalidades (RENAMU) | L90: Instituto Nacional de Estadística e Informática (INEI) - Registro Nacional de Municipalidades (RENAMU) | M90: https://www.inei.gob.pe/media/MenuRecursivo/publicaciones_digitales/Est/Lib1474/index.html | P90: =IFERROR(IF(VLOOKUP(CONCATENATE(E90,F90,G90),ListaIndicadores!$Z$7:$AD$1345,3,FALSE)="","",VLOOKUP(CONCATENATE(E90,F90,G90),ListaIndicadores!$Z$7:$AD$1345,3,FALSE)),"") ->  | Q90: =VLOOKUP(CONCATENATE(E90,F90,G90),ListaIndicadores!$Z$7:$AD$1345,4,FALSE) -> -21
A91: 3026 | B91: Ambiental | C91: IV. LINEAMIENTO DE POLITICA: Promover Ciudades y Comunidades Saludables en armonía con su entorno natural. | D91: AGA.35.1 | E91: Porcentaje Municipalidades cuentan con instrumentos de gestión de Residuos Sólidos - RRSS | F91: Plan de Gestión Ambiental de RRSS | G91: Amazonas | H91: 2018 | I91: Sin datos | J91: Porcentaje | K91: Instituto Nacional de Estadística e Informática (INEI) - Registro Nacional de Municipalidades (RENAMU) | L91: Instituto Nacional de Estadística e Informática (INEI) - Registro Nacional de Municipalidades (RENAMU) | M91: https://www.inei.gob.pe/media/MenuRecursivo/publicaciones_digitales/Est/Lib1636/index.html | P91: =IFERROR(IF(VLOOKUP(CONCATENATE(E91,F91,G91),ListaIndicadores!$Z$7:$AD$1345,3,FALSE)="","",VLOOKUP(CONCATENATE(E91,F91,G91),ListaIndicadores!$Z$7:$AD$1345,3,FALSE)),"") ->  | Q91: =VLOOKUP(CONCATENATE(E91,F91,G91),ListaIndicadores!$Z$7:$AD$1345,4,FALSE) -> -21
A92: 3157 | B92: Ambiental | C92: IV. LINEAMIENTO DE POLITICA: Promover Ciudades y Comunidades Saludables en armonía con su entorno natural. | D92: AGA.35.1 | E92: Porcentaje Municipalidades cuentan con instrumentos de gestión de Residuos Sólidos - RRSS | F92: Plan de Manejo Distrital de RRSS | G92: Amazonas | H92: 2014 | I92: 21.4 | J92: Porcentaje | K92: Instituto Nacional de Estadística e Informática (INEI) - Registro Nacional de Municipalidades (RENAMU) | L92: Instituto Nacional de Estadística e Informática (INEI) - Registro Nacional de Municipalidades (RENAMU) | M92: https://www.inei.gob.pe/media/MenuRecursivo/publicaciones_digitales/Est/Lib1246/index.html | P92: =IFERROR(IF(VLOOKUP(CONCATENATE(E92,F92,G92),ListaIndicadores!$Z$7:$AD$1345,3,FALSE)="","",VLOOKUP(CONCATENATE(E92,F92,G92),ListaIndicadores!$Z$7:$AD$1345,3,FALSE)),"") ->  | Q92: =VLOOKUP(CONCATENATE(E92,F92,G92),ListaIndicadores!$Z$7:$AD$1345,4,FALSE) -> 20
A93: 3158 | B93: Ambiental | C93: IV. LINEAMIENTO DE POLITICA: Promover Ciudades y Comunidades Saludables en armonía con su entorno natural. | D93: AGA.35.1 | E93: Porcentaje Municipalidades cuentan con instrumentos de gestión de Residuos Sólidos - RRSS | F93: Plan de Manejo Distrital de RRSS | G93: Amazonas | H93: 2015 | I93: 42.9 | J93: Porcentaje | K93: Instituto Nacional de Estadística e Informática (INEI) - Registro Nacional de Municipalidades (RENAMU) | L93: Instituto Nacional de Estadística e Informática (INEI) - Registro Nacional de Municipalidades (RENAMU) | M93: https://www.inei.gob.pe/media/MenuRecursivo/publicaciones_digitales/Est/Lib1362/index.html | P93: =IFERROR(IF(VLOOKUP(CONCATENATE(E93,F93,G93),ListaIndicadores!$Z$7:$AD$1345,3,FALSE)="","",VLOOKUP(CONCATENATE(E93,F93,G93),ListaIndicadores!$Z$7:$AD$1345,3,FALSE)),"") ->  | Q93: =VLOOKUP(CONCATENATE(E93,F93,G93),ListaIndicadores!$Z$7:$AD$1345,4,FALSE) -> 20
A94: 3159 | B94: Ambiental | C94: IV. LINEAMIENTO DE POLITICA: Promover Ciudades y Comunidades Saludables en armonía con su entorno natural. | D94: AGA.35.1 | E94: Porcentaje Municipalidades cuentan con instrumentos de gestión de Residuos Sólidos - RRSS | F94: Plan de Manejo Distrital de RRSS | G94: Amazonas | H94: 2016 | I94: 35.7 | J94: Porcentaje | K94: Instituto Nacional de Estadística e Informática (INEI) - Registro Nacional de Municipalidades (RENAMU) | L94: Instituto Nacional de Estadística e Informática (INEI) - Registro Nacional de Municipalidades (RENAMU) | M94: https://www.inei.gob.pe/media/MenuRecursivo/publicaciones_digitales/Est/Lib1417/index.html | P94: =IFERROR(IF(VLOOKUP(CONCATENATE(E94,F94,G94),ListaIndicadores!$Z$7:$AD$1345,3,FALSE)="","",VLOOKUP(CONCATENATE(E94,F94,G94),ListaIndicadores!$Z$7:$AD$1345,3,FALSE)),"") ->  | Q94: =VLOOKUP(CONCATENATE(E94,F94,G94),ListaIndicadores!$Z$7:$AD$1345,4,FALSE) -> 20
A95: 3160 | B95: Ambiental | C95: IV. LINEAMIENTO DE POLITICA: Promover Ciudades y Comunidades Saludables en armonía con su entorno natural. | D95: AGA.35.1 | E95: Porcentaje Municipalidades cuentan con instrumentos de gestión de Residuos Sólidos - RRSS | F95: Plan de Manejo Distrital de RRSS | G95: Amazonas | H95: 2017 | I95: 85.7 | J95: Porcentaje | K95: Instituto Nacional de Estadística e Informática (INEI) - Registro Nacional de Municipalidades (RENAMU) | L95: Instituto Nacional de Estadística e Informática (INEI) - Registro Nacional de Municipalidades (RENAMU) | M95: https://www.inei.gob.pe/media/MenuRecursivo/publicaciones_digitales/Est/Lib1474/index.html | P95: =IFERROR(IF(VLOOKUP(CONCATENATE(E95,F95,G95),ListaIndicadores!$Z$7:$AD$1345,3,FALSE)="","",VLOOKUP(CONCATENATE(E95,F95,G95),ListaIndicadores!$Z$7:$AD$1345,3,FALSE)),"") ->  | Q95: =VLOOKUP(CONCATENATE(E95,F95,G95),ListaIndicadores!$Z$7:$AD$1345,4,FALSE) -> 20
A96: 3161 | B96: Ambiental | C96: IV. LINEAMIENTO DE POLITICA: Promover Ciudades y Comunidades Saludables en armonía con su entorno natural. | D96: AGA.35.1 | E96: Porcentaje Municipalidades cuentan con instrumentos de gestión de Residuos Sólidos - RRSS | F96: Plan de Manejo Distrital de RRSS | G96: Amazonas | H96: 2018 | I96: Sin datos | J96: Porcentaje | K96: Instituto Nacional de Estadística e Informática (INEI) - Registro Nacional de Municipalidades (RENAMU) | L96: Instituto Nacional de Estadística e Informática (INEI) - Registro Nacional de Municipalidades (RENAMU) | M96: https://www.inei.gob.pe/media/MenuRecursivo/publicaciones_digitales/Est/Lib1636/index.html | P96: =IFERROR(IF(VLOOKUP(CONCATENATE(E96,F96,G96),ListaIndicadores!$Z$7:$AD$1345,3,FALSE)="","",VLOOKUP(CONCATENATE(E96,F96,G96),ListaIndicadores!$Z$7:$AD$1345,3,FALSE)),"") ->  | Q96: =VLOOKUP(CONCATENATE(E96,F96,G96),ListaIndicadores!$Z$7:$AD$1345,4,FALSE) -> 20
A97: 3296 | B97: Ambiental | C97: IV. LINEAMIENTO DE POLITICA: Promover Ciudades y Comunidades Saludables en armonía con su entorno natural. | D97: AGA.35.1 | E97: Porcentaje Municipalidades cuentan con instrumentos de gestión de Residuos Sólidos - RRSS | F97: Programa de Transformación de RRSS | G97: Amazonas | H97: 2014 | I97: 4.8 | J97: Porcentaje | K97: Instituto Nacional de Estadística e Informática (INEI) - Registro Nacional de Municipalidades (RENAMU) | L97: Instituto Nacional de Estadística e Informática (INEI) - Registro Nacional de Municipalidades (RENAMU) | M97: https://www.inei.gob.pe/media/MenuRecursivo/publicaciones_digitales/Est/Lib1246/index.html | P97: =IFERROR(IF(VLOOKUP(CONCATENATE(E97,F97,G97),ListaIndicadores!$Z$7:$AD$1345,3,FALSE)="","",VLOOKUP(CONCATENATE(E97,F97,G97),ListaIndicadores!$Z$7:$AD$1345,3,FALSE)),"") ->  | Q97: =VLOOKUP(CONCATENATE(E97,F97,G97),ListaIndicadores!$Z$7:$AD$1345,4,FALSE) -> 3
A98: 3297 | B98: Ambiental | C98: IV. LINEAMIENTO DE POLITICA: Promover Ciudades y Comunidades Saludables en armonía con su entorno natural. | D98: AGA.35.1 | E98: Porcentaje Municipalidades cuentan con instrumentos de gestión de Residuos Sólidos - RRSS | F98: Programa de Transformación de RRSS | G98: Amazonas | H98: 2015 | I98: 4.8 | J98: Porcentaje | K98: Instituto Nacional de Estadística e Informática (INEI) - Registro Nacional de Municipalidades (RENAMU) | L98: Instituto Nacional de Estadística e Informática (INEI) - Registro Nacional de Municipalidades (RENAMU) | M98: https://www.inei.gob.pe/media/MenuRecursivo/publicaciones_digitales/Est/Lib1362/index.html | P98: =IFERROR(IF(VLOOKUP(CONCATENATE(E98,F98,G98),ListaIndicadores!$Z$7:$AD$1345,3,FALSE)="","",VLOOKUP(CONCATENATE(E98,F98,G98),ListaIndicadores!$Z$7:$AD$1345,3,FALSE)),"") ->  | Q98: =VLOOKUP(CONCATENATE(E98,F98,G98),ListaIndicadores!$Z$7:$AD$1345,4,FALSE) -> 3
A99: 3298 | B99: Ambiental | C99: IV. LINEAMIENTO DE POLITICA: Promover Ciudades y Comunidades Saludables en armonía con su entorno natural. | D99: AGA.35.1 | E99: Porcentaje Municipalidades cuentan con instrumentos de gestión de Residuos Sólidos - RRSS | F99: Programa de Transformación de RRSS | G99: Amazonas | H99: 2016 | I99: 1.2 | J99: Porcentaje | K99: Instituto Nacional de Estadística e Informática (INEI) - Registro Nacional de Municipalidades (RENAMU) | L99: Instituto Nacional de Estadística e Informática (INEI) - Registro Nacional de Municipalidades (RENAMU) | M99: https://www.inei.gob.pe/media/MenuRecursivo/publicaciones_digitales/Est/Lib1417/index.html | P99: =IFERROR(IF(VLOOKUP(CONCATENATE(E99,F99,G99),ListaIndicadores!$Z$7:$AD$1345,3,FALSE)="","",VLOOKUP(CONCATENATE(E99,F99,G99),ListaIndicadores!$Z$7:$AD$1345,3,FALSE)),"") ->  | Q99: =VLOOKUP(CONCATENATE(E99,F99,G99),ListaIndicadores!$Z$7:$AD$1345,4,FALSE) -> 3
A100: 3299 | B100: Ambiental | C100: IV. LINEAMIENTO DE POLITICA: Promover Ciudades y Comunidades Saludables en armonía con su entorno natural. | D100: AGA.35.1 | E100: Porcentaje Municipalidades cuentan con instrumentos de gestión de Residuos Sólidos - RRSS | F100: Programa de Transformación de RRSS | G100: Amazonas | H100: 2017 | I100: 0 | J100: Porcentaje | K100: Instituto Nacional de Estadística e Informática (INEI) - Registro Nacional de Municipalidades (RENAMU) | L100: Instituto Nacional de Estadística e Informática (INEI) - Registro Nacional de Municipalidades (RENAMU) | M100: https://www.inei.gob.pe/media/MenuRecursivo/publicaciones_digitales/Est/Lib1474/index.html | P100: =IFERROR(IF(VLOOKUP(CONCATENATE(E100,F100,G100),ListaIndicadores!$Z$7:$AD$1345,3,FALSE)="","",VLOOKUP(CONCATENATE(E100,F100,G100),ListaIndicadores!$Z$7:$AD$1345,3,FALSE)),"") ->  | Q100: =VLOOKUP(CONCATENATE(E100,F100,G100),ListaIndicadores!$Z$7:$AD$1345,4,FALSE) -> 3
A101: 3300 | B101: Ambiental | C101: IV. LINEAMIENTO DE POLITICA: Promover Ciudades y Comunidades Saludables en armonía con su entorno natural. | D101: AGA.35.1 | E101: Porcentaje Municipalidades cuentan con instrumentos de gestión de Residuos Sólidos - RRSS | F101: Programa de Transformación de RRSS | G101: Amazonas | H101: 2018 | I101: Sin datos | J101: Porcentaje | K101: Instituto Nacional de Estadística e Informática (INEI) - Registro Nacional de Municipalidades (RENAMU) | L101: Instituto Nacional de Estadística e Informática (INEI) - Registro Nacional de Municipalidades (RENAMU) | M101: https://www.inei.gob.pe/media/MenuRecursivo/publicaciones_digitales/Est/Lib1636/index.html | P101: =IFERROR(IF(VLOOKUP(CONCATENATE(E101,F101,G101),ListaIndicadores!$Z$7:$AD$1345,3,FALSE)="","",VLOOKUP(CONCATENATE(E101,F101,G101),ListaIndicadores!$Z$7:$AD$1345,3,FALSE)),"") ->  | Q101: =VLOOKUP(CONCATENATE(E101,F101,G101),ListaIndicadores!$Z$7:$AD$1345,4,FALSE) -> 3
A102: 3435 | B102: Ambiental | C102: IV. LINEAMIENTO DE POLITICA: Promover Ciudades y Comunidades Saludables en armonía con su entorno natural. | D102: AGA.35.1 | E102: Porcentaje Municipalidades cuentan con instrumentos de gestión de Residuos Sólidos - RRSS | F102: Sistema de Recojo de RRSS | G102: Amazonas | H102: 2014 | I102: 40.5 | J102: Porcentaje | K102: Instituto Nacional de Estadística e Informática (INEI) - Registro Nacional de Municipalidades (RENAMU) | L102: Instituto Nacional de Estadística e Informática (INEI) - Registro Nacional de Municipalidades (RENAMU) | M102: https://www.inei.gob.pe/media/MenuRecursivo/publicaciones_digitales/Est/Lib1246/index.html | P102: =IFERROR(IF(VLOOKUP(CONCATENATE(E102,F102,G102),ListaIndicadores!$Z$7:$AD$1345,3,FALSE)="","",VLOOKUP(CONCATENATE(E102,F102,G102),ListaIndicadores!$Z$7:$AD$1345,3,FALSE)),"") ->  | Q102: =VLOOKUP(CONCATENATE(E102,F102,G102),ListaIndicadores!$Z$7:$AD$1345,4,FALSE) -> -57
A103: 3436 | B103: Ambiental | C103: IV. LINEAMIENTO DE POLITICA: Promover Ciudades y Comunidades Saludables en armonía con su entorno natural. | D103: AGA.35.1 | E103: Porcentaje Municipalidades cuentan con instrumentos de gestión de Residuos Sólidos - RRSS | F103: Sistema de Recojo de RRSS | G103: Amazonas | H103: 2015 | I103: 48.8 | J103: Porcentaje | K103: Instituto Nacional de Estadística e Informática (INEI) - Registro Nacional de Municipalidades (RENAMU) | L103: Instituto Nacional de Estadística e Informática (INEI) - Registro Nacional de Municipalidades (RENAMU) | M103: https://www.inei.gob.pe/media/MenuRecursivo/publicaciones_digitales/Est/Lib1362/index.html | P103: =IFERROR(IF(VLOOKUP(CONCATENATE(E103,F103,G103),ListaIndicadores!$Z$7:$AD$1345,3,FALSE)="","",VLOOKUP(CONCATENATE(E103,F103,G103),ListaIndicadores!$Z$7:$AD$1345,3,FALSE)),"") ->  | Q103: =VLOOKUP(CONCATENATE(E103,F103,G103),ListaIndicadores!$Z$7:$AD$1345,4,FALSE) -> -57
A104: 3437 | B104: Ambiental | C104: IV. LINEAMIENTO DE POLITICA: Promover Ciudades y Comunidades Saludables en armonía con su entorno natural. | D104: AGA.35.1 | E104: Porcentaje Municipalidades cuentan con instrumentos de gestión de Residuos Sólidos - RRSS | F104: Sistema de Recojo de RRSS | G104: Amazonas | H104: 2016 | I104: 54.8 | J104: Porcentaje | K104: Instituto Nacional de Estadística e Informática (INEI) - Registro Nacional de Municipalidades (RENAMU) | L104: Instituto Nacional de Estadística e Informática (INEI) - Registro Nacional de Municipalidades (RENAMU) | M104: https://www.inei.gob.pe/media/MenuRecursivo/publicaciones_digitales/Est/Lib1417/index.html | P104: =IFERROR(IF(VLOOKUP(CONCATENATE(E104,F104,G104),ListaIndicadores!$Z$7:$AD$1345,3,FALSE)="","",VLOOKUP(CONCATENATE(E104,F104,G104),ListaIndicadores!$Z$7:$AD$1345,3,FALSE)),"") ->  | Q104: =VLOOKUP(CONCATENATE(E104,F104,G104),ListaIndicadores!$Z$7:$AD$1345,4,FALSE) -> -57
A105: 3438 | B105: Ambiental | C105: IV. LINEAMIENTO DE POLITICA: Promover Ciudades y Comunidades Saludables en armonía con su entorno natural. | D105: AGA.35.1 | E105: Porcentaje Municipalidades cuentan con instrumentos de gestión de Residuos Sólidos - RRSS | F105: Sistema de Recojo de RRSS | G105: Amazonas | H105: 2017 | I105: 14.3 | J105: Porcentaje | K105: Instituto Nacional de Estadística e Informática (INEI) - Registro Nacional de Municipalidades (RENAMU) | L105: Instituto Nacional de Estadística e Informática (INEI) - Registro Nacional de Municipalidades (RENAMU) | M105: https://www.inei.gob.pe/media/MenuRecursivo/publicaciones_digitales/Est/Lib1474/index.html | P105: =IFERROR(IF(VLOOKUP(CONCATENATE(E105,F105,G105),ListaIndicadores!$Z$7:$AD$1345,3,FALSE)="","",VLOOKUP(CONCATENATE(E105,F105,G105),ListaIndicadores!$Z$7:$AD$1345,3,FALSE)),"") ->  | Q105: =VLOOKUP(CONCATENATE(E105,F105,G105),ListaIndicadores!$Z$7:$AD$1345,4,FALSE) -> -57
A106: 3439 | B106: Ambiental | C106: IV. LINEAMIENTO DE POLITICA: Promover Ciudades y Comunidades Saludables en armonía con su entorno natural. | D106: AGA.35.1 | E106: Porcentaje Municipalidades cuentan con instrumentos de gestión de Residuos Sólidos - RRSS | F106: Sistema de Recojo de RRSS | G106: Amazonas | H106: 2018 | I106: Sin datos | J106: Porcentaje | K106: Instituto Nacional de Estadística e Informática (INEI) - Registro Nacional de Municipalidades (RENAMU) | L106: Instituto Nacional de Estadística e Informática (INEI) - Registro Nacional de Municipalidades (RENAMU) | M106: https://www.inei.gob.pe/media/MenuRecursivo/publicaciones_digitales/Est/Lib1636/index.html | P106: =IFERROR(IF(VLOOKUP(CONCATENATE(E106,F106,G106),ListaIndicadores!$Z$7:$AD$1345,3,FALSE)="","",VLOOKUP(CONCATENATE(E106,F106,G106),ListaIndicadores!$Z$7:$AD$1345,3,FALSE)),"") ->  | Q106: =VLOOKUP(CONCATENATE(E106,F106,G106),ListaIndicadores!$Z$7:$AD$1345,4,FALSE) -> -57
A107: 3570 | B107: Ambiental | C107: IV. LINEAMIENTO DE POLITICA: Promover Ciudades y Comunidades Saludables en armonía con su entorno natural. | D107: AGA.35.2. | E107: Porcentaje Municipalidades informan que cuentan con Relleno sanitario o reciclan los RRSS | F107: Municipalidades que Reciclan | G107: Amazonas | H107: 2014 | I107: 20.2 | J107: Porcentaje | K107: Instituto Nacional de Estadística e Informática (INEI) - Registro Nacional de Municipalidades (RENAMU) | L107: Instituto Nacional de Estadística e Informática (INEI) - Registro Nacional de Municipalidades (RENAMU) | M107: https://www.inei.gob.pe/media/MenuRecursivo/publicaciones_digitales/Est/Lib1246/index.html | P107: =IFERROR(IF(VLOOKUP(CONCATENATE(E107,F107,G107),ListaIndicadores!$Z$7:$AD$1345,3,FALSE)="","",VLOOKUP(CONCATENATE(E107,F107,G107),ListaIndicadores!$Z$7:$AD$1345,3,FALSE)),"") ->  | Q107: =VLOOKUP(CONCATENATE(E107,F107,G107),ListaIndicadores!$Z$7:$AD$1345,4,FALSE) -> 7
A108: 3571 | B108: Ambiental | C108: IV. LINEAMIENTO DE POLITICA: Promover Ciudades y Comunidades Saludables en armonía con su entorno natural. | D108: AGA.35.2. | E108: Porcentaje Municipalidades informan que cuentan con Relleno sanitario o reciclan los RRSS | F108: Municipalidades que Reciclan | G108: Amazonas | H108: 2015 | I108: 16.7 | J108: Porcentaje | K108: Instituto Nacional de Estadística e Informática (INEI) - Registro Nacional de Municipalidades (RENAMU) | L108: Instituto Nacional de Estadística e Informática (INEI) - Registro Nacional de Municipalidades (RENAMU) | M108: https://www.inei.gob.pe/media/MenuRecursivo/publicaciones_digitales/Est/Lib1362/index.html | P108: =IFERROR(IF(VLOOKUP(CONCATENATE(E108,F108,G108),ListaIndicadores!$Z$7:$AD$1345,3,FALSE)="","",VLOOKUP(CONCATENATE(E108,F108,G108),ListaIndicadores!$Z$7:$AD$1345,3,FALSE)),"") ->  | Q108: =VLOOKUP(CONCATENATE(E108,F108,G108),ListaIndicadores!$Z$7:$AD$1345,4,FALSE) -> 7
A109: 3572 | B109: Ambiental | C109: IV. LINEAMIENTO DE POLITICA: Promover Ciudades y Comunidades Saludables en armonía con su entorno natural. | D109: AGA.35.2. | E109: Porcentaje Municipalidades informan que cuentan con Relleno sanitario o reciclan los RRSS | F109: Municipalidades que Reciclan | G109: Amazonas | H109: 2016 | I109: 25 | J109: Porcentaje | K109: Instituto Nacional de Estadística e Informática (INEI) - Registro Nacional de Municipalidades (RENAMU) | L109: Instituto Nacional de Estadística e Informática (INEI) - Registro Nacional de Municipalidades (RENAMU) | M109: https://www.inei.gob.pe/media/MenuRecursivo/publicaciones_digitales/Est/Lib1417/index.html | P109: =IFERROR(IF(VLOOKUP(CONCATENATE(E109,F109,G109),ListaIndicadores!$Z$7:$AD$1345,3,FALSE)="","",VLOOKUP(CONCATENATE(E109,F109,G109),ListaIndicadores!$Z$7:$AD$1345,3,FALSE)),"") ->  | Q109: =VLOOKUP(CONCATENATE(E109,F109,G109),ListaIndicadores!$Z$7:$AD$1345,4,FALSE) -> 7
A110: 3573 | B110: Ambiental | C110: IV. LINEAMIENTO DE POLITICA: Promover Ciudades y Comunidades Saludables en armonía con su entorno natural. | D110: AGA.35.2. | E110: Porcentaje Municipalidades informan que cuentan con Relleno sanitario o reciclan los RRSS | F110: Municipalidades que Reciclan | G110: Amazonas | H110: 2017 | I110: 16.7 | J110: Porcentaje | K110: Instituto Nacional de Estadística e Informática (INEI) - Registro Nacional de Municipalidades (RENAMU) | L110: Instituto Nacional de Estadística e Informática (INEI) - Registro Nacional de Municipalidades (RENAMU) | M110: https://www.inei.gob.pe/media/MenuRecursivo/publicaciones_digitales/Est/Lib1474/index.html | P110: =IFERROR(IF(VLOOKUP(CONCATENATE(E110,F110,G110),ListaIndicadores!$Z$7:$AD$1345,3,FALSE)="","",VLOOKUP(CONCATENATE(E110,F110,G110),ListaIndicadores!$Z$7:$AD$1345,3,FALSE)),"") ->  | Q110: =VLOOKUP(CONCATENATE(E110,F110,G110),ListaIndicadores!$Z$7:$AD$1345,4,FALSE) -> 7
A111: 3574 | B111: Ambiental | C111: IV. LINEAMIENTO DE POLITICA: Promover Ciudades y Comunidades Saludables en armonía con su entorno natural. | D111: AGA.35.2. | E111: Porcentaje Municipalidades informan que cuentan con Relleno sanitario o reciclan los RRSS | F111: Municipalidades que Reciclan | G111: Amazonas | H111: 2018 | I111: Sin datos | J111: Porcentaje | K111: Instituto Nacional de Estadística e Informática (INEI) - Registro Nacional de Municipalidades (RENAMU) | L111: Instituto Nacional de Estadística e Informática (INEI) - Registro Nacional de Municipalidades (RENAMU) | M111: https://www.inei.gob.pe/media/MenuRecursivo/publicaciones_digitales/Est/Lib1636/index.html | P111: =IFERROR(IF(VLOOKUP(CONCATENATE(E111,F111,G111),ListaIndicadores!$Z$7:$AD$1345,3,FALSE)="","",VLOOKUP(CONCATENATE(E111,F111,G111),ListaIndicadores!$Z$7:$AD$1345,3,FALSE)),"") ->  | Q111: =VLOOKUP(CONCATENATE(E111,F111,G111),ListaIndicadores!$Z$7:$AD$1345,4,FALSE) -> 7
A112: 3713 | B112: Ambiental | C112: IV. LINEAMIENTO DE POLITICA: Promover Ciudades y Comunidades Saludables en armonía con su entorno natural. | D112: AGA.35.2. | E112: Porcentaje Municipalidades informan que cuentan con Relleno sanitario o reciclan los RRSS | F112: Municipalidades tienen Relleno sanitario | G112: Amazonas | H112: 2014 | I112: 25 | J112: Porcentaje | K112: Instituto Nacional de Estadística e Informática (INEI) - Registro Nacional de Municipalidades (RENAMU) | L112: Instituto Nacional de Estadística e Informática (INEI) - Registro Nacional de Municipalidades (RENAMU) | M112: https://www.inei.gob.pe/media/MenuRecursivo/publicaciones_digitales/Est/Lib1246/index.html | P112: =IFERROR(IF(VLOOKUP(CONCATENATE(E112,F112,G112),ListaIndicadores!$Z$7:$AD$1345,3,FALSE)="","",VLOOKUP(CONCATENATE(E112,F112,G112),ListaIndicadores!$Z$7:$AD$1345,3,FALSE)),"") ->  | Q112: =VLOOKUP(CONCATENATE(E112,F112,G112),ListaIndicadores!$Z$7:$AD$1345,4,FALSE) -> 51
A113: 3714 | B113: Ambiental | C113: IV. LINEAMIENTO DE POLITICA: Promover Ciudades y Comunidades Saludables en armonía con su entorno natural. | D113: AGA.35.2. | E113: Porcentaje Municipalidades informan que cuentan con Relleno sanitario o reciclan los RRSS | F113: Municipalidades tienen Relleno sanitario | G113: Amazonas | H113: 2015 | I113: 22.6 | J113: Porcentaje | K113: Instituto Nacional de Estadística e Informática (INEI) - Registro Nacional de Municipalidades (RENAMU) | L113: Instituto Nacional de Estadística e Informática (INEI) - Registro Nacional de Municipalidades (RENAMU) | M113: https://www.inei.gob.pe/media/MenuRecursivo/publicaciones_digitales/Est/Lib1362/index.html | P113: =IFERROR(IF(VLOOKUP(CONCATENATE(E113,F113,G113),ListaIndicadores!$Z$7:$AD$1345,3,FALSE)="","",VLOOKUP(CONCATENATE(E113,F113,G113),ListaIndicadores!$Z$7:$AD$1345,3,FALSE)),"") ->  | Q113: =VLOOKUP(CONCATENATE(E113,F113,G113),ListaIndicadores!$Z$7:$AD$1345,4,FALSE) -> 51
A114: 3715 | B114: Ambiental | C114: IV. LINEAMIENTO DE POLITICA: Promover Ciudades y Comunidades Saludables en armonía con su entorno natural. | D114: AGA.35.2. | E114: Porcentaje Municipalidades informan que cuentan con Relleno sanitario o reciclan los RRSS | F114: Municipalidades tienen Relleno sanitario | G114: Amazonas | H114: 2016 | I114: 22.6 | J114: Porcentaje | K114: Instituto Nacional de Estadística e Informática (INEI) - Registro Nacional de Municipalidades (RENAMU) | L114: Instituto Nacional de Estadística e Informática (INEI) - Registro Nacional de Municipalidades (RENAMU) | M114: https://www.inei.gob.pe/media/MenuRecursivo/publicaciones_digitales/Est/Lib1417/index.html | P114: =IFERROR(IF(VLOOKUP(CONCATENATE(E114,F114,G114),ListaIndicadores!$Z$7:$AD$1345,3,FALSE)="","",VLOOKUP(CONCATENATE(E114,F114,G114),ListaIndicadores!$Z$7:$AD$1345,3,FALSE)),"") ->  | Q114: =VLOOKUP(CONCATENATE(E114,F114,G114),ListaIndicadores!$Z$7:$AD$1345,4,FALSE) -> 51
A115: 3716 | B115: Ambiental | C115: IV. LINEAMIENTO DE POLITICA: Promover Ciudades y Comunidades Saludables en armonía con su entorno natural. | D115: AGA.35.2. | E115: Porcentaje Municipalidades informan que cuentan con Relleno sanitario o reciclan los RRSS | F115: Municipalidades tienen Relleno sanitario | G115: Amazonas | H115: 2017 | I115: 26.2 | J115: Porcentaje | K115: Instituto Nacional de Estadística e Informática (INEI) - Registro Nacional de Municipalidades (RENAMU) | L115: Instituto Nacional de Estadística e Informática (INEI) - Registro Nacional de Municipalidades (RENAMU) | M115: https://www.inei.gob.pe/media/MenuRecursivo/publicaciones_digitales/Est/Lib1474/index.html | P115: =IFERROR(IF(VLOOKUP(CONCATENATE(E115,F115,G115),ListaIndicadores!$Z$7:$AD$1345,3,FALSE)="","",VLOOKUP(CONCATENATE(E115,F115,G115),ListaIndicadores!$Z$7:$AD$1345,3,FALSE)),"") ->  | Q115: =VLOOKUP(CONCATENATE(E115,F115,G115),ListaIndicadores!$Z$7:$AD$1345,4,FALSE) -> 51
A116: 3717 | B116: Ambiental | C116: IV. LINEAMIENTO DE POLITICA: Promover Ciudades y Comunidades Saludables en armonía con su entorno natural. | D116: AGA.35.2. | E116: Porcentaje Municipalidades informan que cuentan con Relleno sanitario o reciclan los RRSS | F116: Municipalidades tienen Relleno sanitario | G116: Amazonas | H116: 2018 | I116: Sin datos | J116: Porcentaje | K116: Instituto Nacional de Estadística e Informática (INEI) - Registro Nacional de Municipalidades (RENAMU) | L116: Instituto Nacional de Estadística e Informática (INEI) - Registro Nacional de Municipalidades (RENAMU) | M116: https://www.inei.gob.pe/media/MenuRecursivo/publicaciones_digitales/Est/Lib1636/index.html | P116: =IFERROR(IF(VLOOKUP(CONCATENATE(E116,F116,G116),ListaIndicadores!$Z$7:$AD$1345,3,FALSE)="","",VLOOKUP(CONCATENATE(E116,F116,G116),ListaIndicadores!$Z$7:$AD$1345,3,FALSE)),"") ->  | Q116: =VLOOKUP(CONCATENATE(E116,F116,G116),ListaIndicadores!$Z$7:$AD$1345,4,FALSE) -> 51
A117: 3855 | B117: Ambiental | C117: IV. LINEAMIENTO DE POLITICA: Promover Ciudades y Comunidades Saludables en armonía con su entorno natural. | D117: AGA.35.3. | E117: Porcentaje Municipalidades informan que disponen de los RRSS inadecuadamente | F117: Municipalidades los RRSS son quemados o incinerados | G117: Amazonas | H117: 2014 | I117: 9.5 | J117: Porcentaje | K117: Instituto Nacional de Estadística e Informática (INEI) - Registro Nacional de Municipalidades (RENAMU) | L117: Instituto Nacional de Estadística e Informática (INEI) - Registro Nacional de Municipalidades (RENAMU) | M117: https://www.inei.gob.pe/media/MenuRecursivo/publicaciones_digitales/Est/Lib1246/index.html | P117: =IFERROR(IF(VLOOKUP(CONCATENATE(E117,F117,G117),ListaIndicadores!$Z$7:$AD$1345,3,FALSE)="","",VLOOKUP(CONCATENATE(E117,F117,G117),ListaIndicadores!$Z$7:$AD$1345,3,FALSE)),"") ->  | Q117: =VLOOKUP(CONCATENATE(E117,F117,G117),ListaIndicadores!$Z$7:$AD$1345,4,FALSE) -> -12
A118: 3856 | B118: Ambiental | C118: IV. LINEAMIENTO DE POLITICA: Promover Ciudades y Comunidades Saludables en armonía con su entorno natural. | D118: AGA.35.3. | E118: Porcentaje Municipalidades informan que disponen de los RRSS inadecuadamente | F118: Municipalidades los RRSS son quemados o incinerados | G118: Amazonas | H118: 2015 | I118: 13.1 | J118: Porcentaje | K118: Instituto Nacional de Estadística e Informática (INEI) - Registro Nacional de Municipalidades (RENAMU) | L118: Instituto Nacional de Estadística e Informática (INEI) - Registro Nacional de Municipalidades (RENAMU) | M118: https://www.inei.gob.pe/media/MenuRecursivo/publicaciones_digitales/Est/Lib1362/index.html | P118: =IFERROR(IF(VLOOKUP(CONCATENATE(E118,F118,G118),ListaIndicadores!$Z$7:$AD$1345,3,FALSE)="","",VLOOKUP(CONCATENATE(E118,F118,G118),ListaIndicadores!$Z$7:$AD$1345,3,FALSE)),"") ->  | Q118: =VLOOKUP(CONCATENATE(E118,F118,G118),ListaIndicadores!$Z$7:$AD$1345,4,FALSE) -> -12
A119: 3857 | B119: Ambiental | C119: IV. LINEAMIENTO DE POLITICA: Promover Ciudades y Comunidades Saludables en armonía con su entorno natural. | D119: AGA.35.3. | E119: Porcentaje Municipalidades informan que disponen de los RRSS inadecuadamente | F119: Municipalidades los RRSS son quemados o incinerados | G119: Amazonas | H119: 2016 | I119: 10.7 | J119: Porcentaje | K119: Instituto Nacional de Estadística e Informática (INEI) - Registro Nacional de Municipalidades (RENAMU) | L119: Instituto Nacional de Estadística e Informática (INEI) - Registro Nacional de Municipalidades (RENAMU) | M119: https://www.inei.gob.pe/media/MenuRecursivo/publicaciones_digitales/Est/Lib1417/index.html | P119: =IFERROR(IF(VLOOKUP(CONCATENATE(E119,F119,G119),ListaIndicadores!$Z$7:$AD$1345,3,FALSE)="","",VLOOKUP(CONCATENATE(E119,F119,G119),ListaIndicadores!$Z$7:$AD$1345,3,FALSE)),"") ->  | Q119: =VLOOKUP(CONCATENATE(E119,F119,G119),ListaIndicadores!$Z$7:$AD$1345,4,FALSE) -> -12
A120: 3858 | B120: Ambiental | C120: IV. LINEAMIENTO DE POLITICA: Promover Ciudades y Comunidades Saludables en armonía con su entorno natural. | D120: AGA.35.3. | E120: Porcentaje Municipalidades informan que disponen de los RRSS inadecuadamente | F120: Municipalidades los RRSS son quemados o incinerados | G120: Amazonas | H120: 2017 | I120: 8.3 | J120: Porcentaje | K120: Instituto Nacional de Estadística e Informática (INEI) - Registro Nacional de Municipalidades (RENAMU) | L120: Instituto Nacional de Estadística e Informática (INEI) - Registro Nacional de Municipalidades (RENAMU) | M120: https://www.inei.gob.pe/media/MenuRecursivo/publicaciones_digitales/Est/Lib1474/index.html | P120: =IFERROR(IF(VLOOKUP(CONCATENATE(E120,F120,G120),ListaIndicadores!$Z$7:$AD$1345,3,FALSE)="","",VLOOKUP(CONCATENATE(E120,F120,G120),ListaIndicadores!$Z$7:$AD$1345,3,FALSE)),"") ->  | Q120: =VLOOKUP(CONCATENATE(E120,F120,G120),ListaIndicadores!$Z$7:$AD$1345,4,FALSE) -> -12
A121: 3859 | B121: Ambiental | C121: IV. LINEAMIENTO DE POLITICA: Promover Ciudades y Comunidades Saludables en armonía con su entorno natural. | D121: AGA.35.3. | E121: Porcentaje Municipalidades informan que disponen de los RRSS inadecuadamente | F121: Municipalidades los RRSS son quemados o incinerados | G121: Amazonas | H121: 2018 | I121: Sin datos | J121: Porcentaje | K121: Instituto Nacional de Estadística e Informática (INEI) - Registro Nacional de Municipalidades (RENAMU) | L121: Instituto Nacional de Estadística e Informática (INEI) - Registro Nacional de Municipalidades (RENAMU) | M121: https://www.inei.gob.pe/media/MenuRecursivo/publicaciones_digitales/Est/Lib1636/index.html | P121: =IFERROR(IF(VLOOKUP(CONCATENATE(E121,F121,G121),ListaIndicadores!$Z$7:$AD$1345,3,FALSE)="","",VLOOKUP(CONCATENATE(E121,F121,G121),ListaIndicadores!$Z$7:$AD$1345,3,FALSE)),"") ->  | Q121: =VLOOKUP(CONCATENATE(E121,F121,G121),ListaIndicadores!$Z$7:$AD$1345,4,FALSE) -> -12
A122: 3998 | B122: Ambiental | C122: IV. LINEAMIENTO DE POLITICA: Promover Ciudades y Comunidades Saludables en armonía con su entorno natural. | D122: AGA.35.3. | E122: Porcentaje Municipalidades informan que disponen de los RRSS inadecuadamente | F122: Municipalidades vierten los RRSS a botadero a cielo abierto | G122: Amazonas | H122: 2014 | I122: 61.9 | J122: Porcentaje | K122: Instituto Nacional de Estadística e Informática (INEI) - Registro Nacional de Municipalidades (RENAMU) | L122: Instituto Nacional de Estadística e Informática (INEI) - Registro Nacional de Municipalidades (RENAMU) | M122: https://www.inei.gob.pe/media/MenuRecursivo/publicaciones_digitales/Est/Lib1246/index.html | P122: =IFERROR(IF(VLOOKUP(CONCATENATE(E122,F122,G122),ListaIndicadores!$Z$7:$AD$1345,3,FALSE)="","",VLOOKUP(CONCATENATE(E122,F122,G122),ListaIndicadores!$Z$7:$AD$1345,3,FALSE)),"") ->  | Q122: =VLOOKUP(CONCATENATE(E122,F122,G122),ListaIndicadores!$Z$7:$AD$1345,4,FALSE) -> -54
A123: 3999 | B123: Ambiental | C123: IV. LINEAMIENTO DE POLITICA: Promover Ciudades y Comunidades Saludables en armonía con su entorno natural. | D123: AGA.35.3. | E123: Porcentaje Municipalidades informan que disponen de los RRSS inadecuadamente | F123: Municipalidades vierten los RRSS a botadero a cielo abierto | G123: Amazonas | H123: 2015 | I123: 71.4 | J123: Porcentaje | K123: Instituto Nacional de Estadística e Informática (INEI) - Registro Nacional de Municipalidades (RENAMU) | L123: Instituto Nacional de Estadística e Informática (INEI) - Registro Nacional de Municipalidades (RENAMU) | M123: https://www.inei.gob.pe/media/MenuRecursivo/publicaciones_digitales/Est/Lib1362/index.html | P123: =IFERROR(IF(VLOOKUP(CONCATENATE(E123,F123,G123),ListaIndicadores!$Z$7:$AD$1345,3,FALSE)="","",VLOOKUP(CONCATENATE(E123,F123,G123),ListaIndicadores!$Z$7:$AD$1345,3,FALSE)),"") ->  | Q123: =VLOOKUP(CONCATENATE(E123,F123,G123),ListaIndicadores!$Z$7:$AD$1345,4,FALSE) -> -54
A124: 4000 | B124: Ambiental | C124: IV. LINEAMIENTO DE POLITICA: Promover Ciudades y Comunidades Saludables en armonía con su entorno natural. | D124: AGA.35.3. | E124: Porcentaje Municipalidades informan que disponen de los RRSS inadecuadamente | F124: Municipalidades vierten los RRSS a botadero a cielo abierto | G124: Amazonas | H124: 2016 | I124: 75 | J124: Porcentaje | K124: Instituto Nacional de Estadística e Informática (INEI) - Registro Nacional de Municipalidades (RENAMU) | L124: Instituto Nacional de Estadística e Informática (INEI) - Registro Nacional de Municipalidades (RENAMU) | M124: https://www.inei.gob.pe/media/MenuRecursivo/publicaciones_digitales/Est/Lib1417/index.html | P124: =IFERROR(IF(VLOOKUP(CONCATENATE(E124,F124,G124),ListaIndicadores!$Z$7:$AD$1345,3,FALSE)="","",VLOOKUP(CONCATENATE(E124,F124,G124),ListaIndicadores!$Z$7:$AD$1345,3,FALSE)),"") ->  | Q124: =VLOOKUP(CONCATENATE(E124,F124,G124),ListaIndicadores!$Z$7:$AD$1345,4,FALSE) -> -54
A125: 4001 | B125: Ambiental | C125: IV. LINEAMIENTO DE POLITICA: Promover Ciudades y Comunidades Saludables en armonía con su entorno natural. | D125: AGA.35.3. | E125: Porcentaje Municipalidades informan que disponen de los RRSS inadecuadamente | F125: Municipalidades vierten los RRSS a botadero a cielo abierto | G125: Amazonas | H125: 2017 | I125: 72.6 | J125: Porcentaje | K125: Instituto Nacional de Estadística e Informática (INEI) - Registro Nacional de Municipalidades (RENAMU) | L125: Instituto Nacional de Estadística e Informática (INEI) - Registro Nacional de Municipalidades (RENAMU) | M125: https://www.inei.gob.pe/media/MenuRecursivo/publicaciones_digitales/Est/Lib1474/index.html | P125: =IFERROR(IF(VLOOKUP(CONCATENATE(E125,F125,G125),ListaIndicadores!$Z$7:$AD$1345,3,FALSE)="","",VLOOKUP(CONCATENATE(E125,F125,G125),ListaIndicadores!$Z$7:$AD$1345,3,FALSE)),"") ->  | Q125: =VLOOKUP(CONCATENATE(E125,F125,G125),ListaIndicadores!$Z$7:$AD$1345,4,FALSE) -> -54
A126: 4002 | B126: Ambiental | C126: IV. LINEAMIENTO DE POLITICA: Promover Ciudades y Comunidades Saludables en armonía con su entorno natural. | D126: AGA.35.3. | E126: Porcentaje Municipalidades informan que disponen de los RRSS inadecuadamente | F126: Municipalidades vierten los RRSS a botadero a cielo abierto | G126: Amazonas | H126: 2018 | I126: Sin datos | J126: Porcentaje | K126: Instituto Nacional de Estadística e Informática (INEI) - Registro Nacional de Municipalidades (RENAMU) | L126: Instituto Nacional de Estadística e Informática (INEI) - Registro Nacional de Municipalidades (RENAMU) | M126: https://www.inei.gob.pe/media/MenuRecursivo/publicaciones_digitales/Est/Lib1636/index.html | P126: =IFERROR(IF(VLOOKUP(CONCATENATE(E126,F126,G126),ListaIndicadores!$Z$7:$AD$1345,3,FALSE)="","",VLOOKUP(CONCATENATE(E126,F126,G126),ListaIndicadores!$Z$7:$AD$1345,3,FALSE)),"") ->  | Q126: =VLOOKUP(CONCATENATE(E126,F126,G126),ListaIndicadores!$Z$7:$AD$1345,4,FALSE) -> -54
A127: 4145 | B127: Ambiental | C127: IV. LINEAMIENTO DE POLITICA: Promover Ciudades y Comunidades Saludables en armonía con su entorno natural. | D127: AGA.35.6 | E127: Presupuesto Ejecutado en Gestión Integral de RRSS (0036) - Soles | F127: Gobierno Locales | G127: Amazonas | H127: 2014 | I127: 3414497 | J127: Soles | K127: Ministerio de Economía y Finanzas (MEF)- Seguimiento de la Ejecución Presupuestal (Consulta amigable) | L127: Portal de Transparencia Económica | M127: http://apps5.mineco.gob.pe/transparencia/Navegador/default.aspx?y=2015&ap=ActProy | P127: =IFERROR(IF(VLOOKUP(CONCATENATE(E127,F127,G127),ListaIndicadores!$Z$7:$AD$1345,3,FALSE)="","",VLOOKUP(CONCATENATE(E127,F127,G127),ListaIndicadores!$Z$7:$AD$1345,3,FALSE)),"") ->  | Q127: =VLOOKUP(CONCATENATE(E127,F127,G127),ListaIndicadores!$Z$7:$AD$1345,4,FALSE) -> 20282773
A128: 4146 | B128: Ambiental | C128: IV. LINEAMIENTO DE POLITICA: Promover Ciudades y Comunidades Saludables en armonía con su entorno natural. | D128: AGA.35.6 | E128: Presupuesto Ejecutado en Gestión Integral de RRSS (0036) - Soles | F128: Gobierno Locales | G128: Amazonas | H128: 2015 | I128: 3252577 | J128: Soles | K128: Ministerio de Economía y Finanzas (MEF)- Seguimiento de la Ejecución Presupuestal (Consulta amigable) | L128: Portal de Transparencia Económica | M128: http://apps5.mineco.gob.pe/transparencia/Navegador/default.aspx?y=2015&ap=ActProy | P128: =IFERROR(IF(VLOOKUP(CONCATENATE(E128,F128,G128),ListaIndicadores!$Z$7:$AD$1345,3,FALSE)="","",VLOOKUP(CONCATENATE(E128,F128,G128),ListaIndicadores!$Z$7:$AD$1345,3,FALSE)),"") ->  | Q128: =VLOOKUP(CONCATENATE(E128,F128,G128),ListaIndicadores!$Z$7:$AD$1345,4,FALSE) -> 20282773
A129: 4147 | B129: Ambiental | C129: IV. LINEAMIENTO DE POLITICA: Promover Ciudades y Comunidades Saludables en armonía con su entorno natural. | D129: AGA.35.6 | E129: Presupuesto Ejecutado en Gestión Integral de RRSS (0036) - Soles | F129: Gobierno Locales | G129: Amazonas | H129: 2016 | I129: 5933734 | J129: Soles | K129: Ministerio de Economía y Finanzas (MEF)- Seguimiento de la Ejecución Presupuestal (Consulta amigable) | L129: Portal de Transparencia Económica | M129: http://apps5.mineco.gob.pe/transparencia/Navegador/default.aspx?y=2015&ap=ActProy | P129: =IFERROR(IF(VLOOKUP(CONCATENATE(E129,F129,G129),ListaIndicadores!$Z$7:$AD$1345,3,FALSE)="","",VLOOKUP(CONCATENATE(E129,F129,G129),ListaIndicadores!$Z$7:$AD$1345,3,FALSE)),"") ->  | Q129: =VLOOKUP(CONCATENATE(E129,F129,G129),ListaIndicadores!$Z$7:$AD$1345,4,FALSE) -> 20282773
A130: 4148 | B130: Ambiental | C130: IV. LINEAMIENTO DE POLITICA: Promover Ciudades y Comunidades Saludables en armonía con su entorno natural. | D130: AGA.35.6 | E130: Presupuesto Ejecutado en Gestión Integral de RRSS (0036) - Soles | F130: Gobierno Locales | G130: Amazonas | H130: 2017 | I130: 6260814 | J130: Soles | K130: Ministerio de Economía y Finanzas (MEF)- Seguimiento de la Ejecución Presupuestal (Consulta amigable) | L130: Portal de Transparencia Económica | M130: http://apps5.mineco.gob.pe/transparencia/Navegador/default.aspx?y=2015&ap=ActProy | P130: =IFERROR(IF(VLOOKUP(CONCATENATE(E130,F130,G130),ListaIndicadores!$Z$7:$AD$1345,3,FALSE)="","",VLOOKUP(CONCATENATE(E130,F130,G130),ListaIndicadores!$Z$7:$AD$1345,3,FALSE)),"") ->  | Q130: =VLOOKUP(CONCATENATE(E130,F130,G130),ListaIndicadores!$Z$7:$AD$1345,4,FALSE) -> 20282773
A131: 4149 | B131: Ambiental | C131: IV. LINEAMIENTO DE POLITICA: Promover Ciudades y Comunidades Saludables en armonía con su entorno natural. | D131: AGA.35.6 | E131: Presupuesto Ejecutado en Gestión Integral de RRSS (0036) - Soles | F131: Gobierno Locales | G131: Amazonas | H131: 2018 | I131: 9379454 | J131: Soles | K131: Ministerio de Economía y Finanzas (MEF)- Seguimiento de la Ejecución Presupuestal (Consulta amigable) | L131: Portal de Transparencia Económica | M131: http://apps5.mineco.gob.pe/transparencia/Navegador/default.aspx?y=2015&ap=ActProy | P131: =IFERROR(IF(VLOOKUP(CONCATENATE(E131,F131,G131),ListaIndicadores!$Z$7:$AD$1345,3,FALSE)="","",VLOOKUP(CONCATENATE(E131,F131,G131),ListaIndicadores!$Z$7:$AD$1345,3,FALSE)),"") ->  | Q131: =VLOOKUP(CONCATENATE(E131,F131,G131),ListaIndicadores!$Z$7:$AD$1345,4,FALSE) -> 20282773
A132: 4274 | B132: Ambiental | C132: IV. LINEAMIENTO DE POLITICA: Promover Ciudades y Comunidades Saludables en armonía con su entorno natural. | D132: AGA.35.6 | E132: Presupuesto Ejecutado en Gestión Integral de RRSS (0036) - Soles | F132: Gobierno Nacional | G132: Amazonas | H132: 2014 | I132: 1569502 | J132: Soles | K132: Ministerio de Economía y Finanzas (MEF)- Seguimiento de la Ejecución Presupuestal (Consulta amigable) | L132: Portal de Transparencia Económica | M132: http://apps5.mineco.gob.pe/transparencia/Navegador/default.aspx?y=2015&ap=ActProy | P132: =IFERROR(IF(VLOOKUP(CONCATENATE(E132,F132,G132),ListaIndicadores!$Z$7:$AD$1345,3,FALSE)="","",VLOOKUP(CONCATENATE(E132,F132,G132),ListaIndicadores!$Z$7:$AD$1345,3,FALSE)),"") ->  | Q132: =VLOOKUP(CONCATENATE(E132,F132,G132),ListaIndicadores!$Z$7:$AD$1345,4,FALSE) -> -208205
A133: 4275 | B133: Ambiental | C133: IV. LINEAMIENTO DE POLITICA: Promover Ciudades y Comunidades Saludables en armonía con su entorno natural. | D133: AGA.35.6 | E133: Presupuesto Ejecutado en Gestión Integral de RRSS (0036) - Soles | F133: Gobierno Nacional | G133: Amazonas | H133: 2015 | I133: 348191 | J133: Soles | K133: Ministerio de Economía y Finanzas (MEF)- Seguimiento de la Ejecución Presupuestal (Consulta amigable) | L133: Portal de Transparencia Económica | M133: http://apps5.mineco.gob.pe/transparencia/Navegador/default.aspx?y=2015&ap=ActProy | P133: =IFERROR(IF(VLOOKUP(CONCATENATE(E133,F133,G133),ListaIndicadores!$Z$7:$AD$1345,3,FALSE)="","",VLOOKUP(CONCATENATE(E133,F133,G133),ListaIndicadores!$Z$7:$AD$1345,3,FALSE)),"") ->  | Q133: =VLOOKUP(CONCATENATE(E133,F133,G133),ListaIndicadores!$Z$7:$AD$1345,4,FALSE) -> -208205
A134: 4276 | B134: Ambiental | C134: IV. LINEAMIENTO DE POLITICA: Promover Ciudades y Comunidades Saludables en armonía con su entorno natural. | D134: AGA.35.6 | E134: Presupuesto Ejecutado en Gestión Integral de RRSS (0036) - Soles | F134: Gobierno Nacional | G134: Amazonas | H134: 2016 | I134: 2158729 | J134: Soles | K134: Ministerio de Economía y Finanzas (MEF)- Seguimiento de la Ejecución Presupuestal (Consulta amigable) | L134: Portal de Transparencia Económica | M134: http://apps5.mineco.gob.pe/transparencia/Navegador/default.aspx?y=2015&ap=ActProy | P134: =IFERROR(IF(VLOOKUP(CONCATENATE(E134,F134,G134),ListaIndicadores!$Z$7:$AD$1345,3,FALSE)="","",VLOOKUP(CONCATENATE(E134,F134,G134),ListaIndicadores!$Z$7:$AD$1345,3,FALSE)),"") ->  | Q134: =VLOOKUP(CONCATENATE(E134,F134,G134),ListaIndicadores!$Z$7:$AD$1345,4,FALSE) -> -208205
A135: 4277 | B135: Ambiental | C135: IV. LINEAMIENTO DE POLITICA: Promover Ciudades y Comunidades Saludables en armonía con su entorno natural. | D135: AGA.35.6 | E135: Presupuesto Ejecutado en Gestión Integral de RRSS (0036) - Soles | F135: Gobierno Nacional | G135: Amazonas | H135: 2017 | I135: 2529282 | J135: Soles | K135: Ministerio de Economía y Finanzas (MEF)- Seguimiento de la Ejecución Presupuestal (Consulta amigable) | L135: Portal de Transparencia Económica | M135: http://apps5.mineco.gob.pe/transparencia/Navegador/default.aspx?y=2015&ap=ActProy | P135: =IFERROR(IF(VLOOKUP(CONCATENATE(E135,F135,G135),ListaIndicadores!$Z$7:$AD$1345,3,FALSE)="","",VLOOKUP(CONCATENATE(E135,F135,G135),ListaIndicadores!$Z$7:$AD$1345,3,FALSE)),"") ->  | Q135: =VLOOKUP(CONCATENATE(E135,F135,G135),ListaIndicadores!$Z$7:$AD$1345,4,FALSE) -> -208205
A136: 4278 | B136: Ambiental | C136: IV. LINEAMIENTO DE POLITICA: Promover Ciudades y Comunidades Saludables en armonía con su entorno natural. | D136: AGA.35.6 | E136: Presupuesto Ejecutado en Gestión Integral de RRSS (0036) - Soles | F136: Gobierno Nacional | G136: Amazonas | H136: 2018 | I136: 1592901 | J136: Soles | K136: Ministerio de Economía y Finanzas (MEF)- Seguimiento de la Ejecución Presupuestal (Consulta amigable) | L136: Portal de Transparencia Económica | M136: http://apps5.mineco.gob.pe/transparencia/Navegador/default.aspx?y=2015&ap=ActProy | P136: =IFERROR(IF(VLOOKUP(CONCATENATE(E136,F136,G136),ListaIndicadores!$Z$7:$AD$1345,3,FALSE)="","",VLOOKUP(CONCATENATE(E136,F136,G136),ListaIndicadores!$Z$7:$AD$1345,3,FALSE)),"") ->  | Q136: =VLOOKUP(CONCATENATE(E136,F136,G136),ListaIndicadores!$Z$7:$AD$1345,4,FALSE) -> -208205
A137: 4399 | B137: Ambiental | C137: IV. LINEAMIENTO DE POLITICA: Promover Ciudades y Comunidades Saludables en armonía con su entorno natural. | D137: AGA.35.6 | E137: Presupuesto Ejecutado en Gestión Integral de RRSS (0036) - Soles | F137: Gobierno Regional | G137: Amazonas | H137: 2015 | I137: 1284140 | J137: Soles | K137: Ministerio de Economía y Finanzas (MEF)- Seguimiento de la Ejecución Presupuestal (Consulta amigable) | L137: Portal de Transparencia Económica | M137: http://apps5.mineco.gob.pe/transparencia/Navegador/default.aspx?y=2015&ap=ActProy | N137: S/D en el año 2014 a nivel Regional | P137: =IFERROR(IF(VLOOKUP(CONCATENATE(E137,F137,G137),ListaIndicadores!$Z$7:$AD$1345,3,FALSE)="","",VLOOKUP(CONCATENATE(E137,F137,G137),ListaIndicadores!$Z$7:$AD$1345,3,FALSE)),"") ->  | Q137: =VLOOKUP(CONCATENATE(E137,F137,G137),ListaIndicadores!$Z$7:$AD$1345,4,FALSE) -> 11989011
A138: 4400 | B138: Ambiental | C138: IV. LINEAMIENTO DE POLITICA: Promover Ciudades y Comunidades Saludables en armonía con su entorno natural. | D138: AGA.35.6 | E138: Presupuesto Ejecutado en Gestión Integral de RRSS (0036) - Soles | F138: Gobierno Regional | G138: Amazonas | H138: 2016 | I138: Sin datos | J138: Soles | K138: Ministerio de Economía y Finanzas (MEF)- Seguimiento de la Ejecución Presupuestal (Consulta amigable) | L138: Portal de Transparencia Económica | M138: http://apps5.mineco.gob.pe/transparencia/Navegador/default.aspx?y=2015&ap=ActProy | N138: S/D en el año 2014 a nivel Regional | P138: =IFERROR(IF(VLOOKUP(CONCATENATE(E138,F138,G138),ListaIndicadores!$Z$7:$AD$1345,3,FALSE)="","",VLOOKUP(CONCATENATE(E138,F138,G138),ListaIndicadores!$Z$7:$AD$1345,3,FALSE)),"") ->  | Q138: =VLOOKUP(CONCATENATE(E138,F138,G138),ListaIndicadores!$Z$7:$AD$1345,4,FALSE) -> 11989011
A139: 4401 | B139: Ambiental | C139: IV. LINEAMIENTO DE POLITICA: Promover Ciudades y Comunidades Saludables en armonía con su entorno natural. | D139: AGA.35.6 | E139: Presupuesto Ejecutado en Gestión Integral de RRSS (0036) - Soles | F139: Gobierno Regional | G139: Amazonas | H139: 2017 | I139: 2997301 | J139: Soles | K139: Ministerio de Economía y Finanzas (MEF)- Seguimiento de la Ejecución Presupuestal (Consulta amigable) | L139: Portal de Transparencia Económica | M139: http://apps5.mineco.gob.pe/transparencia/Navegador/default.aspx?y=2015&ap=ActProy | N139: S/D en el año 2014 a nivel Regional | P139: =IFERROR(IF(VLOOKUP(CONCATENATE(E139,F139,G139),ListaIndicadores!$Z$7:$AD$1345,3,FALSE)="","",VLOOKUP(CONCATENATE(E139,F139,G139),ListaIndicadores!$Z$7:$AD$1345,3,FALSE)),"") ->  | Q139: =VLOOKUP(CONCATENATE(E139,F139,G139),ListaIndicadores!$Z$7:$AD$1345,4,FALSE) -> 11989011
A140: 4402 | B140: Ambiental | C140: IV. LINEAMIENTO DE POLITICA: Promover Ciudades y Comunidades Saludables en armonía con su entorno natural. | D140: AGA.35.6 | E140: Presupuesto Ejecutado en Gestión Integral de RRSS (0036) - Soles | F140: Gobierno Regional | G140: Amazonas | H140: 2018 | I140: 19509421 | J140: Soles | K140: Ministerio de Economía y Finanzas (MEF)- Seguimiento de la Ejecución Presupuestal (Consulta amigable) | L140: Portal de Transparencia Económica | M140: http://apps5.mineco.gob.pe/transparencia/Navegador/default.aspx?y=2015&ap=ActProy | N140: S/D en el año 2014 a nivel Regional | P140: =IFERROR(IF(VLOOKUP(CONCATENATE(E140,F140,G140),ListaIndicadores!$Z$7:$AD$1345,3,FALSE)="","",VLOOKUP(CONCATENATE(E140,F140,G140),ListaIndicadores!$Z$7:$AD$1345,3,FALSE)),"") ->  | Q140: =VLOOKUP(CONCATENATE(E140,F140,G140),ListaIndicadores!$Z$7:$AD$1345,4,FALSE) -> 11989011
A141: 5725 | B141: Ambiental | C141: I. LINEAMIENTO DE POLITICA Mejorar la Gestión Ambiental. | D141: AGA.1.6 | E141: Monto del Presupuesto público ejecutado en la función ambiental (instancias, planes, programas y proyectos de gestión ambiental en los tres niveles de gobierno) - Millones de Soles | F141: Gobierno Locales | G141: Amazonas | H141: 2014 | I141: 7366917 | J141: Soles | K141: Ministerio de Economía y Finanzas (MEF)- Seguimiento de la Ejecución Presupuestal (Consulta amigable) | L141: Portal de Transparencia Económica | M141: http://apps5.mineco.gob.pe/transparencia/Navegador/default.aspx?y=2015&ap=ActProy | P141: =IFERROR(IF(VLOOKUP(CONCATENATE(E141,F141,G141),ListaIndicadores!$Z$7:$AD$1345,3,FALSE)="","",VLOOKUP(CONCATENATE(E141,F141,G141),ListaIndicadores!$Z$7:$AD$1345,3,FALSE)),"") ->  | Q141: =VLOOKUP(CONCATENATE(E141,F141,G141),ListaIndicadores!$Z$7:$AD$1345,4,FALSE) -> 23944771
A142: 5726 | B142: Ambiental | C142: I. LINEAMIENTO DE POLITICA Mejorar la Gestión Ambiental. | D142: AGA.1.6 | E142: Monto del Presupuesto público ejecutado en la función ambiental (instancias, planes, programas y proyectos de gestión ambiental en los tres niveles de gobierno) - Millones de Soles | F142: Gobierno Locales | G142: Amazonas | H142: 2015 | I142: 5727320 | J142: Soles | K142: Ministerio de Economía y Finanzas (MEF)- Seguimiento de la Ejecución Presupuestal (Consulta amigable) | L142: Portal de Transparencia Económica | M142: http://apps5.mineco.gob.pe/transparencia/Navegador/default.aspx?y=2015&ap=ActProy | P142: =IFERROR(IF(VLOOKUP(CONCATENATE(E142,F142,G142),ListaIndicadores!$Z$7:$AD$1345,3,FALSE)="","",VLOOKUP(CONCATENATE(E142,F142,G142),ListaIndicadores!$Z$7:$AD$1345,3,FALSE)),"") ->  | Q142: =VLOOKUP(CONCATENATE(E142,F142,G142),ListaIndicadores!$Z$7:$AD$1345,4,FALSE) -> 23944771
A143: 5727 | B143: Ambiental | C143: I. LINEAMIENTO DE POLITICA Mejorar la Gestión Ambiental. | D143: AGA.1.6 | E143: Monto del Presupuesto público ejecutado en la función ambiental (instancias, planes, programas y proyectos de gestión ambiental en los tres niveles de gobierno) - Millones de Soles | F143: Gobierno Locales | G143: Amazonas | H143: 2016 | I143: 7911974 | J143: Soles | K143: Ministerio de Economía y Finanzas (MEF)- Seguimiento de la Ejecución Presupuestal (Consulta amigable) | L143: Portal de Transparencia Económica | M143: http://apps5.mineco.gob.pe/transparencia/Navegador/default.aspx?y=2015&ap=ActProy | P143: =IFERROR(IF(VLOOKUP(CONCATENATE(E143,F143,G143),ListaIndicadores!$Z$7:$AD$1345,3,FALSE)="","",VLOOKUP(CONCATENATE(E143,F143,G143),ListaIndicadores!$Z$7:$AD$1345,3,FALSE)),"") ->  | Q143: =VLOOKUP(CONCATENATE(E143,F143,G143),ListaIndicadores!$Z$7:$AD$1345,4,FALSE) -> 23944771
A144: 5728 | B144: Ambiental | C144: I. LINEAMIENTO DE POLITICA Mejorar la Gestión Ambiental. | D144: AGA.1.6 | E144: Monto del Presupuesto público ejecutado en la función ambiental (instancias, planes, programas y proyectos de gestión ambiental en los tres niveles de gobierno) - Millones de Soles | F144: Gobierno Locales | G144: Amazonas | H144: 2017 | I144: 8853327 | J144: Soles | K144: Ministerio de Economía y Finanzas (MEF)- Seguimiento de la Ejecución Presupuestal (Consulta amigable) | L144: Portal de Transparencia Económica | M144: http://apps5.mineco.gob.pe/transparencia/Navegador/default.aspx?y=2015&ap=ActProy | P144: =IFERROR(IF(VLOOKUP(CONCATENATE(E144,F144,G144),ListaIndicadores!$Z$7:$AD$1345,3,FALSE)="","",VLOOKUP(CONCATENATE(E144,F144,G144),ListaIndicadores!$Z$7:$AD$1345,3,FALSE)),"") ->  | Q144: =VLOOKUP(CONCATENATE(E144,F144,G144),ListaIndicadores!$Z$7:$AD$1345,4,FALSE) -> 23944771
A145: 5729 | B145: Ambiental | C145: I. LINEAMIENTO DE POLITICA Mejorar la Gestión Ambiental. | D145: AGA.1.6 | E145: Monto del Presupuesto público ejecutado en la función ambiental (instancias, planes, programas y proyectos de gestión ambiental en los tres niveles de gobierno) - Millones de Soles | F145: Gobierno Locales | G145: Amazonas | H145: 2018 | I145: 12153961 | J145: Soles | K145: Ministerio de Economía y Finanzas (MEF)- Seguimiento de la Ejecución Presupuestal (Consulta amigable) | L145: Portal de Transparencia Económica | M145: http://apps5.mineco.gob.pe/transparencia/Navegador/default.aspx?y=2015&ap=ActProy | P145: =IFERROR(IF(VLOOKUP(CONCATENATE(E145,F145,G145),ListaIndicadores!$Z$7:$AD$1345,3,FALSE)="","",VLOOKUP(CONCATENATE(E145,F145,G145),ListaIndicadores!$Z$7:$AD$1345,3,FALSE)),"") ->  | Q145: =VLOOKUP(CONCATENATE(E145,F145,G145),ListaIndicadores!$Z$7:$AD$1345,4,FALSE) -> 23944771
A146: 5850 | B146: Ambiental | C146: I. LINEAMIENTO DE POLITICA Mejorar la Gestión Ambiental. | D146: AGA.1.6 | E146: Monto del Presupuesto público ejecutado en la función ambiental (instancias, planes, programas y proyectos de gestión ambiental en los tres niveles de gobierno) - Millones de Soles | F146: Gobierno Nacional | G146: Amazonas | H146: 2014 | I146: 3436556 | J146: Soles | K146: Ministerio de Economía y Finanzas (MEF)- Seguimiento de la Ejecución Presupuestal (Consulta amigable) | L146: Portal de Transparencia Económica | M146: http://apps5.mineco.gob.pe/transparencia/Navegador/default.aspx?y=2015&ap=ActProy | P146: =IFERROR(IF(VLOOKUP(CONCATENATE(E146,F146,G146),ListaIndicadores!$Z$7:$AD$1345,3,FALSE)="","",VLOOKUP(CONCATENATE(E146,F146,G146),ListaIndicadores!$Z$7:$AD$1345,3,FALSE)),"") ->  | Q146: =VLOOKUP(CONCATENATE(E146,F146,G146),ListaIndicadores!$Z$7:$AD$1345,4,FALSE) -> 4709896
A147: 5851 | B147: Ambiental | C147: I. LINEAMIENTO DE POLITICA Mejorar la Gestión Ambiental. | D147: AGA.1.6 | E147: Monto del Presupuesto público ejecutado en la función ambiental (instancias, planes, programas y proyectos de gestión ambiental en los tres niveles de gobierno) - Millones de Soles | F147: Gobierno Nacional | G147: Amazonas | H147: 2015 | I147: 2706778 | J147: Soles | K147: Ministerio de Economía y Finanzas (MEF)- Seguimiento de la Ejecución Presupuestal (Consulta amigable) | L147: Portal de Transparencia Económica | M147: http://apps5.mineco.gob.pe/transparencia/Navegador/default.aspx?y=2015&ap=ActProy | P147: =IFERROR(IF(VLOOKUP(CONCATENATE(E147,F147,G147),ListaIndicadores!$Z$7:$AD$1345,3,FALSE)="","",VLOOKUP(CONCATENATE(E147,F147,G147),ListaIndicadores!$Z$7:$AD$1345,3,FALSE)),"") ->  | Q147: =VLOOKUP(CONCATENATE(E147,F147,G147),ListaIndicadores!$Z$7:$AD$1345,4,FALSE) -> 4709896
A148: 5852 | B148: Ambiental | C148: I. LINEAMIENTO DE POLITICA Mejorar la Gestión Ambiental. | D148: AGA.1.6 | E148: Monto del Presupuesto público ejecutado en la función ambiental (instancias, planes, programas y proyectos de gestión ambiental en los tres niveles de gobierno) - Millones de Soles | F148: Gobierno Nacional | G148: Amazonas | H148: 2016 | I148: 4528430 | J148: Soles | K148: Ministerio de Economía y Finanzas (MEF)- Seguimiento de la Ejecución Presupuestal (Consulta amigable) | L148: Portal de Transparencia Económica | M148: http://apps5.mineco.gob.pe/transparencia/Navegador/default.aspx?y=2015&ap=ActProy | P148: =IFERROR(IF(VLOOKUP(CONCATENATE(E148,F148,G148),ListaIndicadores!$Z$7:$AD$1345,3,FALSE)="","",VLOOKUP(CONCATENATE(E148,F148,G148),ListaIndicadores!$Z$7:$AD$1345,3,FALSE)),"") ->  | Q148: =VLOOKUP(CONCATENATE(E148,F148,G148),ListaIndicadores!$Z$7:$AD$1345,4,FALSE) -> 4709896
A149: 5853 | B149: Ambiental | C149: I. LINEAMIENTO DE POLITICA Mejorar la Gestión Ambiental. | D149: AGA.1.6 | E149: Monto del Presupuesto público ejecutado en la función ambiental (instancias, planes, programas y proyectos de gestión ambiental en los tres niveles de gobierno) - Millones de Soles | F149: Gobierno Nacional | G149: Amazonas | H149: 2017 | I149: 4977152 | J149: Soles | K149: Ministerio de Economía y Finanzas (MEF)- Seguimiento de la Ejecución Presupuestal (Consulta amigable) | L149: Portal de Transparencia Económica | M149: http://apps5.mineco.gob.pe/transparencia/Navegador/default.aspx?y=2015&ap=ActProy | P149: =IFERROR(IF(VLOOKUP(CONCATENATE(E149,F149,G149),ListaIndicadores!$Z$7:$AD$1345,3,FALSE)="","",VLOOKUP(CONCATENATE(E149,F149,G149),ListaIndicadores!$Z$7:$AD$1345,3,FALSE)),"") ->  | Q149: =VLOOKUP(CONCATENATE(E149,F149,G149),ListaIndicadores!$Z$7:$AD$1345,4,FALSE) -> 4709896
A150: 5854 | B150: Ambiental | C150: I. LINEAMIENTO DE POLITICA Mejorar la Gestión Ambiental. | D150: AGA.1.6 | E150: Monto del Presupuesto público ejecutado en la función ambiental (instancias, planes, programas y proyectos de gestión ambiental en los tres niveles de gobierno) - Millones de Soles | F150: Gobierno Nacional | G150: Amazonas | H150: 2018 | I150: 4484296 | J150: Soles | K150: Ministerio de Economía y Finanzas (MEF)- Seguimiento de la Ejecución Presupuestal (Consulta amigable) | L150: Portal de Transparencia Económica | M150: http://apps5.mineco.gob.pe/transparencia/Navegador/default.aspx?y=2015&ap=ActProy | P150: =IFERROR(IF(VLOOKUP(CONCATENATE(E150,F150,G150),ListaIndicadores!$Z$7:$AD$1345,3,FALSE)="","",VLOOKUP(CONCATENATE(E150,F150,G150),ListaIndicadores!$Z$7:$AD$1345,3,FALSE)),"") ->  | Q150: =VLOOKUP(CONCATENATE(E150,F150,G150),ListaIndicadores!$Z$7:$AD$1345,4,FALSE) -> 4709896
A151: 5975 | B151: Ambiental | C151: I. LINEAMIENTO DE POLITICA Mejorar la Gestión Ambiental. | D151: AGA.1.6 | E151: Monto del Presupuesto público ejecutado en la función ambiental (instancias, planes, programas y proyectos de gestión ambiental en los tres niveles de gobierno) - Millones de Soles | F151: Gobierno Regional | G151: Amazonas | H151: 2014 | I151: 191550 | J151: Soles | K151: Ministerio de Economía y Finanzas (MEF)- Seguimiento de la Ejecución Presupuestal (Consulta amigable) | L151: Portal de Transparencia Económica | M151: http://apps5.mineco.gob.pe/transparencia/Navegador/default.aspx?y=2015&ap=ActProy | P151: =IFERROR(IF(VLOOKUP(CONCATENATE(E151,F151,G151),ListaIndicadores!$Z$7:$AD$1345,3,FALSE)="","",VLOOKUP(CONCATENATE(E151,F151,G151),ListaIndicadores!$Z$7:$AD$1345,3,FALSE)),"") ->  | Q151: =VLOOKUP(CONCATENATE(E151,F151,G151),ListaIndicadores!$Z$7:$AD$1345,4,FALSE) -> 141848318
A152: 5976 | B152: Ambiental | C152: I. LINEAMIENTO DE POLITICA Mejorar la Gestión Ambiental. | D152: AGA.1.6 | E152: Monto del Presupuesto público ejecutado en la función ambiental (instancias, planes, programas y proyectos de gestión ambiental en los tres niveles de gobierno) - Millones de Soles | F152: Gobierno Regional | G152: Amazonas | H152: 2015 | I152: 4647437 | J152: Soles | K152: Ministerio de Economía y Finanzas (MEF)- Seguimiento de la Ejecución Presupuestal (Consulta amigable) | L152: Portal de Transparencia Económica | M152: http://apps5.mineco.gob.pe/transparencia/Navegador/default.aspx?y=2015&ap=ActProy | P152: =IFERROR(IF(VLOOKUP(CONCATENATE(E152,F152,G152),ListaIndicadores!$Z$7:$AD$1345,3,FALSE)="","",VLOOKUP(CONCATENATE(E152,F152,G152),ListaIndicadores!$Z$7:$AD$1345,3,FALSE)),"") ->  | Q152: =VLOOKUP(CONCATENATE(E152,F152,G152),ListaIndicadores!$Z$7:$AD$1345,4,FALSE) -> 141848318
A153: 5977 | B153: Ambiental | C153: I. LINEAMIENTO DE POLITICA Mejorar la Gestión Ambiental. | D153: AGA.1.6 | E153: Monto del Presupuesto público ejecutado en la función ambiental (instancias, planes, programas y proyectos de gestión ambiental en los tres niveles de gobierno) - Millones de Soles | F153: Gobierno Regional | G153: Amazonas | H153: 2016 | I153: 3039782 | J153: Soles | K153: Ministerio de Economía y Finanzas (MEF)- Seguimiento de la Ejecución Presupuestal (Consulta amigable) | L153: Portal de Transparencia Económica | M153: http://apps5.mineco.gob.pe/transparencia/Navegador/default.aspx?y=2015&ap=ActProy | P153: =IFERROR(IF(VLOOKUP(CONCATENATE(E153,F153,G153),ListaIndicadores!$Z$7:$AD$1345,3,FALSE)="","",VLOOKUP(CONCATENATE(E153,F153,G153),ListaIndicadores!$Z$7:$AD$1345,3,FALSE)),"") ->  | Q153: =VLOOKUP(CONCATENATE(E153,F153,G153),ListaIndicadores!$Z$7:$AD$1345,4,FALSE) -> 141848318
A154: 5978 | B154: Ambiental | C154: I. LINEAMIENTO DE POLITICA Mejorar la Gestión Ambiental. | D154: AGA.1.6 | E154: Monto del Presupuesto público ejecutado en la función ambiental (instancias, planes, programas y proyectos de gestión ambiental en los tres niveles de gobierno) - Millones de Soles | F154: Gobierno Regional | G154: Amazonas | H154: 2017 | I154: 830812240 | J154: Soles | K154: Ministerio de Economía y Finanzas (MEF)- Seguimiento de la Ejecución Presupuestal (Consulta amigable) | L154: Portal de Transparencia Económica | M154: http://apps5.mineco.gob.pe/transparencia/Navegador/default.aspx?y=2015&ap=ActProy | P154: =IFERROR(IF(VLOOKUP(CONCATENATE(E154,F154,G154),ListaIndicadores!$Z$7:$AD$1345,3,FALSE)="","",VLOOKUP(CONCATENATE(E154,F154,G154),ListaIndicadores!$Z$7:$AD$1345,3,FALSE)),"") ->  | Q154: =VLOOKUP(CONCATENATE(E154,F154,G154),ListaIndicadores!$Z$7:$AD$1345,4,FALSE) -> 141848318
A155: 5979 | B155: Ambiental | C155: I. LINEAMIENTO DE POLITICA Mejorar la Gestión Ambiental. | D155: AGA.1.6 | E155: Monto del Presupuesto público ejecutado en la función ambiental (instancias, planes, programas y proyectos de gestión ambiental en los tres niveles de gobierno) - Millones de Soles | F155: Gobierno Regional | G155: Amazonas | H155: 2018 | I155: 21980771 | J155: Soles | K155: Ministerio de Economía y Finanzas (MEF)- Seguimiento de la Ejecución Presupuestal (Consulta amigable) | L155: Portal de Transparencia Económica | M155: http://apps5.mineco.gob.pe/transparencia/Navegador/default.aspx?y=2015&ap=ActProy | P155: =IFERROR(IF(VLOOKUP(CONCATENATE(E155,F155,G155),ListaIndicadores!$Z$7:$AD$1345,3,FALSE)="","",VLOOKUP(CONCATENATE(E155,F155,G155),ListaIndicadores!$Z$7:$AD$1345,3,FALSE)),"") ->  | Q155: =VLOOKUP(CONCATENATE(E155,F155,G155),ListaIndicadores!$Z$7:$AD$1345,4,FALSE) -> 141848318
A156: 6100 | B156: Ambiental | C156: I. LINEAMIENTO DE POLITICA Mejorar la Gestión Ambiental. | D156: AGA.1.7 | E156: Porcentaje del Presupuesto ejecutado en la función ambiental en relación al total del presupuesto nacional - Millones de Soles | F156: Gasto Público Ambiental como porcentaje del Gasto Público Tota | G156: Amazonas | H156: 2014 | I156: 0.5 | J156: Porcentaje | K156: Ministerio de Economía y Finanzas (MEF)- Seguimiento de la Ejecución Presupuestal (Consulta amigable) | L156: Portal de Transparencia Económica | M156: http://apps5.mineco.gob.pe/transparencia/Navegador/default.aspx?y=2015&ap=ActProy | P156: =IFERROR(IF(VLOOKUP(CONCATENATE(E156,F156,G156),ListaIndicadores!$Z$7:$AD$1345,3,FALSE)="","",VLOOKUP(CONCATENATE(E156,F156,G156),ListaIndicadores!$Z$7:$AD$1345,3,FALSE)),"") ->  | Q156: =VLOOKUP(CONCATENATE(E156,F156,G156),ListaIndicadores!$Z$7:$AD$1345,4,FALSE) -> 1
A157: 6101 | B157: Ambiental | C157: I. LINEAMIENTO DE POLITICA Mejorar la Gestión Ambiental. | D157: AGA.1.7 | E157: Porcentaje del Presupuesto ejecutado en la función ambiental en relación al total del presupuesto nacional - Millones de Soles | F157: Gasto Público Ambiental como porcentaje del Gasto Público Tota | G157: Amazonas | H157: 2015 | I157: 0.5 | J157: Porcentaje | K157: Ministerio de Economía y Finanzas (MEF)- Seguimiento de la Ejecución Presupuestal (Consulta amigable) | L157: Portal de Transparencia Económica | M157: http://apps5.mineco.gob.pe/transparencia/Navegador/default.aspx?y=2015&ap=ActProy | P157: =IFERROR(IF(VLOOKUP(CONCATENATE(E157,F157,G157),ListaIndicadores!$Z$7:$AD$1345,3,FALSE)="","",VLOOKUP(CONCATENATE(E157,F157,G157),ListaIndicadores!$Z$7:$AD$1345,3,FALSE)),"") ->  | Q157: =VLOOKUP(CONCATENATE(E157,F157,G157),ListaIndicadores!$Z$7:$AD$1345,4,FALSE) -> 1
A158: 6102 | B158: Ambiental | C158: I. LINEAMIENTO DE POLITICA Mejorar la Gestión Ambiental. | D158: AGA.1.7 | E158: Porcentaje del Presupuesto ejecutado en la función ambiental en relación al total del presupuesto nacional - Millones de Soles | F158: Gasto Público Ambiental como porcentaje del Gasto Público Tota | G158: Amazonas | H158: 2016 | I158: 0.6 | J158: Porcentaje | K158: Ministerio de Economía y Finanzas (MEF)- Seguimiento de la Ejecución Presupuestal (Consulta amigable) | L158: Portal de Transparencia Económica | M158: http://apps5.mineco.gob.pe/transparencia/Navegador/default.aspx?y=2015&ap=ActProy | P158: =IFERROR(IF(VLOOKUP(CONCATENATE(E158,F158,G158),ListaIndicadores!$Z$7:$AD$1345,3,FALSE)="","",VLOOKUP(CONCATENATE(E158,F158,G158),ListaIndicadores!$Z$7:$AD$1345,3,FALSE)),"") ->  | Q158: =VLOOKUP(CONCATENATE(E158,F158,G158),ListaIndicadores!$Z$7:$AD$1345,4,FALSE) -> 1
A159: 6103 | B159: Ambiental | C159: I. LINEAMIENTO DE POLITICA Mejorar la Gestión Ambiental. | D159: AGA.1.7 | E159: Porcentaje del Presupuesto ejecutado en la función ambiental en relación al total del presupuesto nacional - Millones de Soles | F159: Gasto Público Ambiental como porcentaje del Gasto Público Tota | G159: Amazonas | H159: 2017 | I159: 0.7 | J159: Porcentaje | K159: Ministerio de Economía y Finanzas (MEF)- Seguimiento de la Ejecución Presupuestal (Consulta amigable) | L159: Portal de Transparencia Económica | M159: http://apps5.mineco.gob.pe/transparencia/Navegador/default.aspx?y=2015&ap=ActProy | P159: =IFERROR(IF(VLOOKUP(CONCATENATE(E159,F159,G159),ListaIndicadores!$Z$7:$AD$1345,3,FALSE)="","",VLOOKUP(CONCATENATE(E159,F159,G159),ListaIndicadores!$Z$7:$AD$1345,3,FALSE)),"") ->  | Q159: =VLOOKUP(CONCATENATE(E159,F159,G159),ListaIndicadores!$Z$7:$AD$1345,4,FALSE) -> 1
A160: 6104 | B160: Ambiental | C160: I. LINEAMIENTO DE POLITICA Mejorar la Gestión Ambiental. | D160: AGA.1.7 | E160: Porcentaje del Presupuesto ejecutado en la función ambiental en relación al total del presupuesto nacional - Millones de Soles | F160: Gasto Público Ambiental como porcentaje del Gasto Público Tota | G160: Amazonas | H160: 2018 | I160: 1.2 | J160: Porcentaje | K160: Ministerio de Economía y Finanzas (MEF)- Seguimiento de la Ejecución Presupuestal (Consulta amigable) | L160: Portal de Transparencia Económica | M160: http://apps5.mineco.gob.pe/transparencia/Navegador/default.aspx?y=2015&ap=ActProy | P160: =IFERROR(IF(VLOOKUP(CONCATENATE(E160,F160,G160),ListaIndicadores!$Z$7:$AD$1345,3,FALSE)="","",VLOOKUP(CONCATENATE(E160,F160,G160),ListaIndicadores!$Z$7:$AD$1345,3,FALSE)),"") ->  | Q160: =VLOOKUP(CONCATENATE(E160,F160,G160),ListaIndicadores!$Z$7:$AD$1345,4,FALSE) -> 1
A161: 6105 | B161: Ambiental | C161: I. LINEAMIENTO DE POLITICA Mejorar la Gestión Ambiental. | D161: AGA.1.7 | E161: Porcentaje del Presupuesto ejecutado en la función ambiental en relación al total del presupuesto nacional - Millones de Soles | F161: Gasto Público Ambiental como porcentaje del Gasto Público Tota | G161: Amazonas | H161: 2022 | I161: 5 | J161: Porcentaje | K161: Ministerio de Economía y Finanzas (MEF)- Seguimiento de la Ejecución Presupuestal (Consulta amigable) | L161: Portal de Transparencia Económica | M161: https://www.mesadeconcertacion.org.pe/acuerdos-de-gobernabilidad-regionales-y-locales-2019-2032 | P161: =IFERROR(IF(VLOOKUP(CONCATENATE(E161,F161,G161),ListaIndicadores!$Z$7:$AD$1345,3,FALSE)="","",VLOOKUP(CONCATENATE(E161,F161,G161),ListaIndicadores!$Z$7:$AD$1345,3,FALSE)),"") ->  | Q161: =VLOOKUP(CONCATENATE(E161,F161,G161),ListaIndicadores!$Z$7:$AD$1345,4,FALSE) -> 1
A162: 6227 | B162: Ambiental | C162: I. LINEAMIENTO DE POLITICA Mejorar la Gestión Ambiental. | D162: AGA.1.9 | E162: Porcentaje de Municipalidades que implementan acciones para la gestión ambiental a nivel distrital y provincial | F162: Departamental | G162: Amazonas | H162: 2014 | I162: 51.2 | J162: Porcentaje | K162: Instituto Nacional de Estadística e Informática (INEI) - Registro Nacional de Municipalidades (RENAMU) | L162: Instituto Nacional de Estadística e Informática (INEI) - Registro Nacional de Municipalidades (RENAMU) | M162: https://www.inei.gob.pe/media/MenuRecursivo/publicaciones_digitales/Est/Lib1362/index.html | P162: =IFERROR(IF(VLOOKUP(CONCATENATE(E162,F162,G162),ListaIndicadores!$Z$7:$AD$1345,3,FALSE)="","",VLOOKUP(CONCATENATE(E162,F162,G162),ListaIndicadores!$Z$7:$AD$1345,3,FALSE)),"") ->  | Q162: =VLOOKUP(CONCATENATE(E162,F162,G162),ListaIndicadores!$Z$7:$AD$1345,4,FALSE) -> 112
A163: 6228 | B163: Ambiental | C163: I. LINEAMIENTO DE POLITICA Mejorar la Gestión Ambiental. | D163: AGA.1.9 | E163: Porcentaje de Municipalidades que implementan acciones para la gestión ambiental a nivel distrital y provincial | F163: Departamental | G163: Amazonas | H163: 2015 | I163: 62.5 | J163: Porcentaje | K163: Instituto Nacional de Estadística e Informática (INEI) - Registro Nacional de Municipalidades (RENAMU) | L163: Instituto Nacional de Estadística e Informática (INEI) - Registro Nacional de Municipalidades (RENAMU) | M163: https://www.inei.gob.pe/media/MenuRecursivo/publicaciones_digitales/Est/Lib1417/libro.pdf | P163: =IFERROR(IF(VLOOKUP(CONCATENATE(E163,F163,G163),ListaIndicadores!$Z$7:$AD$1345,3,FALSE)="","",VLOOKUP(CONCATENATE(E163,F163,G163),ListaIndicadores!$Z$7:$AD$1345,3,FALSE)),"") ->  | Q163: =VLOOKUP(CONCATENATE(E163,F163,G163),ListaIndicadores!$Z$7:$AD$1345,4,FALSE) -> 112
A164: 6229 | B164: Ambiental | C164: I. LINEAMIENTO DE POLITICA Mejorar la Gestión Ambiental. | D164: AGA.1.9 | E164: Porcentaje de Municipalidades que implementan acciones para la gestión ambiental a nivel distrital y provincial | F164: Departamental | G164: Amazonas | H164: 2016 | I164: 64.3 | J164: Porcentaje | K164: Instituto Nacional de Estadística e Informática (INEI) - Registro Nacional de Municipalidades (RENAMU) | L164: Instituto Nacional de Estadística e Informática (INEI) - Registro Nacional de Municipalidades (RENAMU) | M164: https://www.inei.gob.pe/media/MenuRecursivo/publicaciones_digitales/Est/Lib1417/libro.pdf | P164: =IFERROR(IF(VLOOKUP(CONCATENATE(E164,F164,G164),ListaIndicadores!$Z$7:$AD$1345,3,FALSE)="","",VLOOKUP(CONCATENATE(E164,F164,G164),ListaIndicadores!$Z$7:$AD$1345,3,FALSE)),"") ->  | Q164: =VLOOKUP(CONCATENATE(E164,F164,G164),ListaIndicadores!$Z$7:$AD$1345,4,FALSE) -> 112
A165: 6230 | B165: Ambiental | C165: I. LINEAMIENTO DE POLITICA Mejorar la Gestión Ambiental. | D165: AGA.1.9 | E165: Porcentaje de Municipalidades que implementan acciones para la gestión ambiental a nivel distrital y provincial | F165: Departamental | G165: Amazonas | H165: 2017 | I165: 66.7 | J165: Porcentaje | K165: Instituto Nacional de Estadística e Informática (INEI) - Registro Nacional de Municipalidades (RENAMU) | L165: Instituto Nacional de Estadística e Informática (INEI) - Registro Nacional de Municipalidades (RENAMU) | M165: https://www.inei.gob.pe/media/MenuRecursivo/publicaciones_digitales/Est/Lib1636/index.html | P165: =IFERROR(IF(VLOOKUP(CONCATENATE(E165,F165,G165),ListaIndicadores!$Z$7:$AD$1345,3,FALSE)="","",VLOOKUP(CONCATENATE(E165,F165,G165),ListaIndicadores!$Z$7:$AD$1345,3,FALSE)),"") ->  | Q165: =VLOOKUP(CONCATENATE(E165,F165,G165),ListaIndicadores!$Z$7:$AD$1345,4,FALSE) -> 112
A166: 6231 | B166: Ambiental | C166: I. LINEAMIENTO DE POLITICA Mejorar la Gestión Ambiental. | D166: AGA.1.9 | E166: Porcentaje de Municipalidades que implementan acciones para la gestión ambiental a nivel distrital y provincial | F166: Departamental | G166: Amazonas | H166: 2018 | I166: Sin datos | J166: Porcentaje | K166: Instituto Nacional de Estadística e Informática (INEI) - Registro Nacional de Municipalidades (RENAMU) | L166: Instituto Nacional de Estadística e Informática (INEI) - Registro Nacional de Municipalidades (RENAMU) | M166: https://www.inei.gob.pe/media/MenuRecursivo/publicaciones_digitales/Est/Lib1636/index.html | P166: =IFERROR(IF(VLOOKUP(CONCATENATE(E166,F166,G166),ListaIndicadores!$Z$7:$AD$1345,3,FALSE)="","",VLOOKUP(CONCATENATE(E166,F166,G166),ListaIndicadores!$Z$7:$AD$1345,3,FALSE)),"") ->  | Q166: =VLOOKUP(CONCATENATE(E166,F166,G166),ListaIndicadores!$Z$7:$AD$1345,4,FALSE) -> 112
A167: 6362 | B167: Ambiental | C167: I. LINEAMIENTO DE POLITICA Mejorar la Gestión Ambiental. | D167: AGA.3.4. | E167: Porcentaje de Municipalidades cuentan con instrumentos de gestión ambiental aprobados y en implementación | F167: Departamental | G167: Amazonas | H167: 2014 | I167: 28.6 | J167: Porcentaje | K167: Instituto Nacional de Estadística e Informática (INEI) - Registro Nacional de Municipalidades (RENAMU) | L167: Instituto Nacional de Estadística e Informática (INEI) - Registro Nacional de Municipalidades (RENAMU) | M167: https://www.inei.gob.pe/media/MenuRecursivo/publicaciones_digitales/Est/Lib1246/index.html | P167: =IFERROR(IF(VLOOKUP(CONCATENATE(E167,F167,G167),ListaIndicadores!$Z$7:$AD$1345,3,FALSE)="","",VLOOKUP(CONCATENATE(E167,F167,G167),ListaIndicadores!$Z$7:$AD$1345,3,FALSE)),"") ->  | Q167: =VLOOKUP(CONCATENATE(E167,F167,G167),ListaIndicadores!$Z$7:$AD$1345,4,FALSE) -> 134
A168: 6363 | B168: Ambiental | C168: I. LINEAMIENTO DE POLITICA Mejorar la Gestión Ambiental. | D168: AGA.3.4. | E168: Porcentaje de Municipalidades cuentan con instrumentos de gestión ambiental aprobados y en implementación | F168: Departamental | G168: Amazonas | H168: 2015 | I168: 27.4 | J168: Porcentaje | K168: Instituto Nacional de Estadística e Informática (INEI) - Registro Nacional de Municipalidades (RENAMU) | L168: Instituto Nacional de Estadística e Informática (INEI) - Registro Nacional de Municipalidades (RENAMU) | M168: https://www.inei.gob.pe/media/MenuRecursivo/publicaciones_digitales/Est/Lib1362/index.html | P168: =IFERROR(IF(VLOOKUP(CONCATENATE(E168,F168,G168),ListaIndicadores!$Z$7:$AD$1345,3,FALSE)="","",VLOOKUP(CONCATENATE(E168,F168,G168),ListaIndicadores!$Z$7:$AD$1345,3,FALSE)),"") ->  | Q168: =VLOOKUP(CONCATENATE(E168,F168,G168),ListaIndicadores!$Z$7:$AD$1345,4,FALSE) -> 134
A169: 6364 | B169: Ambiental | C169: I. LINEAMIENTO DE POLITICA Mejorar la Gestión Ambiental. | D169: AGA.3.4. | E169: Porcentaje de Municipalidades cuentan con instrumentos de gestión ambiental aprobados y en implementación | F169: Departamental | G169: Amazonas | H169: 2016 | I169: 41.7 | J169: Porcentaje | K169: Instituto Nacional de Estadística e Informática (INEI) - Registro Nacional de Municipalidades (RENAMU) | L169: Instituto Nacional de Estadística e Informática (INEI) - Registro Nacional de Municipalidades (RENAMU) | M169: https://www.inei.gob.pe/media/MenuRecursivo/publicaciones_digitales/Est/Lib1417/libro.pdf | P169: =IFERROR(IF(VLOOKUP(CONCATENATE(E169,F169,G169),ListaIndicadores!$Z$7:$AD$1345,3,FALSE)="","",VLOOKUP(CONCATENATE(E169,F169,G169),ListaIndicadores!$Z$7:$AD$1345,3,FALSE)),"") ->  | Q169: =VLOOKUP(CONCATENATE(E169,F169,G169),ListaIndicadores!$Z$7:$AD$1345,4,FALSE) -> 134
A170: 6365 | B170: Ambiental | C170: I. LINEAMIENTO DE POLITICA Mejorar la Gestión Ambiental. | D170: AGA.3.4. | E170: Porcentaje de Municipalidades cuentan con instrumentos de gestión ambiental aprobados y en implementación | F170: Departamental | G170: Amazonas | H170: 2017 | I170: 41.7 | J170: Porcentaje | K170: Instituto Nacional de Estadística e Informática (INEI) - Registro Nacional de Municipalidades (RENAMU) | L170: Instituto Nacional de Estadística e Informática (INEI) - Registro Nacional de Municipalidades (RENAMU) | M170: https://www.inei.gob.pe/media/MenuRecursivo/publicaciones_digitales/Est/Lib1474/ | P170: =IFERROR(IF(VLOOKUP(CONCATENATE(E170,F170,G170),ListaIndicadores!$Z$7:$AD$1345,3,FALSE)="","",VLOOKUP(CONCATENATE(E170,F170,G170),ListaIndicadores!$Z$7:$AD$1345,3,FALSE)),"") ->  | Q170: =VLOOKUP(CONCATENATE(E170,F170,G170),ListaIndicadores!$Z$7:$AD$1345,4,FALSE) -> 134
A171: 6366 | B171: Ambiental | C171: I. LINEAMIENTO DE POLITICA Mejorar la Gestión Ambiental. | D171: AGA.3.4. | E171: Porcentaje de Municipalidades cuentan con instrumentos de gestión ambiental aprobados y en implementación | F171: Departamental | G171: Amazonas | H171: 2018 | I171: 60.7 | J171: Porcentaje | K171: Instituto Nacional de Estadística e Informática (INEI) - Registro Nacional de Municipalidades (RENAMU) | L171: Instituto Nacional de Estadística e Informática (INEI) - Registro Nacional de Municipalidades (RENAMU) | M171: https://www.inei.gob.pe/media/MenuRecursivo/publicaciones_digitales/Est/Lib1636/index.html | P171: =IFERROR(IF(VLOOKUP(CONCATENATE(E171,F171,G171),ListaIndicadores!$Z$7:$AD$1345,3,FALSE)="","",VLOOKUP(CONCATENATE(E171,F171,G171),ListaIndicadores!$Z$7:$AD$1345,3,FALSE)),"") ->  | Q171: =VLOOKUP(CONCATENATE(E171,F171,G171),ListaIndicadores!$Z$7:$AD$1345,4,FALSE) -> 134
A172: 6518 | B172: Ambiental | C172: I. LINEAMIENTO DE POLITICA Mejorar la Gestión Ambiental. | D172: AGA.7.3. | E172: Número de conflictos mensuales, según su situación: activos y latentes | F172: Conflictos Activos | G172: Amazonas | H172: 2014 | I172: 1 | J172: Número de conflictos. | K172: Defensoría del Pueblo | L172: Defensoría del Pueblo - Sistema de Monitoreo de Conflictos Sociales (SIMCO) | M172: https://www.defensoria.gob.pe/?s=conflictos | P172: =IFERROR(IF(VLOOKUP(CONCATENATE(E172,F172,G172),ListaIndicadores!$Z$7:$AD$1345,3,FALSE)="","",VLOOKUP(CONCATENATE(E172,F172,G172),ListaIndicadores!$Z$7:$AD$1345,3,FALSE)),"") ->  | Q172: =VLOOKUP(CONCATENATE(E172,F172,G172),ListaIndicadores!$Z$7:$AD$1345,4,FALSE) -> 3
A173: 6519 | B173: Ambiental | C173: I. LINEAMIENTO DE POLITICA Mejorar la Gestión Ambiental. | D173: AGA.7.3. | E173: Número de conflictos mensuales, según su situación: activos y latentes | F173: Conflictos Activos | G173: Amazonas | H173: 2015 | I173: 3 | J173: Número de conflictos. | K173: Defensoría del Pueblo | L173: Defensoría del Pueblo - Sistema de Monitoreo de Conflictos Sociales (SIMCO) | M173: https://www.defensoria.gob.pe/?s=conflictos | P173: =IFERROR(IF(VLOOKUP(CONCATENATE(E173,F173,G173),ListaIndicadores!$Z$7:$AD$1345,3,FALSE)="","",VLOOKUP(CONCATENATE(E173,F173,G173),ListaIndicadores!$Z$7:$AD$1345,3,FALSE)),"") ->  | Q173: =VLOOKUP(CONCATENATE(E173,F173,G173),ListaIndicadores!$Z$7:$AD$1345,4,FALSE) -> 3
A174: 6520 | B174: Ambiental | C174: I. LINEAMIENTO DE POLITICA Mejorar la Gestión Ambiental. | D174: AGA.7.3. | E174: Número de conflictos mensuales, según su situación: activos y latentes | F174: Conflictos Activos | G174: Amazonas | H174: 2016 | I174: 3 | J174: Número de conflictos. | K174: Defensoría del Pueblo | L174: Defensoría del Pueblo - Sistema de Monitoreo de Conflictos Sociales (SIMCO) | M174: https://www.defensoria.gob.pe/?s=conflictos | P174: =IFERROR(IF(VLOOKUP(CONCATENATE(E174,F174,G174),ListaIndicadores!$Z$7:$AD$1345,3,FALSE)="","",VLOOKUP(CONCATENATE(E174,F174,G174),ListaIndicadores!$Z$7:$AD$1345,3,FALSE)),"") ->  | Q174: =VLOOKUP(CONCATENATE(E174,F174,G174),ListaIndicadores!$Z$7:$AD$1345,4,FALSE) -> 3
A175: 6521 | B175: Ambiental | C175: I. LINEAMIENTO DE POLITICA Mejorar la Gestión Ambiental. | D175: AGA.7.3. | E175: Número de conflictos mensuales, según su situación: activos y latentes | F175: Conflictos Activos | G175: Amazonas | H175: 2017 | I175: 2 | J175: Número de conflictos. | K175: Defensoría del Pueblo | L175: Defensoría del Pueblo - Sistema de Monitoreo de Conflictos Sociales (SIMCO) | M175: https://www.defensoria.gob.pe/?s=conflictos | P175: =IFERROR(IF(VLOOKUP(CONCATENATE(E175,F175,G175),ListaIndicadores!$Z$7:$AD$1345,3,FALSE)="","",VLOOKUP(CONCATENATE(E175,F175,G175),ListaIndicadores!$Z$7:$AD$1345,3,FALSE)),"") ->  | Q175: =VLOOKUP(CONCATENATE(E175,F175,G175),ListaIndicadores!$Z$7:$AD$1345,4,FALSE) -> 3
A176: 6522 | B176: Ambiental | C176: I. LINEAMIENTO DE POLITICA Mejorar la Gestión Ambiental. | D176: AGA.7.3. | E176: Número de conflictos mensuales, según su situación: activos y latentes | F176: Conflictos Activos | G176: Amazonas | H176: 2018 | I176: 2 | J176: Número de conflictos. | K176: Defensoría del Pueblo | L176: Defensoría del Pueblo - Sistema de Monitoreo de Conflictos Sociales (SIMCO) | M176: https://www.defensoria.gob.pe/?s=conflictos | P176: =IFERROR(IF(VLOOKUP(CONCATENATE(E176,F176,G176),ListaIndicadores!$Z$7:$AD$1345,3,FALSE)="","",VLOOKUP(CONCATENATE(E176,F176,G176),ListaIndicadores!$Z$7:$AD$1345,3,FALSE)),"") ->  | Q176: =VLOOKUP(CONCATENATE(E176,F176,G176),ListaIndicadores!$Z$7:$AD$1345,4,FALSE) -> 3
A177: 6648 | B177: Ambiental | C177: I. LINEAMIENTO DE POLITICA Mejorar la Gestión Ambiental. | D177: AGA.7.3. | E177: Número de conflictos mensuales, según su situación: activos y latentes | F177: Conflictos Latentes | G177: Amazonas | H177: 2014 | I177: 2 | J177: Número de conflictos. | K177: Defensoría del Pueblo | L177: Defensoría del Pueblo - Sistema de Monitoreo de Conflictos Sociales (SIMCO) | M177: https://www.defensoria.gob.pe/?s=conflictos | P177: =IFERROR(IF(VLOOKUP(CONCATENATE(E177,F177,G177),ListaIndicadores!$Z$7:$AD$1345,3,FALSE)="","",VLOOKUP(CONCATENATE(E177,F177,G177),ListaIndicadores!$Z$7:$AD$1345,3,FALSE)),"") ->  | Q177: =VLOOKUP(CONCATENATE(E177,F177,G177),ListaIndicadores!$Z$7:$AD$1345,4,FALSE) -> -1
A178: 6649 | B178: Ambiental | C178: I. LINEAMIENTO DE POLITICA Mejorar la Gestión Ambiental. | D178: AGA.7.3. | E178: Número de conflictos mensuales, según su situación: activos y latentes | F178: Conflictos Latentes | G178: Amazonas | H178: 2015 | I178: 1 | J178: Número de conflictos. | K178: Defensoría del Pueblo | L178: Defensoría del Pueblo - Sistema de Monitoreo de Conflictos Sociales (SIMCO) | M178: https://www.defensoria.gob.pe/?s=conflictos | P178: =IFERROR(IF(VLOOKUP(CONCATENATE(E178,F178,G178),ListaIndicadores!$Z$7:$AD$1345,3,FALSE)="","",VLOOKUP(CONCATENATE(E178,F178,G178),ListaIndicadores!$Z$7:$AD$1345,3,FALSE)),"") ->  | Q178: =VLOOKUP(CONCATENATE(E178,F178,G178),ListaIndicadores!$Z$7:$AD$1345,4,FALSE) -> -1
A179: 6650 | B179: Ambiental | C179: I. LINEAMIENTO DE POLITICA Mejorar la Gestión Ambiental. | D179: AGA.7.3. | E179: Número de conflictos mensuales, según su situación: activos y latentes | F179: Conflictos Latentes | G179: Amazonas | H179: 2016 | I179: 0 | J179: Número de conflictos. | K179: Defensoría del Pueblo | L179: Defensoría del Pueblo - Sistema de Monitoreo de Conflictos Sociales (SIMCO) | M179: https://www.defensoria.gob.pe/?s=conflictos | P179: =IFERROR(IF(VLOOKUP(CONCATENATE(E179,F179,G179),ListaIndicadores!$Z$7:$AD$1345,3,FALSE)="","",VLOOKUP(CONCATENATE(E179,F179,G179),ListaIndicadores!$Z$7:$AD$1345,3,FALSE)),"") ->  | Q179: =VLOOKUP(CONCATENATE(E179,F179,G179),ListaIndicadores!$Z$7:$AD$1345,4,FALSE) -> -1
A180: 6651 | B180: Ambiental | C180: I. LINEAMIENTO DE POLITICA Mejorar la Gestión Ambiental. | D180: AGA.7.3. | E180: Número de conflictos mensuales, según su situación: activos y latentes | F180: Conflictos Latentes | G180: Amazonas | H180: 2017 | I180: 1 | J180: Número de conflictos. | K180: Defensoría del Pueblo | L180: Defensoría del Pueblo - Sistema de Monitoreo de Conflictos Sociales (SIMCO) | M180: https://www.defensoria.gob.pe/?s=conflictos | P180: =IFERROR(IF(VLOOKUP(CONCATENATE(E180,F180,G180),ListaIndicadores!$Z$7:$AD$1345,3,FALSE)="","",VLOOKUP(CONCATENATE(E180,F180,G180),ListaIndicadores!$Z$7:$AD$1345,3,FALSE)),"") ->  | Q180: =VLOOKUP(CONCATENATE(E180,F180,G180),ListaIndicadores!$Z$7:$AD$1345,4,FALSE) -> -1
A181: 6652 | B181: Ambiental | C181: I. LINEAMIENTO DE POLITICA Mejorar la Gestión Ambiental. | D181: AGA.7.3. | E181: Número de conflictos mensuales, según su situación: activos y latentes | F181: Conflictos Latentes | G181: Amazonas | H181: 2018 | I181: 1 | J181: Número de conflictos. | K181: Defensoría del Pueblo | L181: Defensoría del Pueblo - Sistema de Monitoreo de Conflictos Sociales (SIMCO) | M181: https://www.defensoria.gob.pe/?s=conflictos | P181: =IFERROR(IF(VLOOKUP(CONCATENATE(E181,F181,G181),ListaIndicadores!$Z$7:$AD$1345,3,FALSE)="","",VLOOKUP(CONCATENATE(E181,F181,G181),ListaIndicadores!$Z$7:$AD$1345,3,FALSE)),"") ->  | Q181: =VLOOKUP(CONCATENATE(E181,F181,G181),ListaIndicadores!$Z$7:$AD$1345,4,FALSE) -> -1
A182: 6778 | B182: Ambiental | C182: VI. LINEAMIENTO DE POLITICA: Implementar Planes y Programas integrados de gestión para la reducción de riesgos de desastres. | D182: AGA.48.4. | E182: Municipalidades que tienen de instrumentos de Gestión de Riesgo de Desastres | F182: Departamental | G182: Amazonas | H182: 2014 | I182: 51 | J182: Municipalidades | K182: Instituto Nacional de Estadística e Informática (INEI) - Registro Nacional de Municipalidades (RENAMU) | L182: Instituto Nacional de Estadística e Informática (INEI) - Registro Nacional de Municipalidades (RENAMU) | M182: https://www.inei.gob.pe/media/MenuRecursivo/publicaciones_digitales/Est/Lib1246/index.html | P182: =IFERROR(IF(VLOOKUP(CONCATENATE(E182,F182,G182),ListaIndicadores!$Z$7:$AD$1345,3,FALSE)="","",VLOOKUP(CONCATENATE(E182,F182,G182),ListaIndicadores!$Z$7:$AD$1345,3,FALSE)),"") ->  | Q182: =VLOOKUP(CONCATENATE(E182,F182,G182),ListaIndicadores!$Z$7:$AD$1345,4,FALSE) -> 25
A183: 6779 | B183: Ambiental | C183: VI. LINEAMIENTO DE POLITICA: Implementar Planes y Programas integrados de gestión para la reducción de riesgos de desastres. | D183: AGA.48.4. | E183: Municipalidades que tienen de instrumentos de Gestión de Riesgo de Desastres | F183: Departamental | G183: Amazonas | H183: 2015 | I183: 84 | J183: Municipalidades | K183: Instituto Nacional de Estadística e Informática (INEI) - Registro Nacional de Municipalidades (RENAMU) | L183: Instituto Nacional de Estadística e Informática (INEI) - Registro Nacional de Municipalidades (RENAMU) | M183: https://www.inei.gob.pe/media/MenuRecursivo/publicaciones_digitales/Est/Lib1362/index.html | P183: =IFERROR(IF(VLOOKUP(CONCATENATE(E183,F183,G183),ListaIndicadores!$Z$7:$AD$1345,3,FALSE)="","",VLOOKUP(CONCATENATE(E183,F183,G183),ListaIndicadores!$Z$7:$AD$1345,3,FALSE)),"") ->  | Q183: =VLOOKUP(CONCATENATE(E183,F183,G183),ListaIndicadores!$Z$7:$AD$1345,4,FALSE) -> 25
A184: 6780 | B184: Ambiental | C184: VI. LINEAMIENTO DE POLITICA: Implementar Planes y Programas integrados de gestión para la reducción de riesgos de desastres. | D184: AGA.48.4. | E184: Municipalidades que tienen de instrumentos de Gestión de Riesgo de Desastres | F184: Departamental | G184: Amazonas | H184: 2016 | I184: 53 | J184: Municipalidades | K184: Instituto Nacional de Estadística e Informática (INEI) - Registro Nacional de Municipalidades (RENAMU) | L184: Instituto Nacional de Estadística e Informática (INEI) - Registro Nacional de Municipalidades (RENAMU) | M184: https://www.inei.gob.pe/media/MenuRecursivo/publicaciones_digitales/Est/Lib1417/libro.pdf | P184: =IFERROR(IF(VLOOKUP(CONCATENATE(E184,F184,G184),ListaIndicadores!$Z$7:$AD$1345,3,FALSE)="","",VLOOKUP(CONCATENATE(E184,F184,G184),ListaIndicadores!$Z$7:$AD$1345,3,FALSE)),"") ->  | Q184: =VLOOKUP(CONCATENATE(E184,F184,G184),ListaIndicadores!$Z$7:$AD$1345,4,FALSE) -> 25
A185: 6781 | B185: Ambiental | C185: VI. LINEAMIENTO DE POLITICA: Implementar Planes y Programas integrados de gestión para la reducción de riesgos de desastres. | D185: AGA.48.4. | E185: Municipalidades que tienen de instrumentos de Gestión de Riesgo de Desastres | F185: Departamental | G185: Amazonas | H185: 2017 | I185: 53 | J185: Municipalidades | K185: Instituto Nacional de Estadística e Informática (INEI) - Registro Nacional de Municipalidades (RENAMU) | L185: Instituto Nacional de Estadística e Informática (INEI) - Registro Nacional de Municipalidades (RENAMU) | M185: https://www.inei.gob.pe/media/MenuRecursivo/publicaciones_digitales/Est/Lib1474/ | P185: =IFERROR(IF(VLOOKUP(CONCATENATE(E185,F185,G185),ListaIndicadores!$Z$7:$AD$1345,3,FALSE)="","",VLOOKUP(CONCATENATE(E185,F185,G185),ListaIndicadores!$Z$7:$AD$1345,3,FALSE)),"") ->  | Q185: =VLOOKUP(CONCATENATE(E185,F185,G185),ListaIndicadores!$Z$7:$AD$1345,4,FALSE) -> 25
A186: 6782 | B186: Ambiental | C186: VI. LINEAMIENTO DE POLITICA: Implementar Planes y Programas integrados de gestión para la reducción de riesgos de desastres. | D186: AGA.48.4. | E186: Municipalidades que tienen de instrumentos de Gestión de Riesgo de Desastres | F186: Departamental | G186: Amazonas | H186: 2018 | I186: 50 | J186: Municipalidades | K186: Instituto Nacional de Estadística e Informática (INEI) - Registro Nacional de Municipalidades (RENAMU) | L186: Instituto Nacional de Estadística e Informática (INEI) - Registro Nacional de Municipalidades (RENAMU) | M186: https://dimse.cenepred.gob.pe/simse/renamu-grd | P186: =IFERROR(IF(VLOOKUP(CONCATENATE(E186,F186,G186),ListaIndicadores!$Z$7:$AD$1345,3,FALSE)="","",VLOOKUP(CONCATENATE(E186,F186,G186),ListaIndicadores!$Z$7:$AD$1345,3,FALSE)),"") ->  | Q186: =VLOOKUP(CONCATENATE(E186,F186,G186),ListaIndicadores!$Z$7:$AD$1345,4,FALSE) -> 25
A187: 6914 | B187: Ambiental | C187: VI. LINEAMIENTO DE POLITICA: Implementar Planes y Programas integrados de gestión para la reducción de riesgos de desastres. | D187: AGA.48.5. | E187: Municipalidades que tienen Brigadas de Defensa Civil | F187: Departamental | G187: Amazonas | H187: 2014 | I187: Sin datos | J187: Municipalidades | K187: Instituto Nacional de Estadística e Informática (INEI) - Registro Nacional de Municipalidades (RENAMU) | L187: Instituto Nacional de Estadística e Informática (INEI) - Registro Nacional de Municipalidades (RENAMU) | M187: https://www.inei.gob.pe/media/MenuRecursivo/publicaciones_digitales/Est/Lib1246/index.html | P187: =IFERROR(IF(VLOOKUP(CONCATENATE(E187,F187,G187),ListaIndicadores!$Z$7:$AD$1345,3,FALSE)="","",VLOOKUP(CONCATENATE(E187,F187,G187),ListaIndicadores!$Z$7:$AD$1345,3,FALSE)),"") ->  | Q187: =VLOOKUP(CONCATENATE(E187,F187,G187),ListaIndicadores!$Z$7:$AD$1345,4,FALSE) -> 54
A188: 6915 | B188: Ambiental | C188: VI. LINEAMIENTO DE POLITICA: Implementar Planes y Programas integrados de gestión para la reducción de riesgos de desastres. | D188: AGA.48.5. | E188: Municipalidades que tienen Brigadas de Defensa Civil | F188: Departamental | G188: Amazonas | H188: 2015 | I188: 15 | J188: Municipalidades | K188: Instituto Nacional de Estadística e Informática (INEI) - Registro Nacional de Municipalidades (RENAMU) | L188: Instituto Nacional de Estadística e Informática (INEI) - Registro Nacional de Municipalidades (RENAMU) | M188: https://www.inei.gob.pe/media/MenuRecursivo/publicaciones_digitales/Est/Lib1362/index.html | P188: =IFERROR(IF(VLOOKUP(CONCATENATE(E188,F188,G188),ListaIndicadores!$Z$7:$AD$1345,3,FALSE)="","",VLOOKUP(CONCATENATE(E188,F188,G188),ListaIndicadores!$Z$7:$AD$1345,3,FALSE)),"") ->  | Q188: =VLOOKUP(CONCATENATE(E188,F188,G188),ListaIndicadores!$Z$7:$AD$1345,4,FALSE) -> 54
A189: 6916 | B189: Ambiental | C189: VI. LINEAMIENTO DE POLITICA: Implementar Planes y Programas integrados de gestión para la reducción de riesgos de desastres. | D189: AGA.48.5. | E189: Municipalidades que tienen Brigadas de Defensa Civil | F189: Departamental | G189: Amazonas | H189: 2016 | I189: 21 | J189: Municipalidades | K189: Instituto Nacional de Estadística e Informática (INEI) - Registro Nacional de Municipalidades (RENAMU) | L189: Instituto Nacional de Estadística e Informática (INEI) - Registro Nacional de Municipalidades (RENAMU) | M189: https://www.inei.gob.pe/media/MenuRecursivo/publicaciones_digitales/Est/Lib1417/libro.pdf | P189: =IFERROR(IF(VLOOKUP(CONCATENATE(E189,F189,G189),ListaIndicadores!$Z$7:$AD$1345,3,FALSE)="","",VLOOKUP(CONCATENATE(E189,F189,G189),ListaIndicadores!$Z$7:$AD$1345,3,FALSE)),"") ->  | Q189: =VLOOKUP(CONCATENATE(E189,F189,G189),ListaIndicadores!$Z$7:$AD$1345,4,FALSE) -> 54
A190: 6917 | B190: Ambiental | C190: VI. LINEAMIENTO DE POLITICA: Implementar Planes y Programas integrados de gestión para la reducción de riesgos de desastres. | D190: AGA.48.5. | E190: Municipalidades que tienen Brigadas de Defensa Civil | F190: Departamental | G190: Amazonas | H190: 2017 | I190: 22 | J190: Municipalidades | K190: Instituto Nacional de Estadística e Informática (INEI) - Registro Nacional de Municipalidades (RENAMU) | L190: Instituto Nacional de Estadística e Informática (INEI) - Registro Nacional de Municipalidades (RENAMU) | M190: https://www.inei.gob.pe/media/MenuRecursivo/publicaciones_digitales/Est/Lib1474/ | P190: =IFERROR(IF(VLOOKUP(CONCATENATE(E190,F190,G190),ListaIndicadores!$Z$7:$AD$1345,3,FALSE)="","",VLOOKUP(CONCATENATE(E190,F190,G190),ListaIndicadores!$Z$7:$AD$1345,3,FALSE)),"") ->  | Q190: =VLOOKUP(CONCATENATE(E190,F190,G190),ListaIndicadores!$Z$7:$AD$1345,4,FALSE) -> 54
A191: 6918 | B191: Ambiental | C191: VI. LINEAMIENTO DE POLITICA: Implementar Planes y Programas integrados de gestión para la reducción de riesgos de desastres. | D191: AGA.48.5. | E191: Municipalidades que tienen Brigadas de Defensa Civil | F191: Departamental | G191: Amazonas | H191: 2018 | I191: Sin datos | J191: Municipalidades | K191: Instituto Nacional de Estadística e Informática (INEI) - Registro Nacional de Municipalidades (RENAMU) | L191: Instituto Nacional de Estadística e Informática (INEI) - Registro Nacional de Municipalidades (RENAMU) | M191: https://www.inei.gob.pe/media/MenuRecursivo/publicaciones_digitales/Est/Lib1636/index.html | P191: =IFERROR(IF(VLOOKUP(CONCATENATE(E191,F191,G191),ListaIndicadores!$Z$7:$AD$1345,3,FALSE)="","",VLOOKUP(CONCATENATE(E191,F191,G191),ListaIndicadores!$Z$7:$AD$1345,3,FALSE)),"") ->  | Q191: =VLOOKUP(CONCATENATE(E191,F191,G191),ListaIndicadores!$Z$7:$AD$1345,4,FALSE) -> 54
A192: 7049 | B192: Ambiental | C192: VI. LINEAMIENTO DE POLITICA: Implementar Planes y Programas integrados de gestión para la reducción de riesgos de desastres. | D192: AGA.48.6. | E192: Municipalidades que tienen Equipo de Trabajo en el COEL | F192: Departamental | G192: Amazonas | H192: 2014 | I192: 84 | J192: Municipalidades | K192: Instituto Nacional de Estadística e Informática (INEI) - Registro Nacional de Municipalidades (RENAMU) | L192: Instituto Nacional de Estadística e Informática (INEI) - Registro Nacional de Municipalidades (RENAMU) | M192: https://www.inei.gob.pe/media/MenuRecursivo/publicaciones_digitales/Est/Lib1246/index.html | P192: =IFERROR(IF(VLOOKUP(CONCATENATE(E192,F192,G192),ListaIndicadores!$Z$7:$AD$1345,3,FALSE)="","",VLOOKUP(CONCATENATE(E192,F192,G192),ListaIndicadores!$Z$7:$AD$1345,3,FALSE)),"") ->  | Q192: =VLOOKUP(CONCATENATE(E192,F192,G192),ListaIndicadores!$Z$7:$AD$1345,4,FALSE) -> -37
A193: 7050 | B193: Ambiental | C193: VI. LINEAMIENTO DE POLITICA: Implementar Planes y Programas integrados de gestión para la reducción de riesgos de desastres. | D193: AGA.48.6. | E193: Municipalidades que tienen Equipo de Trabajo en el COEL | F193: Departamental | G193: Amazonas | H193: 2015 | I193: 61 | J193: Municipalidades | K193: Instituto Nacional de Estadística e Informática (INEI) - Registro Nacional de Municipalidades (RENAMU) | L193: Instituto Nacional de Estadística e Informática (INEI) - Registro Nacional de Municipalidades (RENAMU) | M193: https://www.inei.gob.pe/media/MenuRecursivo/publicaciones_digitales/Est/Lib1362/index.html | P193: =IFERROR(IF(VLOOKUP(CONCATENATE(E193,F193,G193),ListaIndicadores!$Z$7:$AD$1345,3,FALSE)="","",VLOOKUP(CONCATENATE(E193,F193,G193),ListaIndicadores!$Z$7:$AD$1345,3,FALSE)),"") ->  | Q193: =VLOOKUP(CONCATENATE(E193,F193,G193),ListaIndicadores!$Z$7:$AD$1345,4,FALSE) -> -37
A194: 7051 | B194: Ambiental | C194: VI. LINEAMIENTO DE POLITICA: Implementar Planes y Programas integrados de gestión para la reducción de riesgos de desastres. | D194: AGA.48.6. | E194: Municipalidades que tienen Equipo de Trabajo en el COEL | F194: Departamental | G194: Amazonas | H194: 2016 | I194: 33 | J194: Municipalidades | K194: Instituto Nacional de Estadística e Informática (INEI) - Registro Nacional de Municipalidades (RENAMU) | L194: Instituto Nacional de Estadística e Informática (INEI) - Registro Nacional de Municipalidades (RENAMU) | M194: https://www.inei.gob.pe/media/MenuRecursivo/publicaciones_digitales/Est/Lib1417/libro.pdf | P194: =IFERROR(IF(VLOOKUP(CONCATENATE(E194,F194,G194),ListaIndicadores!$Z$7:$AD$1345,3,FALSE)="","",VLOOKUP(CONCATENATE(E194,F194,G194),ListaIndicadores!$Z$7:$AD$1345,3,FALSE)),"") ->  | Q194: =VLOOKUP(CONCATENATE(E194,F194,G194),ListaIndicadores!$Z$7:$AD$1345,4,FALSE) -> -37
A195: 7052 | B195: Ambiental | C195: VI. LINEAMIENTO DE POLITICA: Implementar Planes y Programas integrados de gestión para la reducción de riesgos de desastres. | D195: AGA.48.6. | E195: Municipalidades que tienen Equipo de Trabajo en el COEL | F195: Departamental | G195: Amazonas | H195: 2017 | I195: 40 | J195: Municipalidades | K195: Instituto Nacional de Estadística e Informática (INEI) - Registro Nacional de Municipalidades (RENAMU) | L195: Instituto Nacional de Estadística e Informática (INEI) - Registro Nacional de Municipalidades (RENAMU) | M195: https://www.inei.gob.pe/media/MenuRecursivo/publicaciones_digitales/Est/Lib1474/ | P195: =IFERROR(IF(VLOOKUP(CONCATENATE(E195,F195,G195),ListaIndicadores!$Z$7:$AD$1345,3,FALSE)="","",VLOOKUP(CONCATENATE(E195,F195,G195),ListaIndicadores!$Z$7:$AD$1345,3,FALSE)),"") ->  | Q195: =VLOOKUP(CONCATENATE(E195,F195,G195),ListaIndicadores!$Z$7:$AD$1345,4,FALSE) -> -37
A196: 7053 | B196: Ambiental | C196: VI. LINEAMIENTO DE POLITICA: Implementar Planes y Programas integrados de gestión para la reducción de riesgos de desastres. | D196: AGA.48.6. | E196: Municipalidades que tienen Equipo de Trabajo en el COEL | F196: Departamental | G196: Amazonas | H196: 2018 | I196: 14 | J196: Municipalidades | K196: Instituto Nacional de Estadística e Informática (INEI) - Registro Nacional de Municipalidades (RENAMU) | L196: Instituto Nacional de Estadística e Informática (INEI) - Registro Nacional de Municipalidades (RENAMU) | M196: https://www.inei.gob.pe/media/MenuRecursivo/publicaciones_digitales/Est/Lib1636/index.html | P196: =IFERROR(IF(VLOOKUP(CONCATENATE(E196,F196,G196),ListaIndicadores!$Z$7:$AD$1345,3,FALSE)="","",VLOOKUP(CONCATENATE(E196,F196,G196),ListaIndicadores!$Z$7:$AD$1345,3,FALSE)),"") ->  | Q196: =VLOOKUP(CONCATENATE(E196,F196,G196),ListaIndicadores!$Z$7:$AD$1345,4,FALSE) -> -37
A197: 7184 | B197: Ambiental | C197: VI. LINEAMIENTO DE POLITICA: Implementar Planes y Programas integrados de gestión para la reducción de riesgos de desastres. | D197: AGA.48.7. | E197: Municipalidades que tienen almacen local de bienes de ayuda humanitaria | F197: Departamental | G197: Amazonas | H197: 2014 | I197: Sin datos | J197: Municipalidades | K197: Instituto Nacional de Estadística e Informática (INEI) - Registro Nacional de Municipalidades (RENAMU) | L197: Instituto Nacional de Estadística e Informática (INEI) - Registro Nacional de Municipalidades (RENAMU) | M197: https://www.inei.gob.pe/media/MenuRecursivo/publicaciones_digitales/Est/Lib1246/index.html | P197: =IFERROR(IF(VLOOKUP(CONCATENATE(E197,F197,G197),ListaIndicadores!$Z$7:$AD$1345,3,FALSE)="","",VLOOKUP(CONCATENATE(E197,F197,G197),ListaIndicadores!$Z$7:$AD$1345,3,FALSE)),"") ->  | Q197: =VLOOKUP(CONCATENATE(E197,F197,G197),ListaIndicadores!$Z$7:$AD$1345,4,FALSE) -> 27
A198: 7185 | B198: Ambiental | C198: VI. LINEAMIENTO DE POLITICA: Implementar Planes y Programas integrados de gestión para la reducción de riesgos de desastres. | D198: AGA.48.7. | E198: Municipalidades que tienen almacen local de bienes de ayuda humanitaria | F198: Departamental | G198: Amazonas | H198: 2015 | I198: 10 | J198: Municipalidades | K198: Instituto Nacional de Estadística e Informática (INEI) - Registro Nacional de Municipalidades (RENAMU) | L198: Instituto Nacional de Estadística e Informática (INEI) - Registro Nacional de Municipalidades (RENAMU) | M198: https://www.inei.gob.pe/media/MenuRecursivo/publicaciones_digitales/Est/Lib1362/index.html | P198: =IFERROR(IF(VLOOKUP(CONCATENATE(E198,F198,G198),ListaIndicadores!$Z$7:$AD$1345,3,FALSE)="","",VLOOKUP(CONCATENATE(E198,F198,G198),ListaIndicadores!$Z$7:$AD$1345,3,FALSE)),"") ->  | Q198: =VLOOKUP(CONCATENATE(E198,F198,G198),ListaIndicadores!$Z$7:$AD$1345,4,FALSE) -> 27
A199: 7186 | B199: Ambiental | C199: VI. LINEAMIENTO DE POLITICA: Implementar Planes y Programas integrados de gestión para la reducción de riesgos de desastres. | D199: AGA.48.7. | E199: Municipalidades que tienen almacen local de bienes de ayuda humanitaria | F199: Departamental | G199: Amazonas | H199: 2016 | I199: 21 | J199: Municipalidades | K199: Instituto Nacional de Estadística e Informática (INEI) - Registro Nacional de Municipalidades (RENAMU) | L199: Instituto Nacional de Estadística e Informática (INEI) - Registro Nacional de Municipalidades (RENAMU) | M199: https://www.inei.gob.pe/media/MenuRecursivo/publicaciones_digitales/Est/Lib1417/libro.pdf | P199: =IFERROR(IF(VLOOKUP(CONCATENATE(E199,F199,G199),ListaIndicadores!$Z$7:$AD$1345,3,FALSE)="","",VLOOKUP(CONCATENATE(E199,F199,G199),ListaIndicadores!$Z$7:$AD$1345,3,FALSE)),"") ->  | Q199: =VLOOKUP(CONCATENATE(E199,F199,G199),ListaIndicadores!$Z$7:$AD$1345,4,FALSE) -> 27
A200: 7187 | B200: Ambiental | C200: VI. LINEAMIENTO DE POLITICA: Implementar Planes y Programas integrados de gestión para la reducción de riesgos de desastres. | D200: AGA.48.7. | E200: Municipalidades que tienen almacen local de bienes de ayuda humanitaria | F200: Departamental | G200: Amazonas | H200: 2017 | I200: 20 | J200: Municipalidades | K200: Instituto Nacional de Estadística e Informática (INEI) - Registro Nacional de Municipalidades (RENAMU) | L200: Instituto Nacional de Estadística e Informática (INEI) - Registro Nacional de Municipalidades (RENAMU) | M200: https://www.inei.gob.pe/media/MenuRecursivo/publicaciones_digitales/Est/Lib1474/ | P200: =IFERROR(IF(VLOOKUP(CONCATENATE(E200,F200,G200),ListaIndicadores!$Z$7:$AD$1345,3,FALSE)="","",VLOOKUP(CONCATENATE(E200,F200,G200),ListaIndicadores!$Z$7:$AD$1345,3,FALSE)),"") ->  | Q200: =VLOOKUP(CONCATENATE(E200,F200,G200),ListaIndicadores!$Z$7:$AD$1345,4,FALSE) -> 27
... 4300 more rows

Sheet Menu

Sheet Rep_Balance
B4: Balance | D4: PRIMER DERECHO: AL NOMBRE Y A LA IDENTIDAD
D6: =CONCATENATE("N° de compromisos: ",SUM(ListaIndicadores!I1350:I1352)) -> N° de compromisos: 3 | G6: =CONCATENATE("N° de compromisos: ",SUM(ListaIndicadores!I1360:I1362)) -> N° de compromisos: 2
B10: =CONCATENATE("N° de compromisos: ",SUM(ListaIndicadores!I1370:I1372)) -> N° de compromisos: 6 | D10: =CONCATENATE("N° de compromisos: ",SUM(ListaIndicadores!I1365:I1367)) -> N° de compromisos: 1
B13: Nota técnica
B15: Color del semaforo :
B16: Caso 1, con indicadores positivos (ejemplo cobertura de seguro de salud):
B17: Color verde: Cuando la meta proyectada al 2021/ valor de la meta al 2021 >=85%;
B18: Color ambar: Cuando la meta proyectada al 2021/ valor de la meta al 2021 se ecuentra entre >=50 y <85%;
B19: Color rojo: Cuando la meta proyectada al 2021/ valor de la meta al 2021 se ecuentra <50%
B20: Caso 2, con indicadores negativos (ejemplo: tasa de desnutrición crónica):
B21: Color verde: Cuando la meta proyectada al 2021/ valor de la meta al 2021 <=115%;
B22: Color ambar: Cuando la meta proyectada al 2021/ valor de la meta al 2021 se ecuentra entre <115% y =< 150%;
B23: Color rojo: Cuando la meta proyectada al 2021/ valor de la meta al 2021 >150%

Sheet Rep_Balance_Dpt
A8: 1. DESEMPEÑO GLOBAL POR DEPARTAMENTO
A51: Nota técnica
A53: Color del semaforo :
A54: Caso 1, con indicadores positivos (ejemplo cobertura de seguro de salud):
A55: Color verde: Cuando la meta proyectada al 2026/ valor de la meta al 2026 >=85%;
A56: Color ambar: Cuando la meta proyectada al 2026/ valor de la meta al 2026 se ecuentra entre >=50 y <85%;
A57: Color rojo: Cuando la meta proyectada al 2026/ valor de la meta al 2026 se ecuentra <50%
A58: Caso 2, con indicadores negativos (ejemplo: tasa de desnutrición crónica):
A59: Color verde: Cuando la meta proyectada al 2026/ valor de la meta al 2026 <=115%;
A60: Color ambar: Cuando la meta proyectada al 2026/ valor de la meta al 2026 se ecuentra entre <115% y =< 150%;
A61: Color rojo: Cuando la meta proyectada al 2026/ valor de la meta al 2026 >150%

Sheet ReporteIndicador
B4: Gráfico | T4: Comando
T6: Primer paso: Seleccionar el Lineamiento
T7: Derecho
T8: I. LINEAMIENTO DE POLITICA Mejorar la Gestión Ambiental.
T9: Segundo paso: Seleccionar el indicador
T10: Indicador:
T11: Porcentaje de Municipalidades cuentan con instrumentos de gestión ambiental aprobados y en implementación
T12: Tercer paso: Seleccionar el Sub Indicador
T13: Sub indicador:
T14: Departamental
B15: Información Histórica
B16: 2010 | C16: 2011 | D16: 2012 | E16: 2013 | F16: 2014 | G16: 2015 | H16: 2016 | I16: 2017 | J16: 2018 | K16: 2019 | L16: 2020 | M16: 2021 | N16: 2022 | O16: 2023 | P16: 2024 | Q16: 2025 | R16: 2026 | T16: Cuarto paso: Seleccionar la Región
B17: =IFERROR(IF(VLOOKUP($T$11&$T$14&$T$18&"2010",BD_Ambiental!$P$2:$Q$10530,2,FALSE)="","",VLOOKUP($T$11&$T$14&$T$18&"2010",BD_Ambiental!$P$2:$Q$10530,2,FALSE)),"") ->  | C17: =IFERROR(IF(VLOOKUP($T$11&$T$14&$T$18&"2011",BD_Ambiental!$P$2:$Q$10530,2,FALSE)="","",VLOOKUP($T$11&$T$14&$T$18&"2011",BD_Ambiental!$P$2:$Q$10530,2,FALSE)),"") ->  | D17: =IFERROR(IF(VLOOKUP($T$11&$T$14&$T$18&"2012",BD_Ambiental!$P$2:$Q$10530,2,FALSE)="","",VLOOKUP($T$11&$T$14&$T$18&"2012",BD_Ambiental!$P$2:$Q$10530,2,FALSE)),"") ->  | E17: =IFERROR(IF(VLOOKUP($T$11&$T$14&$T$18&"2013",BD_Ambiental!$P$2:$Q$10530,2,FALSE)="","",VLOOKUP($T$11&$T$14&$T$18&"2013",BD_Ambiental!$P$2:$Q$10530,2,FALSE)),"") ->  | F17: =IFERROR(IF(VLOOKUP($T$11&$T$14&$T$18&"2014",BD_Ambiental!$P$2:$Q$10620,2,FALSE)="","",VLOOKUP($T$11&$T$14&$T$18&"2014",BD_Ambiental!$P$2:$Q$10620,2,FALSE)),"") -> 29 | G17: =IFERROR(IF(VLOOKUP($T$11&$T$14&$T$18&"2015",BD_Ambiental!$P$2:$Q$10620,2,FALSE)="","",VLOOKUP($T$11&$T$14&$T$18&"2015",BD_Ambiental!$P$2:$Q$10620,2,FALSE)),"") -> 27 | H17: =IFERROR(IF(VLOOKUP($T$11&$T$14&$T$18&"2016",BD_Ambiental!$P$2:$Q$10620,2,FALSE)="","",VLOOKUP($T$11&$T$14&$T$18&"2016",BD_Ambiental!$P$2:$Q$10620,2,FALSE)),"") -> 42 | I17: =IFERROR(IF(VLOOKUP($T$11&$T$14&$T$18&"2017",BD_Ambiental!$P$2:$Q$10620,2,FALSE)="","",VLOOKUP($T$11&$T$14&$T$18&"2017",BD_Ambiental!$P$2:$Q$10620,2,FALSE)),"") -> 42 | J17: =IFERROR(IF(VLOOKUP($T$11&$T$14&$T$18&"2018",BD_Ambiental!$P$2:$Q$10620,2,FALSE)="","",VLOOKUP($T$11&$T$14&$T$18&"2018",BD_Ambiental!$P$2:$Q$10620,2,FALSE)),"") -> 61 | K17: =IFERROR(IF(VLOOKUP($T$11&$T$14&$T$18&"2019",BD_Ambiental!$P$2:$Q$10620,2,FALSE)="","",VLOOKUP($T$11&$T$14&$T$18&"2019",BD_Ambiental!$P$2:$Q$10620,2,FALSE)),"") -> 73 | L17: =IFERROR(IF(VLOOKUP($T$11&$T$14&$T$18&"2020",BD_Ambiental!$P$2:$Q$10530,2,FALSE)="","",VLOOKUP($T$11&$T$14&$T$18&"2020",BD_Ambiental!$P$2:$Q$10530,2,FALSE)),"") -> 85 | M17: =IFERROR(IF(VLOOKUP($T$11&$T$14&$T$18&"2021",BD_Ambiental!$P$2:$Q$10530,2,FALSE)="","",VLOOKUP($T$11&$T$14&$T$18&"2021",BD_Ambiental!$P$2:$Q$10530,2,FALSE)),"") -> 83 | N17: =IFERROR(IF(VLOOKUP($T$11&$T$14&$T$18&"2022",BD_Ambiental!$P$2:$Q$10530,2,FALSE)="","",VLOOKUP($T$11&$T$14&$T$18&"2022",BD_Ambiental!$P$2:$Q$10530,2,FALSE)),"") ->  | O17: =IFERROR(IF(VLOOKUP($T$11&$T$14&$T$18&"2023",BD_Ambiental!$P$2:$Q$10530,2,FALSE)="","",VLOOKUP($T$11&$T$14&$T$18&"2023",BD_Ambiental!$P$2:$Q$10530,2,FALSE)),"") ->  | P17: =IFERROR(IF(VLOOKUP($T$11&$T$14&$T$18&"2024",BD_Ambiental!$P$2:$Q$10530,2,FALSE)="","",VLOOKUP($T$11&$T$14&$T$18&"2024",BD_Ambiental!$P$2:$Q$10530,2,FALSE)),"") ->  | Q17: =IFERROR(IF(VLOOKUP($T$11&$T$14&$T$18&"2025",BD_Ambiental!$P$2:$Q$10530,2,FALSE)="","",VLOOKUP($T$11&$T$14&$T$18&"2025",BD_Ambiental!$P$2:$Q$10530,2,FALSE)),"") ->  | R17: =IFERROR(IF(VLOOKUP($T$11&$T$14&$T$18&"2026",BD_Ambiental!$P$2:$Q$10530,2,FALSE)="","",VLOOKUP($T$11&$T$14&$T$18&"2026",BD_Ambiental!$P$2:$Q$10530,2,FALSE)),"") ->  | T17: Región:
T18: Amazonas
B19: Fuente | D19: =TDValor!B6 -> Instituto Nacional de Estadística e Informática (INEI) - Registro Nacional de Municipalidades (RENAMU)
B20: Unidad de medida | D20: =TDValor!A6 -> Porcentaje
B22: Desempeño
B24: Proyección 2026 | F24: Meta 2026 | I24: Semáforo
B25: =IFERROR(IF(VLOOKUP($T$11&$T$14&$T$18,ListaIndicadores!$Z$7:$AD$1345,4,FALSE)="","",VLOOKUP($T$11&$T$14&$T$18,ListaIndicadores!$Z$7:$AD$1345,4,FALSE)),"") -> 134 | F25: =IFERROR(IF(VLOOKUP($T$11&$T$14&$T$18,ListaIndicadores!$Z$7:$AD$1345,3,FALSE)="","",VLOOKUP($T$11&$T$14&$T$18,ListaIndicadores!$Z$7:$AD$1345,3,FALSE)),"") ->  | I25: =IFERROR(IF(VLOOKUP($T$11&$T$14&$T$18,ListaIndicadores!$Z$7:$AD$1345,5,FALSE)="","",VLOOKUP($T$11&$T$14&$T$18,ListaIndicadores!$Z$7:$AD$1345,5,FALSE)),"") -> ¡Faltan datos!

Sheet BD_Ambiental
A1: Num. | B1: Dimensión | C1: Segundo Nivel | D1: Indicador | E1: Matriz de Resultado | F1: Subindicador | G1: Region | H1: Año | I1: Valor | J1: Unidad | K1: Fuente web | L1: Fuente ficha tecnica | M1: Link | N1: Descripción del indicador | O1: Observaciones internas | P1: concatenar | Q1: Valor
A2: 489 | B2: Ambiental | C2: II. LINEAMIENTO DE POLITICA Fomentar el uso y aprovechamiento sostenible de los Recursos Naturales. | D2: Presupuesto ejecutado por los tres niveles de gobierno en manejo eficiente de Recursos Forestales y Fauna Silvestre (PP 0130) - Soles | E2: AGA.18.11 | F2: Ejecutado en el respectivo año por G. Nacional | G2: Amazonas | H2: 2014 | I2: 458173 | J2: Soles | K2: Ministerio de Economía y Finanzas (MEF)- Seguimiento de la Ejecución Presupuestal (Consulta amigable) | L2: Portal de Transparencia Económica | M2: http://apps5.mineco.gob.pe/transparencia/Navegador/default.aspx?y=2015&ap=ActProy | P2: =CONCATENATE(D2,F2,G2,H2) -> Presupuesto ejecutado por los tres niveles de gobierno en manejo eficiente de Recursos Forestales y Fauna Silvestre (PP 0130) - SolesEjecutado en el respectivo año por G. NacionalAmazonas2014 | Q2: 458173
A3: 490 | B3: Ambiental | C3: II. LINEAMIENTO DE POLITICA Fomentar el uso y aprovechamiento sostenible de los Recursos Naturales. | D3: Presupuesto ejecutado por los tres niveles de gobierno en manejo eficiente de Recursos Forestales y Fauna Silvestre (PP 0130) - Soles | E3: AGA.18.11 | F3: Ejecutado en el respectivo año por G. Nacional | G3: Amazonas | H3: 2015 | I3: 5963656 | J3: Soles | K3: Ministerio de Economía y Finanzas (MEF)- Seguimiento de la Ejecución Presupuestal (Consulta amigable) | L3: Portal de Transparencia Económica | M3: http://apps5.mineco.gob.pe/transparencia/Navegador/default.aspx?y=2015&ap=ActProy | P3: Presupuesto ejecutado por los tres niveles de gobierno en manejo eficiente de Recursos Forestales y Fauna Silvestre (PP 0130) - SolesEjecutado en el respectivo año por G. NacionalAmazonas2015 | Q3: 5963656
A4: 491 | B4: Ambiental | C4: II. LINEAMIENTO DE POLITICA Fomentar el uso y aprovechamiento sostenible de los Recursos Naturales. | D4: Presupuesto ejecutado por los tres niveles de gobierno en manejo eficiente de Recursos Forestales y Fauna Silvestre (PP 0130) - Soles | E4: AGA.18.11 | F4: Ejecutado en el respectivo año por G. Nacional | G4: Amazonas | H4: 2016 | I4: 1675677 | J4: Soles | K4: Ministerio de Economía y Finanzas (MEF)- Seguimiento de la Ejecución Presupuestal (Consulta amigable) | L4: Portal de Transparencia Económica | M4: http://apps5.mineco.gob.pe/transparencia/Navegador/default.aspx?y=2015&ap=ActProy | P4: Presupuesto ejecutado por los tres niveles de gobierno en manejo eficiente de Recursos Forestales y Fauna Silvestre (PP 0130) - SolesEjecutado en el respectivo año por G. NacionalAmazonas2016 | Q4: 1675677
A5: 492 | B5: Ambiental | C5: II. LINEAMIENTO DE POLITICA Fomentar el uso y aprovechamiento sostenible de los Recursos Naturales. | D5: Presupuesto ejecutado por los tres niveles de gobierno en manejo eficiente de Recursos Forestales y Fauna Silvestre (PP 0130) - Soles | E5: AGA.18.11 | F5: Ejecutado en el respectivo año por G. Nacional | G5: Amazonas | H5: 2017 | I5: 3948846 | J5: Soles | K5: Ministerio de Economía y Finanzas (MEF)- Seguimiento de la Ejecución Presupuestal (Consulta amigable) | L5: Portal de Transparencia Económica | M5: http://apps5.mineco.gob.pe/transparencia/Navegador/default.aspx?y=2015&ap=ActProy | P5: Presupuesto ejecutado por los tres niveles de gobierno en manejo eficiente de Recursos Forestales y Fauna Silvestre (PP 0130) - SolesEjecutado en el respectivo año por G. NacionalAmazonas2017 | Q5: 3948846
A6: 493 | B6: Ambiental | C6: II. LINEAMIENTO DE POLITICA Fomentar el uso y aprovechamiento sostenible de los Recursos Naturales. | D6: Presupuesto ejecutado por los tres niveles de gobierno en manejo eficiente de Recursos Forestales y Fauna Silvestre (PP 0130) - Soles | E6: AGA.18.11 | F6: Ejecutado en el respectivo año por G. Nacional | G6: Amazonas | H6: 2018 | I6: 5061196 | J6: Soles | K6: Ministerio de Economía y Finanzas (MEF)- Seguimiento de la Ejecución Presupuestal (Consulta amigable) | L6: Portal de Transparencia Económica | M6: http://apps5.mineco.gob.pe/transparencia/Navegador/default.aspx?y=2015&ap=ActProy | P6: Presupuesto ejecutado por los tres niveles de gobierno en manejo eficiente de Recursos Forestales y Fauna Silvestre (PP 0130) - SolesEjecutado en el respectivo año por G. NacionalAmazonas2018 | Q6: 5061196
A7: 626 | B7: Ambiental | C7: II. LINEAMIENTO DE POLITICA Fomentar el uso y aprovechamiento sostenible de los Recursos Naturales. | D7: Presupuesto anual ejecutado en Conservación de la Diversidad Biológica y Aprovechamiento Sostenible del RRNN en Área Natural Protegida (PP 0057) - Soles | E7: AGA.18.12 | F7: Gobierno Nacional | G7: Amazonas | H7: 2014 | I7: 1282499 | J7: Soles | K7: Ministerio de Economía y Finanzas (MEF)- Seguimiento de la Ejecución Presupuestal (Consulta amigable) | L7: Portal de Transparencia Económica | M7: http://apps5.mineco.gob.pe/transparencia/Navegador/default.aspx?y=2015&ap=ActProy | N7: Solo existe G. Nacional y G. Regional | P7: Presupuesto anual ejecutado en Conservación de la Diversidad Biológica y Aprovechamiento Sostenible del RRNN en Área Natural Protegida (PP 0057) - SolesGobierno NacionalAmazonas2014 | Q7: 1282499
A8: 627 | B8: Ambiental | C8: II. LINEAMIENTO DE POLITICA Fomentar el uso y aprovechamiento sostenible de los Recursos Naturales. | D8: Presupuesto anual ejecutado en Conservación de la Diversidad Biológica y Aprovechamiento Sostenible del RRNN en Área Natural Protegida (PP 0057) - Soles | E8: AGA.18.12 | F8: Gobierno Nacional | G8: Amazonas | H8: 2015 | I8: 1449710 | J8: Soles | K8: Ministerio de Economía y Finanzas (MEF)- Seguimiento de la Ejecución Presupuestal (Consulta amigable) | L8: Portal de Transparencia Económica | M8: http://apps5.mineco.gob.pe/transparencia/Navegador/default.aspx?y=2015&ap=ActProy | N8: Solo existe G. Nacional y G. Regional | P8: Presupuesto anual ejecutado en Conservación de la Diversidad Biológica y Aprovechamiento Sostenible del RRNN en Área Natural Protegida (PP 0057) - SolesGobierno NacionalAmazonas2015 | Q8: 1449710
A9: 628 | B9: Ambiental | C9: II. LINEAMIENTO DE POLITICA Fomentar el uso y aprovechamiento sostenible de los Recursos Naturales. | D9: Presupuesto anual ejecutado en Conservación de la Diversidad Biológica y Aprovechamiento Sostenible del RRNN en Área Natural Protegida (PP 0057) - Soles | E9: AGA.18.12 | F9: Gobierno Nacional | G9: Amazonas | H9: 2016 | I9: 1456699 | J9: Soles | K9: Ministerio de Economía y Finanzas (MEF)- Seguimiento de la Ejecución Presupuestal (Consulta amigable) | L9: Portal de Transparencia Económica | M9: http://apps5.mineco.gob.pe/transparencia/Navegador/default.aspx?y=2015&ap=ActProy | N9: Solo existe G. Nacional y G. Regional | P9: Presupuesto anual ejecutado en Conservación de la Diversidad Biológica y Aprovechamiento Sostenible del RRNN en Área Natural Protegida (PP 0057) - SolesGobierno NacionalAmazonas2016 | Q9: 1456699
A10: 629 | B10: Ambiental | C10: II. LINEAMIENTO DE POLITICA Fomentar el uso y aprovechamiento sostenible de los Recursos Naturales. | D10: Presupuesto anual ejecutado en Conservación de la Diversidad Biológica y Aprovechamiento Sostenible del RRNN en Área Natural Protegida (PP 0057) - Soles | E10: AGA.18.12 | F10: Gobierno Nacional | G10: Amazonas | H10: 2017 | I10: 1618180 | J10: Soles | K10: Ministerio de Economía y Finanzas (MEF)- Seguimiento de la Ejecución Presupuestal (Consulta amigable) | L10: Portal de Transparencia Económica | M10: http://apps5.mineco.gob.pe/transparencia/Navegador/default.aspx?y=2015&ap=ActProy | N10: Solo existe G. Nacional y G. Regional | P10: Presupuesto anual ejecutado en Conservación de la Diversidad Biológica y Aprovechamiento Sostenible del RRNN en Área Natural Protegida (PP 0057) - SolesGobierno NacionalAmazonas2017 | Q10: 1618180
A11: 630 | B11: Ambiental | C11: II. LINEAMIENTO DE POLITICA Fomentar el uso y aprovechamiento sostenible de los Recursos Naturales. | D11: Presupuesto anual ejecutado en Conservación de la Diversidad Biológica y Aprovechamiento Sostenible del RRNN en Área Natural Protegida (PP 0057) - Soles | E11: AGA.18.12 | F11: Gobierno Nacional | G11: Amazonas | H11: 2018 | I11: 1716016 | J11: Soles | K11: Ministerio de Economía y Finanzas (MEF)- Seguimiento de la Ejecución Presupuestal (Consulta amigable) | L11: Portal de Transparencia Económica | M11: http://apps5.mineco.gob.pe/transparencia/Navegador/default.aspx?y=2015&ap=ActProy | N11: Solo existe G. Nacional y G. Regional | P11: Presupuesto anual ejecutado en Conservación de la Diversidad Biológica y Aprovechamiento Sostenible del RRNN en Área Natural Protegida (PP 0057) - SolesGobierno NacionalAmazonas2018 | Q11: 1716016
A12: 751 | B12: Ambiental | C12: II. LINEAMIENTO DE POLITICA Fomentar el uso y aprovechamiento sostenible de los Recursos Naturales. | D12: Presupuesto anual ejecutado en Conservación de la Diversidad Biológica y Aprovechamiento Sostenible del RRNN en Área Natural Protegida (PP 0057) - Soles | E12: AGA.18.12 | F12: Gobierno Regional | G12: Amazonas | H12: 2014 | I12: 26250 | J12: Soles | K12: Ministerio de Economía y Finanzas (MEF)- Seguimiento de la Ejecución Presupuestal (Consulta amigable) | L12: Portal de Transparencia Económica | M12: http://apps5.mineco.gob.pe/transparencia/Navegador/default.aspx?y=2015&ap=ActProy | N12: Solo existe G. Nacional y G. Regional | P12: Presupuesto anual ejecutado en Conservación de la Diversidad Biológica y Aprovechamiento Sostenible del RRNN en Área Natural Protegida (PP 0057) - SolesGobierno RegionalAmazonas2014 | Q12: 26250
A13: 752 | B13: Ambiental | C13: II. LINEAMIENTO DE POLITICA Fomentar el uso y aprovechamiento sostenible de los Recursos Naturales. | D13: Presupuesto anual ejecutado en Conservación de la Diversidad Biológica y Aprovechamiento Sostenible del RRNN en Área Natural Protegida (PP 0057) - Soles | E13: AGA.18.12 | F13: Gobierno Regional | G13: Amazonas | H13: 2015 | I13: 22892 | J13: Soles | K13: Ministerio de Economía y Finanzas (MEF)- Seguimiento de la Ejecución Presupuestal (Consulta amigable) | L13: Portal de Transparencia Económica | M13: http://apps5.mineco.gob.pe/transparencia/Navegador/default.aspx?y=2015&ap=ActProy | N13: Solo existe G. Nacional y G. Regional | P13: Presupuesto anual ejecutado en Conservación de la Diversidad Biológica y Aprovechamiento Sostenible del RRNN en Área Natural Protegida (PP 0057) - SolesGobierno RegionalAmazonas2015 | Q13: 22892
A14: 753 | B14: Ambiental | C14: II. LINEAMIENTO DE POLITICA Fomentar el uso y aprovechamiento sostenible de los Recursos Naturales. | D14: Presupuesto anual ejecutado en Conservación de la Diversidad Biológica y Aprovechamiento Sostenible del RRNN en Área Natural Protegida (PP 0057) - Soles | E14: AGA.18.12 | F14: Gobierno Regional | G14: Amazonas | H14: 2016 | I14: Sin datos | J14: Soles | K14: Ministerio de Economía y Finanzas (MEF)- Seguimiento de la Ejecución Presupuestal (Consulta amigable) | L14: Portal de Transparencia Económica | M14: http://apps5.mineco.gob.pe/transparencia/Navegador/default.aspx?y=2015&ap=ActProy | N14: Solo existe G. Nacional y G. Regional | P14: Presupuesto anual ejecutado en Conservación de la Diversidad Biológica y Aprovechamiento Sostenible del RRNN en Área Natural Protegida (PP 0057) - SolesGobierno RegionalAmazonas2016 | Q14: Sin datos
A15: 754 | B15: Ambiental | C15: II. LINEAMIENTO DE POLITICA Fomentar el uso y aprovechamiento sostenible de los Recursos Naturales. | D15: Presupuesto anual ejecutado en Conservación de la Diversidad Biológica y Aprovechamiento Sostenible del RRNN en Área Natural Protegida (PP 0057) - Soles | E15: AGA.18.12 | F15: Gobierno Regional | G15: Amazonas | H15: 2017 | I15: Sin datos | J15: Soles | K15: Ministerio de Economía y Finanzas (MEF)- Seguimiento de la Ejecución Presupuestal (Consulta amigable) | L15: Portal de Transparencia Económica | M15: http://apps5.mineco.gob.pe/transparencia/Navegador/default.aspx?y=2015&ap=ActProy | N15: Solo existe G. Nacional y G. Regional | P15: Presupuesto anual ejecutado en Conservación de la Diversidad Biológica y Aprovechamiento Sostenible del RRNN en Área Natural Protegida (PP 0057) - SolesGobierno RegionalAmazonas2017 | Q15: Sin datos
A16: 755 | B16: Ambiental | C16: II. LINEAMIENTO DE POLITICA Fomentar el uso y aprovechamiento sostenible de los Recursos Naturales. | D16: Presupuesto anual ejecutado en Conservación de la Diversidad Biológica y Aprovechamiento Sostenible del RRNN en Área Natural Protegida (PP 0057) - Soles | E16: AGA.18.12 | F16: Gobierno Regional | G16: Amazonas | H16: 2018 | I16: Sin datos | J16: Soles | K16: Ministerio de Economía y Finanzas (MEF)- Seguimiento de la Ejecución Presupuestal (Consulta amigable) | L16: Portal de Transparencia Económica | M16: http://apps5.mineco.gob.pe/transparencia/Navegador/default.aspx?y=2015&ap=ActProy | N16: Solo existe G. Nacional y G. Regional | P16: Presupuesto anual ejecutado en Conservación de la Diversidad Biológica y Aprovechamiento Sostenible del RRNN en Área Natural Protegida (PP 0057) - SolesGobierno RegionalAmazonas2018 | Q16: Sin datos
A17: 888 | B17: Ambiental | C17: II. LINEAMIENTO DE POLITICA Fomentar el uso y aprovechamiento sostenible de los Recursos Naturales. | D17: Presupuesto anual ejecutado en Gestión Sostenible de RRNN y diversidad Biológica (PP 0035) - Millones de Soles | E17: AGA.18.13 | F17: Gobierno Locales | G17: Amazonas | H17: 2014 | I17: 183956 | J17: Soles | K17: Ministerio de Economía y Finanzas (MEF)- Seguimiento de la Ejecución Presupuestal (Consulta amigable) | L17: Portal de Transparencia Económica | M17: http://apps5.mineco.gob.pe/transparencia/Navegador/default.aspx?y=2015&ap=ActProy | P17: Presupuesto anual ejecutado en Gestión Sostenible de RRNN y diversidad Biológica (PP 0035) - Millones de SolesGobierno LocalesAmazonas2014 | Q17: 183956
A18: 889 | B18: Ambiental | C18: II. LINEAMIENTO DE POLITICA Fomentar el uso y aprovechamiento sostenible de los Recursos Naturales. | D18: Presupuesto anual ejecutado en Gestión Sostenible de RRNN y diversidad Biológica (PP 0035) - Millones de Soles | E18: AGA.18.13 | F18: Gobierno Locales | G18: Amazonas | H18: 2015 | I18: 110530 | J18: Soles | K18: Ministerio de Economía y Finanzas (MEF)- Seguimiento de la Ejecución Presupuestal (Consulta amigable) | L18: Portal de Transparencia Económica | M18: http://apps5.mineco.gob.pe/transparencia/Navegador/default.aspx?y=2015&ap=ActProy | P18: Presupuesto anual ejecutado en Gestión Sostenible de RRNN y diversidad Biológica (PP 0035) - Millones de SolesGobierno LocalesAmazonas2015 | Q18: 110530
A19: 890 | B19: Ambiental | C19: II. LINEAMIENTO DE POLITICA Fomentar el uso y aprovechamiento sostenible de los Recursos Naturales. | D19: Presupuesto anual ejecutado en Gestión Sostenible de RRNN y diversidad Biológica (PP 0035) - Millones de Soles | E19: AGA.18.13 | F19: Gobierno Locales | G19: Amazonas | H19: 2016 | I19: 83763 | J19: Soles | K19: Ministerio de Economía y Finanzas (MEF)- Seguimiento de la Ejecución Presupuestal (Consulta amigable) | L19: Portal de Transparencia Económica | M19: http://apps5.mineco.gob.pe/transparencia/Navegador/default.aspx?y=2015&ap=ActProy | P19: Presupuesto anual ejecutado en Gestión Sostenible de RRNN y diversidad Biológica (PP 0035) - Millones de SolesGobierno LocalesAmazonas2016 | Q19: 83763
A20: 891 | B20: Ambiental | C20: II. LINEAMIENTO DE POLITICA Fomentar el uso y aprovechamiento sostenible de los Recursos Naturales. | D20: Presupuesto anual ejecutado en Gestión Sostenible de RRNN y diversidad Biológica (PP 0035) - Millones de Soles | E20: AGA.18.13 | F20: Gobierno Locales | G20: Amazonas | H20: 2017 | I20: Sin datos | J20: Soles | K20: Ministerio de Economía y Finanzas (MEF)- Seguimiento de la Ejecución Presupuestal (Consulta amigable) | L20: Portal de Transparencia Económica | M20: http://apps5.mineco.gob.pe/transparencia/Navegador/default.aspx?y=2015&ap=ActProy | P20: Presupuesto anual ejecutado en Gestión Sostenible de RRNN y diversidad Biológica (PP 0035) - Millones de SolesGobierno LocalesAmazonas2017 | Q20: Sin datos
A21: 892 | B21: Ambiental | C21: II. LINEAMIENTO DE POLITICA Fomentar el uso y aprovechamiento sostenible de los Recursos Naturales. | D21: Presupuesto anual ejecutado en Gestión Sostenible de RRNN y diversidad Biológica (PP 0035) - Millones de Soles | E21: AGA.18.13 | F21: Gobierno Locales | G21: Amazonas | H21: 2018 | I21: Sin datos | J21: Soles | K21: Ministerio de Economía y Finanzas (MEF)- Seguimiento de la Ejecución Presupuestal (Consulta amigable) | L21: Portal de Transparencia Económica | M21: http://apps5.mineco.gob.pe/transparencia/Navegador/default.aspx?y=2015&ap=ActProy | P21: Presupuesto anual ejecutado en Gestión Sostenible de RRNN y diversidad Biológica (PP 0035) - Millones de SolesGobierno LocalesAmazonas2018 | Q21: Sin datos
A22: 1013 | B22: Ambiental | C22: II. LINEAMIENTO DE POLITICA Fomentar el uso y aprovechamiento sostenible de los Recursos Naturales. | D22: Presupuesto anual ejecutado en Gestión Sostenible de RRNN y diversidad Biológica (PP 0035) - Millones de Soles | E22: AGA.18.13 | F22: Gobierno Nacional | G22: Amazonas | H22: 2014 | I22: 51639 | J22: Soles | K22: Ministerio de Economía y Finanzas (MEF)- Seguimiento de la Ejecución Presupuestal (Consulta amigable) | L22: Portal de Transparencia Económica | M22: http://apps5.mineco.gob.pe/transparencia/Navegador/default.aspx?y=2015&ap=ActProy | P22: Presupuesto anual ejecutado en Gestión Sostenible de RRNN y diversidad Biológica (PP 0035) - Millones de SolesGobierno NacionalAmazonas2014 | Q22: 51639
A23: 1014 | B23: Ambiental | C23: II. LINEAMIENTO DE POLITICA Fomentar el uso y aprovechamiento sostenible de los Recursos Naturales. | D23: Presupuesto anual ejecutado en Gestión Sostenible de RRNN y diversidad Biológica (PP 0035) - Millones de Soles | E23: AGA.18.13 | F23: Gobierno Nacional | G23: Amazonas | H23: 2015 | I23: 540670 | J23: Soles | K23: Ministerio de Economía y Finanzas (MEF)- Seguimiento de la Ejecución Presupuestal (Consulta amigable) | L23: Portal de Transparencia Económica | M23: http://apps5.mineco.gob.pe/transparencia/Navegador/default.aspx?y=2015&ap=ActProy | P23: Presupuesto anual ejecutado en Gestión Sostenible de RRNN y diversidad Biológica (PP 0035) - Millones de SolesGobierno NacionalAmazonas2015 | Q23: 540670
A24: 1015 | B24: Ambiental | C24: II. LINEAMIENTO DE POLITICA Fomentar el uso y aprovechamiento sostenible de los Recursos Naturales. | D24: Presupuesto anual ejecutado en Gestión Sostenible de RRNN y diversidad Biológica (PP 0035) - Millones de Soles | E24: AGA.18.13 | F24: Gobierno Nacional | G24: Amazonas | H24: 2016 | I24: 505581 | J24: Soles | K24: Ministerio de Economía y Finanzas (MEF)- Seguimiento de la Ejecución Presupuestal (Consulta amigable) | L24: Portal de Transparencia Económica | M24: http://apps5.mineco.gob.pe/transparencia/Navegador/default.aspx?y=2015&ap=ActProy | P24: Presupuesto anual ejecutado en Gestión Sostenible de RRNN y diversidad Biológica (PP 0035) - Millones de SolesGobierno NacionalAmazonas2016 | Q24: 505581
A25: 1016 | B25: Ambiental | C25: II. LINEAMIENTO DE POLITICA Fomentar el uso y aprovechamiento sostenible de los Recursos Naturales. | D25: Presupuesto anual ejecutado en Gestión Sostenible de RRNN y diversidad Biológica (PP 0035) - Millones de Soles | E25: AGA.18.13 | F25: Gobierno Nacional | G25: Amazonas | H25: 2017 | I25: 569317 | J25: Soles | K25: Ministerio de Economía y Finanzas (MEF)- Seguimiento de la Ejecución Presupuestal (Consulta amigable) | L25: Portal de Transparencia Económica | M25: http://apps5.mineco.gob.pe/transparencia/Navegador/default.aspx?y=2015&ap=ActProy | P25: Presupuesto anual ejecutado en Gestión Sostenible de RRNN y diversidad Biológica (PP 0035) - Millones de SolesGobierno NacionalAmazonas2017 | Q25: 569317
A26: 1017 | B26: Ambiental | C26: II. LINEAMIENTO DE POLITICA Fomentar el uso y aprovechamiento sostenible de los Recursos Naturales. | D26: Presupuesto anual ejecutado en Gestión Sostenible de RRNN y diversidad Biológica (PP 0035) - Millones de Soles | E26: AGA.18.13 | F26: Gobierno Nacional | G26: Amazonas | H26: 2018 | I26: 1061320 | J26: Soles | K26: Ministerio de Economía y Finanzas (MEF)- Seguimiento de la Ejecución Presupuestal (Consulta amigable) | L26: Portal de Transparencia Económica | M26: http://apps5.mineco.gob.pe/transparencia/Navegador/default.aspx?y=2015&ap=ActProy | P26: Presupuesto anual ejecutado en Gestión Sostenible de RRNN y diversidad Biológica (PP 0035) - Millones de SolesGobierno NacionalAmazonas2018 | Q26: 1061320
A27: 1138 | B27: Ambiental | C27: II. LINEAMIENTO DE POLITICA Fomentar el uso y aprovechamiento sostenible de los Recursos Naturales. | D27: Presupuesto anual ejecutado en Gestión Sostenible de RRNN y diversidad Biológica (PP 0035) - Millones de Soles | E27: AGA.18.13 | F27: Gobierno Regional | G27: Amazonas | H27: 2014 | I27: 2234700 | J27: Soles | K27: Ministerio de Economía y Finanzas (MEF)- Seguimiento de la Ejecución Presupuestal (Consulta amigable) | L27: Portal de Transparencia Económica | M27: http://apps5.mineco.gob.pe/transparencia/Navegador/default.aspx?y=2015&ap=ActProy | P27: Presupuesto anual ejecutado en Gestión Sostenible de RRNN y diversidad Biológica (PP 0035) - Millones de SolesGobierno RegionalAmazonas2014 | Q27: 2234700
A28: 1139 | B28: Ambiental | C28: II. LINEAMIENTO DE POLITICA Fomentar el uso y aprovechamiento sostenible de los Recursos Naturales. | D28: Presupuesto anual ejecutado en Gestión Sostenible de RRNN y diversidad Biológica (PP 0035) - Millones de Soles | E28: AGA.18.13 | F28: Gobierno Regional | G28: Amazonas | H28: 2015 | I28: 2213076 | J28: Soles | K28: Ministerio de Economía y Finanzas (MEF)- Seguimiento de la Ejecución Presupuestal (Consulta amigable) | L28: Portal de Transparencia Económica | M28: http://apps5.mineco.gob.pe/transparencia/Navegador/default.aspx?y=2015&ap=ActProy | P28: Presupuesto anual ejecutado en Gestión Sostenible de RRNN y diversidad Biológica (PP 0035) - Millones de SolesGobierno RegionalAmazonas2015 | Q28: 2213076
A29: 1140 | B29: Ambiental | C29: II. LINEAMIENTO DE POLITICA Fomentar el uso y aprovechamiento sostenible de los Recursos Naturales. | D29: Presupuesto anual ejecutado en Gestión Sostenible de RRNN y diversidad Biológica (PP 0035) - Millones de Soles | E29: AGA.18.13 | F29: Gobierno Regional | G29: Amazonas | H29: 2016 | I29: 1758119 | J29: Soles | K29: Ministerio de Economía y Finanzas (MEF)- Seguimiento de la Ejecución Presupuestal (Consulta amigable) | L29: Portal de Transparencia Económica | M29: http://apps5.mineco.gob.pe/transparencia/Navegador/default.aspx?y=2015&ap=ActProy | P29: Presupuesto anual ejecutado en Gestión Sostenible de RRNN y diversidad Biológica (PP 0035) - Millones de SolesGobierno RegionalAmazonas2016 | Q29: 1758119
A30: 1141 | B30: Ambiental | C30: II. LINEAMIENTO DE POLITICA Fomentar el uso y aprovechamiento sostenible de los Recursos Naturales. | D30: Presupuesto anual ejecutado en Gestión Sostenible de RRNN y diversidad Biológica (PP 0035) - Millones de Soles | E30: AGA.18.13 | F30: Gobierno Regional | G30: Amazonas | H30: 2017 | I30: 440095 | J30: Soles | K30: Ministerio de Economía y Finanzas (MEF)- Seguimiento de la Ejecución Presupuestal (Consulta amigable) | L30: Portal de Transparencia Económica | M30: http://apps5.mineco.gob.pe/transparencia/Navegador/default.aspx?y=2015&ap=ActProy | P30: Presupuesto anual ejecutado en Gestión Sostenible de RRNN y diversidad Biológica (PP 0035) - Millones de SolesGobierno RegionalAmazonas2017 | Q30: 440095
A31: 1142 | B31: Ambiental | C31: II. LINEAMIENTO DE POLITICA Fomentar el uso y aprovechamiento sostenible de los Recursos Naturales. | D31: Presupuesto anual ejecutado en Gestión Sostenible de RRNN y diversidad Biológica (PP 0035) - Millones de Soles | E31: AGA.18.13 | F31: Gobierno Regional | G31: Amazonas | H31: 2018 | I31: 1809569 | J31: Soles | K31: Ministerio de Economía y Finanzas (MEF)- Seguimiento de la Ejecución Presupuestal (Consulta amigable) | L31: Portal de Transparencia Económica | M31: http://apps5.mineco.gob.pe/transparencia/Navegador/default.aspx?y=2015&ap=ActProy | P31: Presupuesto anual ejecutado en Gestión Sostenible de RRNN y diversidad Biológica (PP 0035) - Millones de SolesGobierno RegionalAmazonas2018 | Q31: 1809569
A32: 1331 | B32: Ambiental | C32: II. LINEAMIENTO DE POLITICA Fomentar el uso y aprovechamiento sostenible de los Recursos Naturales. | D32: Presupuesto Ejecutado en Reducción de la Degradación de los suelos agrarios (PP 0089) - Soles | E32: AGA.20.4 | F32: Gobierno Locales | G32: Amazonas | H32: 2014 | I32: 65939 | J32: Soles | K32: Ministerio de Economía y Finanzas (MEF)- Seguimiento de la Ejecución Presupuestal (Consulta amigable) | L32: Portal de Transparencia Económica | M32: http://apps5.mineco.gob.pe/transparencia/Navegador/default.aspx?y=2015&ap=ActProy | P32: Presupuesto Ejecutado en Reducción de la Degradación de los suelos agrarios (PP 0089) - SolesGobierno LocalesAmazonas2014 | Q32: 65939
A33: 1332 | B33: Ambiental | C33: II. LINEAMIENTO DE POLITICA Fomentar el uso y aprovechamiento sostenible de los Recursos Naturales. | D33: Presupuesto Ejecutado en Reducción de la Degradación de los suelos agrarios (PP 0089) - Soles | E33: AGA.20.4 | F33: Gobierno Locales | G33: Amazonas | H33: 2015 | I33: Sin datos | J33: Soles | K33: Ministerio de Economía y Finanzas (MEF)- Seguimiento de la Ejecución Presupuestal (Consulta amigable) | L33: Portal de Transparencia Económica | M33: http://apps5.mineco.gob.pe/transparencia/Navegador/default.aspx?y=2015&ap=ActProy | P33: Presupuesto Ejecutado en Reducción de la Degradación de los suelos agrarios (PP 0089) - SolesGobierno LocalesAmazonas2015 | Q33: Sin datos
A34: 1333 | B34: Ambiental | C34: II. LINEAMIENTO DE POLITICA Fomentar el uso y aprovechamiento sostenible de los Recursos Naturales. | D34: Presupuesto Ejecutado en Reducción de la Degradación de los suelos agrarios (PP 0089) - Soles | E34: AGA.20.4 | F34: Gobierno Locales | G34: Amazonas | H34: 2016 | I34: Sin datos | J34: Soles | K34: Ministerio de Economía y Finanzas (MEF)- Seguimiento de la Ejecución Presupuestal (Consulta amigable) | L34: Portal de Transparencia Económica | M34: http://apps5.mineco.gob.pe/transparencia/Navegador/default.aspx?y=2015&ap=ActProy | P34: Presupuesto Ejecutado en Reducción de la Degradación de los suelos agrarios (PP 0089) - SolesGobierno LocalesAmazonas2016 | Q34: Sin datos
A35: 1334 | B35: Ambiental | C35: II. LINEAMIENTO DE POLITICA Fomentar el uso y aprovechamiento sostenible de los Recursos Naturales. | D35: Presupuesto Ejecutado en Reducción de la Degradación de los suelos agrarios (PP 0089) - Soles | E35: AGA.20.4 | F35: Gobierno Locales | G35: Amazonas | H35: 2017 | I35: Sin datos | J35: Soles | K35: Ministerio de Economía y Finanzas (MEF)- Seguimiento de la Ejecución Presupuestal (Consulta amigable) | L35: Portal de Transparencia Económica | M35: http://apps5.mineco.gob.pe/transparencia/Navegador/default.aspx?y=2015&ap=ActProy | P35: Presupuesto Ejecutado en Reducción de la Degradación de los suelos agrarios (PP 0089) - SolesGobierno LocalesAmazonas2017 | Q35: Sin datos
A36: 1335 | B36: Ambiental | C36: II. LINEAMIENTO DE POLITICA Fomentar el uso y aprovechamiento sostenible de los Recursos Naturales. | D36: Presupuesto Ejecutado en Reducción de la Degradación de los suelos agrarios (PP 0089) - Soles | E36: AGA.20.4 | F36: Gobierno Locales | G36: Amazonas | H36: 2018 | I36: 9000 | J36: Soles | K36: Ministerio de Economía y Finanzas (MEF)- Seguimiento de la Ejecución Presupuestal (Consulta amigable) | L36: Portal de Transparencia Económica | M36: http://apps5.mineco.gob.pe/transparencia/Navegador/default.aspx?y=2015&ap=ActProy | P36: Presupuesto Ejecutado en Reducción de la Degradación de los suelos agrarios (PP 0089) - SolesGobierno LocalesAmazonas2018 | Q36: 9000
A37: 1460 | B37: Ambiental | C37: II. LINEAMIENTO DE POLITICA Fomentar el uso y aprovechamiento sostenible de los Recursos Naturales. | D37: Presupuesto Ejecutado en Reducción de la Degradación de los suelos agrarios (PP 0089) - Soles | E37: AGA.20.4 | F37: Gobierno Nacional | G37: Amazonas | H37: 2014 | I37: 292606 | J37: Soles | K37: Ministerio de Economía y Finanzas (MEF)- Seguimiento de la Ejecución Presupuestal (Consulta amigable) | L37: Portal de Transparencia Económica | M37: http://apps5.mineco.gob.pe/transparencia/Navegador/default.aspx?y=2015&ap=ActProy | P37: Presupuesto Ejecutado en Reducción de la Degradación de los suelos agrarios (PP 0089) - SolesGobierno NacionalAmazonas2014 | Q37: 292606
A38: 1461 | B38: Ambiental | C38: II. LINEAMIENTO DE POLITICA Fomentar el uso y aprovechamiento sostenible de los Recursos Naturales. | D38: Presupuesto Ejecutado en Reducción de la Degradación de los suelos agrarios (PP 0089) - Soles | E38: AGA.20.4 | F38: Gobierno Nacional | G38: Amazonas | H38: 2015 | I38: 21000 | J38: Soles | K38: Ministerio de Economía y Finanzas (MEF)- Seguimiento de la Ejecución Presupuestal (Consulta amigable) | L38: Portal de Transparencia Económica | M38: http://apps5.mineco.gob.pe/transparencia/Navegador/default.aspx?y=2015&ap=ActProy | P38: Presupuesto Ejecutado en Reducción de la Degradación de los suelos agrarios (PP 0089) - SolesGobierno NacionalAmazonas2015 | Q38: 21000
A39: 1462 | B39: Ambiental | C39: II. LINEAMIENTO DE POLITICA Fomentar el uso y aprovechamiento sostenible de los Recursos Naturales. | D39: Presupuesto Ejecutado en Reducción de la Degradación de los suelos agrarios (PP 0089) - Soles | E39: AGA.20.4 | F39: Gobierno Nacional | G39: Amazonas | H39: 2016 | I39: 581842 | J39: Soles | K39: Ministerio de Economía y Finanzas (MEF)- Seguimiento de la Ejecución Presupuestal (Consulta amigable) | L39: Portal de Transparencia Económica | M39: http://apps5.mineco.gob.pe/transparencia/Navegador/default.aspx?y=2015&ap=ActProy | P39: Presupuesto Ejecutado en Reducción de la Degradación de los suelos agrarios (PP 0089) - SolesGobierno NacionalAmazonas2016 | Q39: 581842
A40: 1463 | B40: Ambiental | C40: II. LINEAMIENTO DE POLITICA Fomentar el uso y aprovechamiento sostenible de los Recursos Naturales. | D40: Presupuesto Ejecutado en Reducción de la Degradación de los suelos agrarios (PP 0089) - Soles | E40: AGA.20.4 | F40: Gobierno Nacional | G40: Amazonas | H40: 2017 | I40: 708311 | J40: Soles | K40: Ministerio de Economía y Finanzas (MEF)- Seguimiento de la Ejecución Presupuestal (Consulta amigable) | L40: Portal de Transparencia Económica | M40: http://apps5.mineco.gob.pe/transparencia/Navegador/default.aspx?y=2015&ap=ActProy | P40: Presupuesto Ejecutado en Reducción de la Degradación de los suelos agrarios (PP 0089) - SolesGobierno NacionalAmazonas2017 | Q40: 708311
A41: 1464 | B41: Ambiental | C41: II. LINEAMIENTO DE POLITICA Fomentar el uso y aprovechamiento sostenible de los Recursos Naturales. | D41: Presupuesto Ejecutado en Reducción de la Degradación de los suelos agrarios (PP 0089) - Soles | E41: AGA.20.4 | F41: Gobierno Nacional | G41: Amazonas | H41: 2018 | I41: 211214 | J41: Soles | K41: Ministerio de Economía y Finanzas (MEF)- Seguimiento de la Ejecución Presupuestal (Consulta amigable) | L41: Portal de Transparencia Económica | M41: http://apps5.mineco.gob.pe/transparencia/Navegador/default.aspx?y=2015&ap=ActProy | P41: Presupuesto Ejecutado en Reducción de la Degradación de los suelos agrarios (PP 0089) - SolesGobierno NacionalAmazonas2018 | Q41: 211214
A42: 1585 | B42: Ambiental | C42: II. LINEAMIENTO DE POLITICA Fomentar el uso y aprovechamiento sostenible de los Recursos Naturales. | D42: Presupuesto Ejecutado en Reducción de la Degradación de los suelos agrarios (PP 0089) - Soles | E42: AGA.20.4 | F42: Gobierno Regional | G42: Amazonas | H42: 2014 | I42: Sin datos | J42: Soles | K42: Ministerio de Economía y Finanzas (MEF)- Seguimiento de la Ejecución Presupuestal (Consulta amigable) | L42: Portal de Transparencia Económica | M42: http://apps5.mineco.gob.pe/transparencia/Navegador/default.aspx?y=2015&ap=ActProy | P42: Presupuesto Ejecutado en Reducción de la Degradación de los suelos agrarios (PP 0089) - SolesGobierno RegionalAmazonas2014 | Q42: Sin datos
A43: 1586 | B43: Ambiental | C43: II. LINEAMIENTO DE POLITICA Fomentar el uso y aprovechamiento sostenible de los Recursos Naturales. | D43: Presupuesto Ejecutado en Reducción de la Degradación de los suelos agrarios (PP 0089) - Soles | E43: AGA.20.4 | F43: Gobierno Regional | G43: Amazonas | H43: 2015 | I43: Sin datos | J43: Soles | K43: Ministerio de Economía y Finanzas (MEF)- Seguimiento de la Ejecución Presupuestal (Consulta amigable) | L43: Portal de Transparencia Económica | M43: http://apps5.mineco.gob.pe/transparencia/Navegador/default.aspx?y=2015&ap=ActProy | P43: Presupuesto Ejecutado en Reducción de la Degradación de los suelos agrarios (PP 0089) - SolesGobierno RegionalAmazonas2015 | Q43: Sin datos
A44: 1587 | B44: Ambiental | C44: II. LINEAMIENTO DE POLITICA Fomentar el uso y aprovechamiento sostenible de los Recursos Naturales. | D44: Presupuesto Ejecutado en Reducción de la Degradación de los suelos agrarios (PP 0089) - Soles | E44: AGA.20.4 | F44: Gobierno Regional | G44: Amazonas | H44: 2016 | I44: Sin datos | J44: Soles | K44: Ministerio de Economía y Finanzas (MEF)- Seguimiento de la Ejecución Presupuestal (Consulta amigable) | L44: Portal de Transparencia Económica | M44: http://apps5.mineco.gob.pe/transparencia/Navegador/default.aspx?y=2015&ap=ActProy | P44: Presupuesto Ejecutado en Reducción de la Degradación de los suelos agrarios (PP 0089) - SolesGobierno RegionalAmazonas2016 | Q44: Sin datos
A45: 1588 | B45: Ambiental | C45: II. LINEAMIENTO DE POLITICA Fomentar el uso y aprovechamiento sostenible de los Recursos Naturales. | D45: Presupuesto Ejecutado en Reducción de la Degradación de los suelos agrarios (PP 0089) - Soles | E45: AGA.20.4 | F45: Gobierno Regional | G45: Amazonas | H45: 2017 | I45: Sin datos | J45: Soles | K45: Ministerio de Economía y Finanzas (MEF)- Seguimiento de la Ejecución Presupuestal (Consulta amigable) | L45: Portal de Transparencia Económica | M45: http://apps5.mineco.gob.pe/transparencia/Navegador/default.aspx?y=2015&ap=ActProy | P45: Presupuesto Ejecutado en Reducción de la Degradación de los suelos agrarios (PP 0089) - SolesGobierno RegionalAmazonas2017 | Q45: Sin datos
A46: 1589 | B46: Ambiental | C46: II. LINEAMIENTO DE POLITICA Fomentar el uso y aprovechamiento sostenible de los Recursos Naturales. | D46: Presupuesto Ejecutado en Reducción de la Degradación de los suelos agrarios (PP 0089) - Soles | E46: AGA.20.4 | F46: Gobierno Regional | G46: Amazonas | H46: 2018 | I46: Sin datos | J46: Soles | K46: Ministerio de Economía y Finanzas (MEF)- Seguimiento de la Ejecución Presupuestal (Consulta amigable) | L46: Portal de Transparencia Económica | M46: http://apps5.mineco.gob.pe/transparencia/Navegador/default.aspx?y=2015&ap=ActProy | P46: Presupuesto Ejecutado en Reducción de la Degradación de los suelos agrarios (PP 0089) - SolesGobierno RegionalAmazonas2018 | Q46: Sin datos
A47: 1822 | B47: Ambiental | C47: IV. LINEAMIENTO DE POLITICA: Promover Ciudades y Comunidades Saludables en armonía con su entorno natural. | D47: Número de gobiernos locales que cuentan con instrumentos de gestión ambiental | E47: AGA.30.2. | F47: Departamental | G47: Amazonas | H47: 2014 | I47: 24 | J47: Municipalidades | K47: Instituto Nacional de Estadística e Informática (INEI) - Registro Nacional de Municipalidades (RENAMU) | L47: Instituto Nacional de Estadística e Informática (INEI) - Registro Nacional de Municipalidades (RENAMU) | M47: https://www.inei.gob.pe/media/MenuRecursivo/publicaciones_digitales/Est/Lib1246/index.html | P47: Número de gobiernos locales que cuentan con instrumentos de gestión ambientalDepartamentalAmazonas2014 | Q47: 24
A48: 1823 | B48: Ambiental | C48: IV. LINEAMIENTO DE POLITICA: Promover Ciudades y Comunidades Saludables en armonía con su entorno natural. | D48: Número de gobiernos locales que cuentan con instrumentos de gestión ambiental | E48: AGA.30.2. | F48: Departamental | G48: Amazonas | H48: 2015 | I48: 23 | J48: Municipalidades | K48: Instituto Nacional de Estadística e Informática (INEI) - Registro Nacional de Municipalidades (RENAMU) | L48: Instituto Nacional de Estadística e Informática (INEI) - Registro Nacional de Municipalidades (RENAMU) | M48: https://www.inei.gob.pe/media/MenuRecursivo/publicaciones_digitales/Est/Lib1362/index.html | P48: Número de gobiernos locales que cuentan con instrumentos de gestión ambientalDepartamentalAmazonas2015 | Q48: 23
A49: 1824 | B49: Ambiental | C49: IV. LINEAMIENTO DE POLITICA: Promover Ciudades y Comunidades Saludables en armonía con su entorno natural. | D49: Número de gobiernos locales que cuentan con instrumentos de gestión ambiental | E49: AGA.30.2. | F49: Departamental | G49: Amazonas | H49: 2016 | I49: 35 | J49: Municipalidades | K49: Instituto Nacional de Estadística e Informática (INEI) - Registro Nacional de Municipalidades (RENAMU) | L49: Instituto Nacional de Estadística e Informática (INEI) - Registro Nacional de Municipalidades (RENAMU) | M49: https://www.inei.gob.pe/media/MenuRecursivo/publicaciones_digitales/Est/Lib1417/libro.pdf | P49: Número de gobiernos locales que cuentan con instrumentos de gestión ambientalDepartamentalAmazonas2016 | Q49: 35
A50: 1825 | B50: Ambiental | C50: IV. LINEAMIENTO DE POLITICA: Promover Ciudades y Comunidades Saludables en armonía con su entorno natural. | D50: Número de gobiernos locales que cuentan con instrumentos de gestión ambiental | E50: AGA.30.2. | F50: Departamental | G50: Amazonas | H50: 2017 | I50: 35 | J50: Municipalidades | K50: Instituto Nacional de Estadística e Informática (INEI) - Registro Nacional de Municipalidades (RENAMU) | L50: Instituto Nacional de Estadística e Informática (INEI) - Registro Nacional de Municipalidades (RENAMU) | M50: https://www.inei.gob.pe/media/MenuRecursivo/publicaciones_digitales/Est/Lib1474/ | P50: Número de gobiernos locales que cuentan con instrumentos de gestión ambientalDepartamentalAmazonas2017 | Q50: 35
A51: 1826 | B51: Ambiental | C51: IV. LINEAMIENTO DE POLITICA: Promover Ciudades y Comunidades Saludables en armonía con su entorno natural. | D51: Número de gobiernos locales que cuentan con instrumentos de gestión ambiental | E51: AGA.30.2. | F51: Departamental | G51: Amazonas | H51: 2018 | I51: 51 | J51: Municipalidades | K51: Instituto Nacional de Estadística e Informática (INEI) - Registro Nacional de Municipalidades (RENAMU) | L51: Instituto Nacional de Estadística e Informática (INEI) - Registro Nacional de Municipalidades (RENAMU) | M51: https://www.inei.gob.pe/media/MenuRecursivo/publicaciones_digitales/Est/Lib1636/index.html | P51: Número de gobiernos locales que cuentan con instrumentos de gestión ambientalDepartamentalAmazonas2018 | Q51: 51
A52: 2045 | B52: Ambiental | C52: IV. LINEAMIENTO DE POLITICA: Promover Ciudades y Comunidades Saludables en armonía con su entorno natural. | D52: Presupuesto anual ejecutado Programa Nacional de Saneamiento Rural (PP 0083) - En Soles | E52: AGA.32.4 | F52: Gobierno Locales | G52: Amazonas | H52: 2014 | I52: 85162609 | J52: Soles | K52: Ministerio de Economía y Finanzas (MEF)- Seguimiento de la Ejecución Presupuestal (Consulta amigable) | L52: Portal de Transparencia Económica | M52: http://apps5.mineco.gob.pe/transparencia/Navegador/default.aspx?y=2015&ap=ActProy | P52: Presupuesto anual ejecutado Programa Nacional de Saneamiento Rural (PP 0083) - En SolesGobierno LocalesAmazonas2014 | Q52: 85162609
A53: 2046 | B53: Ambiental | C53: IV. LINEAMIENTO DE POLITICA: Promover Ciudades y Comunidades Saludables en armonía con su entorno natural. | D53: Presupuesto anual ejecutado Programa Nacional de Saneamiento Rural (PP 0083) - En Soles | E53: AGA.32.4 | F53: Gobierno Locales | G53: Amazonas | H53: 2015 | I53: 54183357 | J53: Soles | K53: Ministerio de Economía y Finanzas (MEF)- Seguimiento de la Ejecución Presupuestal (Consulta amigable) | L53: Portal de Transparencia Económica | M53: http://apps5.mineco.gob.pe/transparencia/Navegador/default.aspx?y=2015&ap=ActProy | P53: Presupuesto anual ejecutado Programa Nacional de Saneamiento Rural (PP 0083) - En SolesGobierno LocalesAmazonas2015 | Q53: 54183357
A54: 2047 | B54: Ambiental | C54: IV. LINEAMIENTO DE POLITICA: Promover Ciudades y Comunidades Saludables en armonía con su entorno natural. | D54: Presupuesto anual ejecutado Programa Nacional de Saneamiento Rural (PP 0083) - En Soles | E54: AGA.32.4 | F54: Gobierno Locales | G54: Amazonas | H54: 2016 | I54: 56396241 | J54: Soles | K54: Ministerio de Economía y Finanzas (MEF)- Seguimiento de la Ejecución Presupuestal (Consulta amigable) | L54: Portal de Transparencia Económica | M54: http://apps5.mineco.gob.pe/transparencia/Navegador/default.aspx?y=2015&ap=ActProy | P54: Presupuesto anual ejecutado Programa Nacional de Saneamiento Rural (PP 0083) - En SolesGobierno LocalesAmazonas2016 | Q54: 56396241
A55: 2048 | B55: Ambiental | C55: IV. LINEAMIENTO DE POLITICA: Promover Ciudades y Comunidades Saludables en armonía con su entorno natural. | D55: Presupuesto anual ejecutado Programa Nacional de Saneamiento Rural (PP 0083) - En Soles | E55: AGA.32.4 | F55: Gobierno Locales | G55: Amazonas | H55: 2017 | I55: 93856179 | J55: Soles | K55: Ministerio de Economía y Finanzas (MEF)- Seguimiento de la Ejecución Presupuestal (Consulta amigable) | L55: Portal de Transparencia Económica | M55: http://apps5.mineco.gob.pe/transparencia/Navegador/default.aspx?y=2015&ap=ActProy | P55: Presupuesto anual ejecutado Programa Nacional de Saneamiento Rural (PP 0083) - En SolesGobierno LocalesAmazonas2017 | Q55: 93856179
A56: 2049 | B56: Ambiental | C56: IV. LINEAMIENTO DE POLITICA: Promover Ciudades y Comunidades Saludables en armonía con su entorno natural. | D56: Presupuesto anual ejecutado Programa Nacional de Saneamiento Rural (PP 0083) - En Soles | E56: AGA.32.4 | F56: Gobierno Locales | G56: Amazonas | H56: 2018 | I56: 101805331 | J56: Soles | K56: Ministerio de Economía y Finanzas (MEF)- Seguimiento de la Ejecución Presupuestal (Consulta amigable) | L56: Portal de Transparencia Económica | M56: http://apps5.mineco.gob.pe/transparencia/Navegador/default.aspx?y=2015&ap=ActProy | P56: Presupuesto anual ejecutado Programa Nacional de Saneamiento Rural (PP 0083) - En SolesGobierno LocalesAmazonas2018 | Q56: 101805331
A57: 2174 | B57: Ambiental | C57: IV. LINEAMIENTO DE POLITICA: Promover Ciudades y Comunidades Saludables en armonía con su entorno natural. | D57: Presupuesto anual ejecutado Programa Nacional de Saneamiento Rural (PP 0083) - En Soles | E57: AGA.32.4 | F57: Gobierno Nacional | G57: Amazonas | H57: 2014 | I57: 10342525 | J57: Soles | K57: Ministerio de Economía y Finanzas (MEF)- Seguimiento de la Ejecución Presupuestal (Consulta amigable) | L57: Portal de Transparencia Económica | M57: http://apps5.mineco.gob.pe/transparencia/Navegador/default.aspx?y=2015&ap=ActProy | P57: Presupuesto anual ejecutado Programa Nacional de Saneamiento Rural (PP 0083) - En SolesGobierno NacionalAmazonas2014 | Q57: 10342525
A58: 2175 | B58: Ambiental | C58: IV. LINEAMIENTO DE POLITICA: Promover Ciudades y Comunidades Saludables en armonía con su entorno natural. | D58: Presupuesto anual ejecutado Programa Nacional de Saneamiento Rural (PP 0083) - En Soles | E58: AGA.32.4 | F58: Gobierno Nacional | G58: Amazonas | H58: 2015 | I58: 24531627 | J58: Soles | K58: Ministerio de Economía y Finanzas (MEF)- Seguimiento de la Ejecución Presupuestal (Consulta amigable) | L58: Portal de Transparencia Económica | M58: http://apps5.mineco.gob.pe/transparencia/Navegador/default.aspx?y=2015&ap=ActProy | P58: Presupuesto anual ejecutado Programa Nacional de Saneamiento Rural (PP 0083) - En SolesGobierno NacionalAmazonas2015 | Q58: 24531627
A59: 2176 | B59: Ambiental | C59: IV. LINEAMIENTO DE POLITICA: Promover Ciudades y Comunidades Saludables en armonía con su entorno natural. | D59: Presupuesto anual ejecutado Programa Nacional de Saneamiento Rural (PP 0083) - En Soles | E59: AGA.32.4 | F59: Gobierno Nacional | G59: Amazonas | H59: 2016 | I59: 1811456 | J59: Soles | K59: Ministerio de Economía y Finanzas (MEF)- Seguimiento de la Ejecución Presupuestal (Consulta amigable) | L59: Portal de Transparencia Económica | M59: http://apps5.mineco.gob.pe/transparencia/Navegador/default.aspx?y=2015&ap=ActProy | P59: Presupuesto anual ejecutado Programa Nacional de Saneamiento Rural (PP 0083) - En SolesGobierno NacionalAmazonas2016 | Q59: 1811456
A60: 2177 | B60: Ambiental | C60: IV. LINEAMIENTO DE POLITICA: Promover Ciudades y Comunidades Saludables en armonía con su entorno natural. | D60: Presupuesto anual ejecutado Programa Nacional de Saneamiento Rural (PP 0083) - En Soles | E60: AGA.32.4 | F60: Gobierno Nacional | G60: Amazonas | H60: 2017 | I60: 150813841 | J60: Soles | K60: Ministerio de Economía y Finanzas (MEF)- Seguimiento de la Ejecución Presupuestal (Consulta amigable) | L60: Portal de Transparencia Económica | M60: http://apps5.mineco.gob.pe/transparencia/Navegador/default.aspx?y=2015&ap=ActProy | P60: Presupuesto anual ejecutado Programa Nacional de Saneamiento Rural (PP 0083) - En SolesGobierno NacionalAmazonas2017 | Q60: 150813841
A61: 2178 | B61: Ambiental | C61: IV. LINEAMIENTO DE POLITICA: Promover Ciudades y Comunidades Saludables en armonía con su entorno natural. | D61: Presupuesto anual ejecutado Programa Nacional de Saneamiento Rural (PP 0083) - En Soles | E61: AGA.32.4 | F61: Gobierno Nacional | G61: Amazonas | H61: 2018 | I61: 308305339 | J61: Soles | K61: Ministerio de Economía y Finanzas (MEF)- Seguimiento de la Ejecución Presupuestal (Consulta amigable) | L61: Portal de Transparencia Económica | M61: http://apps5.mineco.gob.pe/transparencia/Navegador/default.aspx?y=2015&ap=ActProy | P61: Presupuesto anual ejecutado Programa Nacional de Saneamiento Rural (PP 0083) - En SolesGobierno NacionalAmazonas2018 | Q61: 308305339
A62: 2299 | B62: Ambiental | C62: IV. LINEAMIENTO DE POLITICA: Promover Ciudades y Comunidades Saludables en armonía con su entorno natural. | D62: Presupuesto anual ejecutado Programa Nacional de Saneamiento Rural (PP 0083) - En Soles | E62: AGA.32.4 | F62: Gobierno Regional | G62: Amazonas | H62: 2014 | I62: 85152093 | J62: Soles | K62: Ministerio de Economía y Finanzas (MEF)- Seguimiento de la Ejecución Presupuestal (Consulta amigable) | L62: Portal de Transparencia Económica | M62: http://apps5.mineco.gob.pe/transparencia/Navegador/default.aspx?y=2015&ap=ActProy | P62: Presupuesto anual ejecutado Programa Nacional de Saneamiento Rural (PP 0083) - En SolesGobierno RegionalAmazonas2014 | Q62: 85152093
A63: 2300 | B63: Ambiental | C63: IV. LINEAMIENTO DE POLITICA: Promover Ciudades y Comunidades Saludables en armonía con su entorno natural. | D63: Presupuesto anual ejecutado Programa Nacional de Saneamiento Rural (PP 0083) - En Soles | E63: AGA.32.4 | F63: Gobierno Regional | G63: Amazonas | H63: 2015 | I63: 54183357 | J63: Soles | K63: Ministerio de Economía y Finanzas (MEF)- Seguimiento de la Ejecución Presupuestal (Consulta amigable) | L63: Portal de Transparencia Económica | M63: http://apps5.mineco.gob.pe/transparencia/Navegador/default.aspx?y=2015&ap=ActProy | P63: Presupuesto anual ejecutado Programa Nacional de Saneamiento Rural (PP 0083) - En SolesGobierno RegionalAmazonas2015 | Q63: 54183357
A64: 2301 | B64: Ambiental | C64: IV. LINEAMIENTO DE POLITICA: Promover Ciudades y Comunidades Saludables en armonía con su entorno natural. | D64: Presupuesto anual ejecutado Programa Nacional de Saneamiento Rural (PP 0083) - En Soles | E64: AGA.32.4 | F64: Gobierno Regional | G64: Amazonas | H64: 2016 | I64: 11415656 | J64: Soles | K64: Ministerio de Economía y Finanzas (MEF)- Seguimiento de la Ejecución Presupuestal (Consulta amigable) | L64: Portal de Transparencia Económica | M64: http://apps5.mineco.gob.pe/transparencia/Navegador/default.aspx?y=2015&ap=ActProy | P64: Presupuesto anual ejecutado Programa Nacional de Saneamiento Rural (PP 0083) - En SolesGobierno RegionalAmazonas2016 | Q64: 11415656
A65: 2302 | B65: Ambiental | C65: IV. LINEAMIENTO DE POLITICA: Promover Ciudades y Comunidades Saludables en armonía con su entorno natural. | D65: Presupuesto anual ejecutado Programa Nacional de Saneamiento Rural (PP 0083) - En Soles | E65: AGA.32.4 | F65: Gobierno Regional | G65: Amazonas | H65: 2017 | I65: 15158612 | J65: Soles | K65: Ministerio de Economía y Finanzas (MEF)- Seguimiento de la Ejecución Presupuestal (Consulta amigable) | L65: Portal de Transparencia Económica | M65: http://apps5.mineco.gob.pe/transparencia/Navegador/default.aspx?y=2015&ap=ActProy | P65: Presupuesto anual ejecutado Programa Nacional de Saneamiento Rural (PP 0083) - En SolesGobierno RegionalAmazonas2017 | Q65: 15158612
A66: 2303 | B66: Ambiental | C66: IV. LINEAMIENTO DE POLITICA: Promover Ciudades y Comunidades Saludables en armonía con su entorno natural. | D66: Presupuesto anual ejecutado Programa Nacional de Saneamiento Rural (PP 0083) - En Soles | E66: AGA.32.4 | F66: Gobierno Regional | G66: Amazonas | H66: 2018 | I66: 10827173 | J66: Soles | K66: Ministerio de Economía y Finanzas (MEF)- Seguimiento de la Ejecución Presupuestal (Consulta amigable) | L66: Portal de Transparencia Económica | M66: http://apps5.mineco.gob.pe/transparencia/Navegador/default.aspx?y=2015&ap=ActProy | P66: Presupuesto anual ejecutado Programa Nacional de Saneamiento Rural (PP 0083) - En SolesGobierno RegionalAmazonas2018 | Q66: 10827173
A67: 2432 | B67: Ambiental | C67: IV. LINEAMIENTO DE POLITICA: Promover Ciudades y Comunidades Saludables en armonía con su entorno natural. | D67: Presupuesto anual del Programa Nacional de Saneamiento Urbano del Gobierno Nacional (PP 0082) - Soles | E67: AGA.32.5 | F67: Gobierno Locales | G67: Amazonas | H67: 2014 | I67: Sin datos | J67: Soles | K67: Ministerio de Economía y Finanzas (MEF)- Seguimiento de la Ejecución Presupuestal (Consulta amigable) | L67: Portal de Transparencia Económica | M67: http://apps5.mineco.gob.pe/transparencia/Navegador/default.aspx?y=2015&ap=ActProy | P67: Presupuesto anual del Programa Nacional de Saneamiento Urbano del Gobierno Nacional (PP 0082) - SolesGobierno LocalesAmazonas2014 | Q67: Sin datos
A68: 2433 | B68: Ambiental | C68: IV. LINEAMIENTO DE POLITICA: Promover Ciudades y Comunidades Saludables en armonía con su entorno natural. | D68: Presupuesto anual del Programa Nacional de Saneamiento Urbano del Gobierno Nacional (PP 0082) - Soles | E68: AGA.32.5 | F68: Gobierno Locales | G68: Amazonas | H68: 2015 | I68: 32229607 | J68: Soles | K68: Ministerio de Economía y Finanzas (MEF)- Seguimiento de la Ejecución Presupuestal (Consulta amigable) | L68: Portal de Transparencia Económica | M68: http://apps5.mineco.gob.pe/transparencia/Navegador/default.aspx?y=2015&ap=ActProy | P68: Presupuesto anual del Programa Nacional de Saneamiento Urbano del Gobierno Nacional (PP 0082) - SolesGobierno LocalesAmazonas2015 | Q68: 32229607
A69: 2434 | B69: Ambiental | C69: IV. LINEAMIENTO DE POLITICA: Promover Ciudades y Comunidades Saludables en armonía con su entorno natural. | D69: Presupuesto anual del Programa Nacional de Saneamiento Urbano del Gobierno Nacional (PP 0082) - Soles | E69: AGA.32.5 | F69: Gobierno Locales | G69: Amazonas | H69: 2016 | I69: 19318351 | J69: Soles | K69: Ministerio de Economía y Finanzas (MEF)- Seguimiento de la Ejecución Presupuestal (Consulta amigable) | L69: Portal de Transparencia Económica | M69: http://apps5.mineco.gob.pe/transparencia/Navegador/default.aspx?y=2015&ap=ActProy | P69: Presupuesto anual del Programa Nacional de Saneamiento Urbano del Gobierno Nacional (PP 0082) - SolesGobierno LocalesAmazonas2016 | Q69: 19318351
A70: 2435 | B70: Ambiental | C70: IV. LINEAMIENTO DE POLITICA: Promover Ciudades y Comunidades Saludables en armonía con su entorno natural. | D70: Presupuesto anual del Programa Nacional de Saneamiento Urbano del Gobierno Nacional (PP 0082) - Soles | E70: AGA.32.5 | F70: Gobierno Locales | G70: Amazonas | H70: 2017 | I70: 14314057 | J70: Soles | K70: Ministerio de Economía y Finanzas (MEF)- Seguimiento de la Ejecución Presupuestal (Consulta amigable) | L70: Portal de Transparencia Económica | M70: http://apps5.mineco.gob.pe/transparencia/Navegador/default.aspx?y=2015&ap=ActProy | P70: Presupuesto anual del Programa Nacional de Saneamiento Urbano del Gobierno Nacional (PP 0082) - SolesGobierno LocalesAmazonas2017 | Q70: 14314057
A71: 2436 | B71: Ambiental | C71: IV. LINEAMIENTO DE POLITICA: Promover Ciudades y Comunidades Saludables en armonía con su entorno natural. | D71: Presupuesto anual del Programa Nacional de Saneamiento Urbano del Gobierno Nacional (PP 0082) - Soles | E71: AGA.32.5 | F71: Gobierno Locales | G71: Amazonas | H71: 2018 | I71: 8029292 | J71: Soles | K71: Ministerio de Economía y Finanzas (MEF)- Seguimiento de la Ejecución Presupuestal (Consulta amigable) | L71: Portal de Transparencia Económica | M71: http://apps5.mineco.gob.pe/transparencia/Navegador/default.aspx?y=2015&ap=ActProy | P71: Presupuesto anual del Programa Nacional de Saneamiento Urbano del Gobierno Nacional (PP 0082) - SolesGobierno LocalesAmazonas2018 | Q71: 8029292
A72: 2561 | B72: Ambiental | C72: IV. LINEAMIENTO DE POLITICA: Promover Ciudades y Comunidades Saludables en armonía con su entorno natural. | D72: Presupuesto anual del Programa Nacional de Saneamiento Urbano del Gobierno Nacional (PP 0082) - Soles | E72: AGA.32.5 | F72: Gobierno Nacional | G72: Amazonas | H72: 2014 | I72: Sin datos | J72: Soles | K72: Ministerio de Economía y Finanzas (MEF)- Seguimiento de la Ejecución Presupuestal (Consulta amigable) | L72: Portal de Transparencia Económica | M72: http://apps5.mineco.gob.pe/transparencia/Navegador/default.aspx?y=2015&ap=ActProy | P72: Presupuesto anual del Programa Nacional de Saneamiento Urbano del Gobierno Nacional (PP 0082) - SolesGobierno NacionalAmazonas2014 | Q72: Sin datos
A73: 2562 | B73: Ambiental | C73: IV. LINEAMIENTO DE POLITICA: Promover Ciudades y Comunidades Saludables en armonía con su entorno natural. | D73: Presupuesto anual del Programa Nacional de Saneamiento Urbano del Gobierno Nacional (PP 0082) - Soles | E73: AGA.32.5 | F73: Gobierno Nacional | G73: Amazonas | H73: 2015 | I73: 3297607 | J73: Soles | K73: Ministerio de Economía y Finanzas (MEF)- Seguimiento de la Ejecución Presupuestal (Consulta amigable) | L73: Portal de Transparencia Económica | M73: http://apps5.mineco.gob.pe/transparencia/Navegador/default.aspx?y=2015&ap=ActProy | P73: Presupuesto anual del Programa Nacional de Saneamiento Urbano del Gobierno Nacional (PP 0082) - SolesGobierno NacionalAmazonas2015 | Q73: 3297607
A74: 2563 | B74: Ambiental | C74: IV. LINEAMIENTO DE POLITICA: Promover Ciudades y Comunidades Saludables en armonía con su entorno natural. | D74: Presupuesto anual del Programa Nacional de Saneamiento Urbano del Gobierno Nacional (PP 0082) - Soles | E74: AGA.32.5 | F74: Gobierno Nacional | G74: Amazonas | H74: 2016 | I74: Sin datos | J74: Soles | K74: Ministerio de Economía y Finanzas (MEF)- Seguimiento de la Ejecución Presupuestal (Consulta amigable) | L74: Portal de Transparencia Económica | M74: http://apps5.mineco.gob.pe/transparencia/Navegador/default.aspx?y=2015&ap=ActProy | P74: Presupuesto anual del Programa Nacional de Saneamiento Urbano del Gobierno Nacional (PP 0082) - SolesGobierno NacionalAmazonas2016 | Q74: Sin datos
A75: 2564 | B75: Ambiental | C75: IV. LINEAMIENTO DE POLITICA: Promover Ciudades y Comunidades Saludables en armonía con su entorno natural. | D75: Presupuesto anual del Programa Nacional de Saneamiento Urbano del Gobierno Nacional (PP 0082) - Soles | E75: AGA.32.5 | F75: Gobierno Nacional | G75: Amazonas | H75: 2017 | I75: 564074 | J75: Soles | K75: Ministerio de Economía y Finanzas (MEF)- Seguimiento de la Ejecución Presupuestal (Consulta amigable) | L75: Portal de Transparencia Económica | M75: http://apps5.mineco.gob.pe/transparencia/Navegador/default.aspx?y=2015&ap=ActProy | P75: Presupuesto anual del Programa Nacional de Saneamiento Urbano del Gobierno Nacional (PP 0082) - SolesGobierno NacionalAmazonas2017 | Q75: 564074
A76: 2565 | B76: Ambiental | C76: IV. LINEAMIENTO DE POLITICA: Promover Ciudades y Comunidades Saludables en armonía con su entorno natural. | D76: Presupuesto anual del Programa Nacional de Saneamiento Urbano del Gobierno Nacional (PP 0082) - Soles | E76: AGA.32.5 | F76: Gobierno Nacional | G76: Amazonas | H76: 2018 | I76: 1135573 | J76: Soles | K76: Ministerio de Economía y Finanzas (MEF)- Seguimiento de la Ejecución Presupuestal (Consulta amigable) | L76: Portal de Transparencia Económica | M76: http://apps5.mineco.gob.pe/transparencia/Navegador/default.aspx?y=2015&ap=ActProy | P76: Presupuesto anual del Programa Nacional de Saneamiento Urbano del Gobierno Nacional (PP 0082) - SolesGobierno NacionalAmazonas2018 | Q76: 1135573
A77: 2690 | B77: Ambiental | C77: IV. LINEAMIENTO DE POLITICA: Promover Ciudades y Comunidades Saludables en armonía con su entorno natural. | D77: Presupuesto anual del Programa Nacional de Saneamiento Urbano del Gobierno Nacional (PP 0082) - Soles | E77: AGA.32.5 | F77: Gobierno Regional | G77: Amazonas | H77: 2014 | I77: 1872469 | J77: Soles | K77: Ministerio de Economía y Finanzas (MEF)- Seguimiento de la Ejecución Presupuestal (Consulta amigable) | L77: Portal de Transparencia Económica | M77: http://apps5.mineco.gob.pe/transparencia/Navegador/default.aspx?y=2015&ap=ActProy | P77: Presupuesto anual del Programa Nacional de Saneamiento Urbano del Gobierno Nacional (PP 0082) - SolesGobierno RegionalAmazonas2014 | Q77: 1872469
A78: 2691 | B78: Ambiental | C78: IV. LINEAMIENTO DE POLITICA: Promover Ciudades y Comunidades Saludables en armonía con su entorno natural. | D78: Presupuesto anual del Programa Nacional de Saneamiento Urbano del Gobierno Nacional (PP 0082) - Soles | E78: AGA.32.5 | F78: Gobierno Regional | G78: Amazonas | H78: 2015 | I78: 419260 | J78: Soles | K78: Ministerio de Economía y Finanzas (MEF)- Seguimiento de la Ejecución Presupuestal (Consulta amigable) | L78: Portal de Transparencia Económica | M78: http://apps5.mineco.gob.pe/transparencia/Navegador/default.aspx?y=2015&ap=ActProy | P78: Presupuesto anual del Programa Nacional de Saneamiento Urbano del Gobierno Nacional (PP 0082) - SolesGobierno RegionalAmazonas2015 | Q78: 419260
A79: 2692 | B79: Ambiental | C79: IV. LINEAMIENTO DE POLITICA: Promover Ciudades y Comunidades Saludables en armonía con su entorno natural. | D79: Presupuesto anual del Programa Nacional de Saneamiento Urbano del Gobierno Nacional (PP 0082) - Soles | E79: AGA.32.5 | F79: Gobierno Regional | G79: Amazonas | H79: 2016 | I79: 8269 | J79: Soles | K79: Ministerio de Economía y Finanzas (MEF)- Seguimiento de la Ejecución Presupuestal (Consulta amigable) | L79: Portal de Transparencia Económica | M79: http://apps5.mineco.gob.pe/transparencia/Navegador/default.aspx?y=2015&ap=ActProy | P79: Presupuesto anual del Programa Nacional de Saneamiento Urbano del Gobierno Nacional (PP 0082) - SolesGobierno RegionalAmazonas2016 | Q79: 8269
A80: 2693 | B80: Ambiental | C80: IV. LINEAMIENTO DE POLITICA: Promover Ciudades y Comunidades Saludables en armonía con su entorno natural. | D80: Presupuesto anual del Programa Nacional de Saneamiento Urbano del Gobierno Nacional (PP 0082) - Soles | E80: AGA.32.5 | F80: Gobierno Regional | G80: Amazonas | H80: 2017 | I80: 593608 | J80: Soles | K80: Ministerio de Economía y Finanzas (MEF)- Seguimiento de la Ejecución Presupuestal (Consulta amigable) | L80: Portal de Transparencia Económica | M80: http://apps5.mineco.gob.pe/transparencia/Navegador/default.aspx?y=2015&ap=ActProy | P80: Presupuesto anual del Programa Nacional de Saneamiento Urbano del Gobierno Nacional (PP 0082) - SolesGobierno RegionalAmazonas2017 | Q80: 593608
A81: 2694 | B81: Ambiental | C81: IV. LINEAMIENTO DE POLITICA: Promover Ciudades y Comunidades Saludables en armonía con su entorno natural. | D81: Presupuesto anual del Programa Nacional de Saneamiento Urbano del Gobierno Nacional (PP 0082) - Soles | E81: AGA.32.5 | F81: Gobierno Regional | G81: Amazonas | H81: 2018 | I81: 953652 | J81: Soles | K81: Ministerio de Economía y Finanzas (MEF)- Seguimiento de la Ejecución Presupuestal (Consulta amigable) | L81: Portal de Transparencia Económica | M81: http://apps5.mineco.gob.pe/transparencia/Navegador/default.aspx?y=2015&ap=ActProy | P81: Presupuesto anual del Programa Nacional de Saneamiento Urbano del Gobierno Nacional (PP 0082) - SolesGobierno RegionalAmazonas2018 | Q81: 953652
A82: 2887 | B82: Ambiental | C82: IV. LINEAMIENTO DE POLITICA: Promover Ciudades y Comunidades Saludables en armonía con su entorno natural. | D82: Porcentaje Municipalidades cuentan con instrumentos de gestión de Residuos Sólidos - RRSS | E82: AGA.35.1 | F82: Municipalidades cuentan con instrumentos | G82: Amazonas | H82: 2014 | I82: 0.6 | J82: Porcentaje | K82: Instituto Nacional de Estadística e Informática (INEI) - Registro Nacional de Municipalidades (RENAMU) | L82: Instituto Nacional de Estadística e Informática (INEI) - Registro Nacional de Municipalidades (RENAMU) | M82: https://www.inei.gob.pe/media/MenuRecursivo/publicaciones_digitales/Est/Lib1246/index.html | P82: Porcentaje Municipalidades cuentan con instrumentos de gestión de Residuos Sólidos - RRSSMunicipalidades cuentan con instrumentosAmazonas2014 | Q82: 0.6
A83: 2888 | B83: Ambiental | C83: IV. LINEAMIENTO DE POLITICA: Promover Ciudades y Comunidades Saludables en armonía con su entorno natural. | D83: Porcentaje Municipalidades cuentan con instrumentos de gestión de Residuos Sólidos - RRSS | E83: AGA.35.1 | F83: Municipalidades cuentan con instrumentos | G83: Amazonas | H83: 2015 | I83: 0.7 | J83: Porcentaje | K83: Instituto Nacional de Estadística e Informática (INEI) - Registro Nacional de Municipalidades (RENAMU) | L83: Instituto Nacional de Estadística e Informática (INEI) - Registro Nacional de Municipalidades (RENAMU) | M83: https://www.inei.gob.pe/media/MenuRecursivo/publicaciones_digitales/Est/Lib1362/index.html | P83: Porcentaje Municipalidades cuentan con instrumentos de gestión de Residuos Sólidos - RRSSMunicipalidades cuentan con instrumentosAmazonas2015 | Q83: 0.7
A84: 2889 | B84: Ambiental | C84: IV. LINEAMIENTO DE POLITICA: Promover Ciudades y Comunidades Saludables en armonía con su entorno natural. | D84: Porcentaje Municipalidades cuentan con instrumentos de gestión de Residuos Sólidos - RRSS | E84: AGA.35.1 | F84: Municipalidades cuentan con instrumentos | G84: Amazonas | H84: 2016 | I84: 0.7 | J84: Porcentaje | K84: Instituto Nacional de Estadística e Informática (INEI) - Registro Nacional de Municipalidades (RENAMU) | L84: Instituto Nacional de Estadística e Informática (INEI) - Registro Nacional de Municipalidades (RENAMU) | M84: https://www.inei.gob.pe/media/MenuRecursivo/publicaciones_digitales/Est/Lib1417/index.html | P84: Porcentaje Municipalidades cuentan con instrumentos de gestión de Residuos Sólidos - RRSSMunicipalidades cuentan con instrumentosAmazonas2016 | Q84: 0.7
A85: 2890 | B85: Ambiental | C85: IV. LINEAMIENTO DE POLITICA: Promover Ciudades y Comunidades Saludables en armonía con su entorno natural. | D85: Porcentaje Municipalidades cuentan con instrumentos de gestión de Residuos Sólidos - RRSS | E85: AGA.35.1 | F85: Municipalidades cuentan con instrumentos | G85: Amazonas | H85: 2017 | I85: 0.9 | J85: Porcentaje | K85: Instituto Nacional de Estadística e Informática (INEI) - Registro Nacional de Municipalidades (RENAMU) | L85: Instituto Nacional de Estadística e Informática (INEI) - Registro Nacional de Municipalidades (RENAMU) | M85: https://www.inei.gob.pe/media/MenuRecursivo/publicaciones_digitales/Est/Lib1474/index.html | P85: Porcentaje Municipalidades cuentan con instrumentos de gestión de Residuos Sólidos - RRSSMunicipalidades cuentan con instrumentosAmazonas2017 | Q85: 0.9
A86: 2891 | B86: Ambiental | C86: IV. LINEAMIENTO DE POLITICA: Promover Ciudades y Comunidades Saludables en armonía con su entorno natural. | D86: Porcentaje Municipalidades cuentan con instrumentos de gestión de Residuos Sólidos - RRSS | E86: AGA.35.1 | F86: Municipalidades cuentan con instrumentos | G86: Amazonas | H86: 2018 | I86: Sin datos | J86: Porcentaje | K86: Instituto Nacional de Estadística e Informática (INEI) - Registro Nacional de Municipalidades (RENAMU) | L86: Instituto Nacional de Estadística e Informática (INEI) - Registro Nacional de Municipalidades (RENAMU) | M86: https://www.inei.gob.pe/media/MenuRecursivo/publicaciones_digitales/Est/Lib1636/index.html | P86: Porcentaje Municipalidades cuentan con instrumentos de gestión de Residuos Sólidos - RRSSMunicipalidades cuentan con instrumentosAmazonas2018 | Q86: Sin datos
A87: 3022 | B87: Ambiental | C87: IV. LINEAMIENTO DE POLITICA: Promover Ciudades y Comunidades Saludables en armonía con su entorno natural. | D87: Porcentaje Municipalidades cuentan con instrumentos de gestión de Residuos Sólidos - RRSS | E87: AGA.35.1 | F87: Plan de Gestión Ambiental de RRSS | G87: Amazonas | H87: 2014 | I87: 15.5 | J87: Porcentaje | K87: Instituto Nacional de Estadística e Informática (INEI) - Registro Nacional de Municipalidades (RENAMU) | L87: Instituto Nacional de Estadística e Informática (INEI) - Registro Nacional de Municipalidades (RENAMU) | M87: https://www.inei.gob.pe/media/MenuRecursivo/publicaciones_digitales/Est/Lib1246/index.html | P87: Porcentaje Municipalidades cuentan con instrumentos de gestión de Residuos Sólidos - RRSSPlan de Gestión Ambiental de RRSSAmazonas2014 | Q87: 15.5
A88: 3023 | B88: Ambiental | C88: IV. LINEAMIENTO DE POLITICA: Promover Ciudades y Comunidades Saludables en armonía con su entorno natural. | D88: Porcentaje Municipalidades cuentan con instrumentos de gestión de Residuos Sólidos - RRSS | E88: AGA.35.1 | F88: Plan de Gestión Ambiental de RRSS | G88: Amazonas | H88: 2015 | I88: 25 | J88: Porcentaje | K88: Instituto Nacional de Estadística e Informática (INEI) - Registro Nacional de Municipalidades (RENAMU) | L88: Instituto Nacional de Estadística e Informática (INEI) - Registro Nacional de Municipalidades (RENAMU) | M88: https://www.inei.gob.pe/media/MenuRecursivo/publicaciones_digitales/Est/Lib1362/index.html | P88: Porcentaje Municipalidades cuentan con instrumentos de gestión de Residuos Sólidos - RRSSPlan de Gestión Ambiental de RRSSAmazonas2015 | Q88: 25
A89: 3024 | B89: Ambiental | C89: IV. LINEAMIENTO DE POLITICA: Promover Ciudades y Comunidades Saludables en armonía con su entorno natural. | D89: Porcentaje Municipalidades cuentan con instrumentos de gestión de Residuos Sólidos - RRSS | E89: AGA.35.1 | F89: Plan de Gestión Ambiental de RRSS | G89: Amazonas | H89: 2016 | I89: 29.8 | J89: Porcentaje | K89: Instituto Nacional de Estadística e Informática (INEI) - Registro Nacional de Municipalidades (RENAMU) | L89: Instituto Nacional de Estadística e Informática (INEI) - Registro Nacional de Municipalidades (RENAMU) | M89: https://www.inei.gob.pe/media/MenuRecursivo/publicaciones_digitales/Est/Lib1417/index.html | P89: Porcentaje Municipalidades cuentan con instrumentos de gestión de Residuos Sólidos - RRSSPlan de Gestión Ambiental de RRSSAmazonas2016 | Q89: 29.8
A90: 3025 | B90: Ambiental | C90: IV. LINEAMIENTO DE POLITICA: Promover Ciudades y Comunidades Saludables en armonía con su entorno natural. | D90: Porcentaje Municipalidades cuentan con instrumentos de gestión de Residuos Sólidos - RRSS | E90: AGA.35.1 | F90: Plan de Gestión Ambiental de RRSS | G90: Amazonas | H90: 2017 | I90: 8.3 | J90: Porcentaje | K90: Instituto Nacional de Estadística e Informática (INEI) - Registro Nacional de Municipalidades (RENAMU) | L90: Instituto Nacional de Estadística e Informática (INEI) - Registro Nacional de Municipalidades (RENAMU) | M90: https://www.inei.gob.pe/media/MenuRecursivo/publicaciones_digitales/Est/Lib1474/index.html | P90: Porcentaje Municipalidades cuentan con instrumentos de gestión de Residuos Sólidos - RRSSPlan de Gestión Ambiental de RRSSAmazonas2017 | Q90: 8.3
A91: 3026 | B91: Ambiental | C91: IV. LINEAMIENTO DE POLITICA: Promover Ciudades y Comunidades Saludables en armonía con su entorno natural. | D91: Porcentaje Municipalidades cuentan con instrumentos de gestión de Residuos Sólidos - RRSS | E91: AGA.35.1 | F91: Plan de Gestión Ambiental de RRSS | G91: Amazonas | H91: 2018 | I91: Sin datos | J91: Porcentaje | K91: Instituto Nacional de Estadística e Informática (INEI) - Registro Nacional de Municipalidades (RENAMU) | L91: Instituto Nacional de Estadística e Informática (INEI) - Registro Nacional de Municipalidades (RENAMU) | M91: https://www.inei.gob.pe/media/MenuRecursivo/publicaciones_digitales/Est/Lib1636/index.html | P91: Porcentaje Municipalidades cuentan con instrumentos de gestión de Residuos Sólidos - RRSSPlan de Gestión Ambiental de RRSSAmazonas2018 | Q91: Sin datos
A92: 3157 | B92: Ambiental | C92: IV. LINEAMIENTO DE POLITICA: Promover Ciudades y Comunidades Saludables en armonía con su entorno natural. | D92: Porcentaje Municipalidades cuentan con instrumentos de gestión de Residuos Sólidos - RRSS | E92: AGA.35.1 | F92: Plan de Manejo Distrital de RRSS | G92: Amazonas | H92: 2014 | I92: 21.4 | J92: Porcentaje | K92: Instituto Nacional de Estadística e Informática (INEI) - Registro Nacional de Municipalidades (RENAMU) | L92: Instituto Nacional de Estadística e Informática (INEI) - Registro Nacional de Municipalidades (RENAMU) | M92: https://www.inei.gob.pe/media/MenuRecursivo/publicaciones_digitales/Est/Lib1246/index.html | P92: Porcentaje Municipalidades cuentan con instrumentos de gestión de Residuos Sólidos - RRSSPlan de Manejo Distrital de RRSSAmazonas2014 | Q92: 21.4
A93: 3158 | B93: Ambiental | C93: IV. LINEAMIENTO DE POLITICA: Promover Ciudades y Comunidades Saludables en armonía con su entorno natural. | D93: Porcentaje Municipalidades cuentan con instrumentos de gestión de Residuos Sólidos - RRSS | E93: AGA.35.1 | F93: Plan de Manejo Distrital de RRSS | G93: Amazonas | H93: 2015 | I93: 42.9 | J93: Porcentaje | K93: Instituto Nacional de Estadística e Informática (INEI) - Registro Nacional de Municipalidades (RENAMU) | L93: Instituto Nacional de Estadística e Informática (INEI) - Registro Nacional de Municipalidades (RENAMU) | M93: https://www.inei.gob.pe/media/MenuRecursivo/publicaciones_digitales/Est/Lib1362/index.html | P93: Porcentaje Municipalidades cuentan con instrumentos de gestión de Residuos Sólidos - RRSSPlan de Manejo Distrital de RRSSAmazonas2015 | Q93: 42.9
A94: 3159 | B94: Ambiental | C94: IV. LINEAMIENTO DE POLITICA: Promover Ciudades y Comunidades Saludables en armonía con su entorno natural. | D94: Porcentaje Municipalidades cuentan con instrumentos de gestión de Residuos Sólidos - RRSS | E94: AGA.35.1 | F94: Plan de Manejo Distrital de RRSS | G94: Amazonas | H94: 2016 | I94: 35.7 | J94: Porcentaje | K94: Instituto Nacional de Estadística e Informática (INEI) - Registro Nacional de Municipalidades (RENAMU) | L94: Instituto Nacional de Estadística e Informática (INEI) - Registro Nacional de Municipalidades (RENAMU) | M94: https://www.inei.gob.pe/media/MenuRecursivo/publicaciones_digitales/Est/Lib1417/index.html | P94: Porcentaje Municipalidades cuentan con instrumentos de gestión de Residuos Sólidos - RRSSPlan de Manejo Distrital de RRSSAmazonas2016 | Q94: 35.7
A95: 3160 | B95: Ambiental | C95: IV. LINEAMIENTO DE POLITICA: Promover Ciudades y Comunidades Saludables en armonía con su entorno natural. | D95: Porcentaje Municipalidades cuentan con instrumentos de gestión de Residuos Sólidos - RRSS | E95: AGA.35.1 | F95: Plan de Manejo Distrital de RRSS | G95: Amazonas | H95: 2017 | I95: 85.7 | J95: Porcentaje | K95: Instituto Nacional de Estadística e Informática (INEI) - Registro Nacional de Municipalidades (RENAMU) | L95: Instituto Nacional de Estadística e Informática (INEI) - Registro Nacional de Municipalidades (RENAMU) | M95: https://www.inei.gob.pe/media/MenuRecursivo/publicaciones_digitales/Est/Lib1474/index.html | P95: Porcentaje Municipalidades cuentan con instrumentos de gestión de Residuos Sólidos - RRSSPlan de Manejo Distrital de RRSSAmazonas2017 | Q95: 85.7
A96: 3161 | B96: Ambiental | C96: IV. LINEAMIENTO DE POLITICA: Promover Ciudades y Comunidades Saludables en armonía con su entorno natural. | D96: Porcentaje Municipalidades cuentan con instrumentos de gestión de Residuos Sólidos - RRSS | E96: AGA.35.1 | F96: Plan de Manejo Distrital de RRSS | G96: Amazonas | H96: 2018 | I96: Sin datos | J96: Porcentaje | K96: Instituto Nacional de Estadística e Informática (INEI) - Registro Nacional de Municipalidades (RENAMU) | L96: Instituto Nacional de Estadística e Informática (INEI) - Registro Nacional de Municipalidades (RENAMU) | M96: https://www.inei.gob.pe/media/MenuRecursivo/publicaciones_digitales/Est/Lib1636/index.html | P96: Porcentaje Municipalidades cuentan con instrumentos de gestión de Residuos Sólidos - RRSSPlan de Manejo Distrital de RRSSAmazonas2018 | Q96: Sin datos
A97: 3296 | B97: Ambiental | C97: IV. LINEAMIENTO DE POLITICA: Promover Ciudades y Comunidades Saludables en armonía con su entorno natural. | D97: Porcentaje Municipalidades cuentan con instrumentos de gestión de Residuos Sólidos - RRSS | E97: AGA.35.1 | F97: Programa de Transformación de RRSS | G97: Amazonas | H97: 2014 | I97: 4.8 | J97: Porcentaje | K97: Instituto Nacional de Estadística e Informática (INEI) - Registro Nacional de Municipalidades (RENAMU) | L97: Instituto Nacional de Estadística e Informática (INEI) - Registro Nacional de Municipalidades (RENAMU) | M97: https://www.inei.gob.pe/media/MenuRecursivo/publicaciones_digitales/Est/Lib1246/index.html | P97: Porcentaje Municipalidades cuentan con instrumentos de gestión de Residuos Sólidos - RRSSPrograma de Transformación de RRSSAmazonas2014 | Q97: 4.8
A98: 3297 | B98: Ambiental | C98: IV. LINEAMIENTO DE POLITICA: Promover Ciudades y Comunidades Saludables en armonía con su entorno natural. | D98: Porcentaje Municipalidades cuentan con instrumentos de gestión de Residuos Sólidos - RRSS | E98: AGA.35.1 | F98: Programa de Transformación de RRSS | G98: Amazonas | H98: 2015 | I98: 4.8 | J98: Porcentaje | K98: Instituto Nacional de Estadística e Informática (INEI) - Registro Nacional de Municipalidades (RENAMU) | L98: Instituto Nacional de Estadística e Informática (INEI) - Registro Nacional de Municipalidades (RENAMU) | M98: https://www.inei.gob.pe/media/MenuRecursivo/publicaciones_digitales/Est/Lib1362/index.html | P98: Porcentaje Municipalidades cuentan con instrumentos de gestión de Residuos Sólidos - RRSSPrograma de Transformación de RRSSAmazonas2015 | Q98: 4.8
A99: 3298 | B99: Ambiental | C99: IV. LINEAMIENTO DE POLITICA: Promover Ciudades y Comunidades Saludables en armonía con su entorno natural. | D99: Porcentaje Municipalidades cuentan con instrumentos de gestión de Residuos Sólidos - RRSS | E99: AGA.35.1 | F99: Programa de Transformación de RRSS | G99: Amazonas | H99: 2016 | I99: 1.2 | J99: Porcentaje | K99: Instituto Nacional de Estadística e Informática (INEI) - Registro Nacional de Municipalidades (RENAMU) | L99: Instituto Nacional de Estadística e Informática (INEI) - Registro Nacional de Municipalidades (RENAMU) | M99: https://www.inei.gob.pe/media/MenuRecursivo/publicaciones_digitales/Est/Lib1417/index.html | P99: Porcentaje Municipalidades cuentan con instrumentos de gestión de Residuos Sólidos - RRSSPrograma de Transformación de RRSSAmazonas2016 | Q99: 1.2
A100: 3299 | B100: Ambiental | C100: IV. LINEAMIENTO DE POLITICA: Promover Ciudades y Comunidades Saludables en armonía con su entorno natural. | D100: Porcentaje Municipalidades cuentan con instrumentos de gestión de Residuos Sólidos - RRSS | E100: AGA.35.1 | F100: Programa de Transformación de RRSS | G100: Amazonas | H100: 2017 | I100: 0 | J100: Porcentaje | K100: Instituto Nacional de Estadística e Informática (INEI) - Registro Nacional de Municipalidades (RENAMU) | L100: Instituto Nacional de Estadística e Informática (INEI) - Registro Nacional de Municipalidades (RENAMU) | M100: https://www.inei.gob.pe/media/MenuRecursivo/publicaciones_digitales/Est/Lib1474/index.html | P100: Porcentaje Municipalidades cuentan con instrumentos de gestión de Residuos Sólidos - RRSSPrograma de Transformación de RRSSAmazonas2017 | Q100: 0
A101: 3300 | B101: Ambiental | C101: IV. LINEAMIENTO DE POLITICA: Promover Ciudades y Comunidades Saludables en armonía con su entorno natural. | D101: Porcentaje Municipalidades cuentan con instrumentos de gestión de Residuos Sólidos - RRSS | E101: AGA.35.1 | F101: Programa de Transformación de RRSS | G101: Amazonas | H101: 2018 | I101: Sin datos | J101: Porcentaje | K101: Instituto Nacional de Estadística e Informática (INEI) - Registro Nacional de Municipalidades (RENAMU) | L101: Instituto Nacional de Estadística e Informática (INEI) - Registro Nacional de Municipalidades (RENAMU) | M101: https://www.inei.gob.pe/media/MenuRecursivo/publicaciones_digitales/Est/Lib1636/index.html | P101: Porcentaje Municipalidades cuentan con instrumentos de gestión de Residuos Sólidos - RRSSPrograma de Transformación de RRSSAmazonas2018 | Q101: Sin datos
A102: 3435 | B102: Ambiental | C102: IV. LINEAMIENTO DE POLITICA: Promover Ciudades y Comunidades Saludables en armonía con su entorno natural. | D102: Porcentaje Municipalidades cuentan con instrumentos de gestión de Residuos Sólidos - RRSS | E102: AGA.35.1 | F102: Sistema de Recojo de RRSS | G102: Amazonas | H102: 2014 | I102: 40.5 | J102: Porcentaje | K102: Instituto Nacional de Estadística e Informática (INEI) - Registro Nacional de Municipalidades (RENAMU) | L102: Instituto Nacional de Estadística e Informática (INEI) - Registro Nacional de Municipalidades (RENAMU) | M102: https://www.inei.gob.pe/media/MenuRecursivo/publicaciones_digitales/Est/Lib1246/index.html | P102: Porcentaje Municipalidades cuentan con instrumentos de gestión de Residuos Sólidos - RRSSSistema de Recojo de RRSSAmazonas2014 | Q102: 40.5
A103: 3436 | B103: Ambiental | C103: IV. LINEAMIENTO DE POLITICA: Promover Ciudades y Comunidades Saludables en armonía con su entorno natural. | D103: Porcentaje Municipalidades cuentan con instrumentos de gestión de Residuos Sólidos - RRSS | E103: AGA.35.1 | F103: Sistema de Recojo de RRSS | G103: Amazonas | H103: 2015 | I103: 48.8 | J103: Porcentaje | K103: Instituto Nacional de Estadística e Informática (INEI) - Registro Nacional de Municipalidades (RENAMU) | L103: Instituto Nacional de Estadística e Informática (INEI) - Registro Nacional de Municipalidades (RENAMU) | M103: https://www.inei.gob.pe/media/MenuRecursivo/publicaciones_digitales/Est/Lib1362/index.html | P103: Porcentaje Municipalidades cuentan con instrumentos de gestión de Residuos Sólidos - RRSSSistema de Recojo de RRSSAmazonas2015 | Q103: 48.8
A104: 3437 | B104: Ambiental | C104: IV. LINEAMIENTO DE POLITICA: Promover Ciudades y Comunidades Saludables en armonía con su entorno natural. | D104: Porcentaje Municipalidades cuentan con instrumentos de gestión de Residuos Sólidos - RRSS | E104: AGA.35.1 | F104: Sistema de Recojo de RRSS | G104: Amazonas | H104: 2016 | I104: 54.8 | J104: Porcentaje | K104: Instituto Nacional de Estadística e Informática (INEI) - Registro Nacional de Municipalidades (RENAMU) | L104: Instituto Nacional de Estadística e Informática (INEI) - Registro Nacional de Municipalidades (RENAMU) | M104: https://www.inei.gob.pe/media/MenuRecursivo/publicaciones_digitales/Est/Lib1417/index.html | P104: Porcentaje Municipalidades cuentan con instrumentos de gestión de Residuos Sólidos - RRSSSistema de Recojo de RRSSAmazonas2016 | Q104: 54.8
A105: 3438 | B105: Ambiental | C105: IV. LINEAMIENTO DE POLITICA: Promover Ciudades y Comunidades Saludables en armonía con su entorno natural. | D105: Porcentaje Municipalidades cuentan con instrumentos de gestión de Residuos Sólidos - RRSS | E105: AGA.35.1 | F105: Sistema de Recojo de RRSS | G105: Amazonas | H105: 2017 | I105: 14.3 | J105: Porcentaje | K105: Instituto Nacional de Estadística e Informática (INEI) - Registro Nacional de Municipalidades (RENAMU) | L105: Instituto Nacional de Estadística e Informática (INEI) - Registro Nacional de Municipalidades (RENAMU) | M105: https://www.inei.gob.pe/media/MenuRecursivo/publicaciones_digitales/Est/Lib1474/index.html | P105: Porcentaje Municipalidades cuentan con instrumentos de gestión de Residuos Sólidos - RRSSSistema de Recojo de RRSSAmazonas2017 | Q105: 14.3
A106: 3439 | B106: Ambiental | C106: IV. LINEAMIENTO DE POLITICA: Promover Ciudades y Comunidades Saludables en armonía con su entorno natural. | D106: Porcentaje Municipalidades cuentan con instrumentos de gestión de Residuos Sólidos - RRSS | E106: AGA.35.1 | F106: Sistema de Recojo de RRSS | G106: Amazonas | H106: 2018 | I106: Sin datos | J106: Porcentaje | K106: Instituto Nacional de Estadística e Informática (INEI) - Registro Nacional de Municipalidades (RENAMU) | L106: Instituto Nacional de Estadística e Informática (INEI) - Registro Nacional de Municipalidades (RENAMU) | M106: https://www.inei.gob.pe/media/MenuRecursivo/publicaciones_digitales/Est/Lib1636/index.html | P106: Porcentaje Municipalidades cuentan con instrumentos de gestión de Residuos Sólidos - RRSSSistema de Recojo de RRSSAmazonas2018 | Q106: Sin datos
A107: 3570 | B107: Ambiental | C107: IV. LINEAMIENTO DE POLITICA: Promover Ciudades y Comunidades Saludables en armonía con su entorno natural. | D107: Porcentaje Municipalidades informan que cuentan con Relleno sanitario o reciclan los RRSS | E107: AGA.35.2. | F107: Municipalidades que Reciclan | G107: Amazonas | H107: 2014 | I107: 20.2 | J107: Porcentaje | K107: Instituto Nacional de Estadística e Informática (INEI) - Registro Nacional de Municipalidades (RENAMU) | L107: Instituto Nacional de Estadística e Informática (INEI) - Registro Nacional de Municipalidades (RENAMU) | M107: https://www.inei.gob.pe/media/MenuRecursivo/publicaciones_digitales/Est/Lib1246/index.html | P107: Porcentaje Municipalidades informan que cuentan con Relleno sanitario o reciclan los RRSSMunicipalidades que ReciclanAmazonas2014 | Q107: 20.2
A108: 3571 | B108: Ambiental | C108: IV. LINEAMIENTO DE POLITICA: Promover Ciudades y Comunidades Saludables en armonía con su entorno natural. | D108: Porcentaje Municipalidades informan que cuentan con Relleno sanitario o reciclan los RRSS | E108: AGA.35.2. | F108: Municipalidades que Reciclan | G108: Amazonas | H108: 2015 | I108: 16.7 | J108: Porcentaje | K108: Instituto Nacional de Estadística e Informática (INEI) - Registro Nacional de Municipalidades (RENAMU) | L108: Instituto Nacional de Estadística e Informática (INEI) - Registro Nacional de Municipalidades (RENAMU) | M108: https://www.inei.gob.pe/media/MenuRecursivo/publicaciones_digitales/Est/Lib1362/index.html | P108: Porcentaje Municipalidades informan que cuentan con Relleno sanitario o reciclan los RRSSMunicipalidades que ReciclanAmazonas2015 | Q108: 16.7
A109: 3572 | B109: Ambiental | C109: IV. LINEAMIENTO DE POLITICA: Promover Ciudades y Comunidades Saludables en armonía con su entorno natural. | D109: Porcentaje Municipalidades informan que cuentan con Relleno sanitario o reciclan los RRSS | E109: AGA.35.2. | F109: Municipalidades que Reciclan | G109: Amazonas | H109: 2016 | I109: 25 | J109: Porcentaje | K109: Instituto Nacional de Estadística e Informática (INEI) - Registro Nacional de Municipalidades (RENAMU) | L109: Instituto Nacional de Estadística e Informática (INEI) - Registro Nacional de Municipalidades (RENAMU) | M109: https://www.inei.gob.pe/media/MenuRecursivo/publicaciones_digitales/Est/Lib1417/index.html | P109: Porcentaje Municipalidades informan que cuentan con Relleno sanitario o reciclan los RRSSMunicipalidades que ReciclanAmazonas2016 | Q109: 25
A110: 3573 | B110: Ambiental | C110: IV. LINEAMIENTO DE POLITICA: Promover Ciudades y Comunidades Saludables en armonía con su entorno natural. | D110: Porcentaje Municipalidades informan que cuentan con Relleno sanitario o reciclan los RRSS | E110: AGA.35.2. | F110: Municipalidades que Reciclan | G110: Amazonas | H110: 2017 | I110: 16.7 | J110: Porcentaje | K110: Instituto Nacional de Estadística e Informática (INEI) - Registro Nacional de Municipalidades (RENAMU) | L110: Instituto Nacional de Estadística e Informática (INEI) - Registro Nacional de Municipalidades (RENAMU) | M110: https://www.inei.gob.pe/media/MenuRecursivo/publicaciones_digitales/Est/Lib1474/index.html | P110: Porcentaje Municipalidades informan que cuentan con Relleno sanitario o reciclan los RRSSMunicipalidades que ReciclanAmazonas2017 | Q110: 16.7
A111: 3574 | B111: Ambiental | C111: IV. LINEAMIENTO DE POLITICA: Promover Ciudades y Comunidades Saludables en armonía con su entorno natural. | D111: Porcentaje Municipalidades informan que cuentan con Relleno sanitario o reciclan los RRSS | E111: AGA.35.2. | F111: Municipalidades que Reciclan | G111: Amazonas | H111: 2018 | I111: Sin datos | J111: Porcentaje | K111: Instituto Nacional de Estadística e Informática (INEI) - Registro Nacional de Municipalidades (RENAMU) | L111: Instituto Nacional de Estadística e Informática (INEI) - Registro Nacional de Municipalidades (RENAMU) | M111: https://www.inei.gob.pe/media/MenuRecursivo/publicaciones_digitales/Est/Lib1636/index.html | P111: Porcentaje Municipalidades informan que cuentan con Relleno sanitario o reciclan los RRSSMunicipalidades que ReciclanAmazonas2018 | Q111: Sin datos
A112: 3713 | B112: Ambiental | C112: IV. LINEAMIENTO DE POLITICA: Promover Ciudades y Comunidades Saludables en armonía con su entorno natural. | D112: Porcentaje Municipalidades informan que cuentan con Relleno sanitario o reciclan los RRSS | E112: AGA.35.2. | F112: Municipalidades tienen Relleno sanitario | G112: Amazonas | H112: 2014 | I112: 25 | J112: Porcentaje | K112: Instituto Nacional de Estadística e Informática (INEI) - Registro Nacional de Municipalidades (RENAMU) | L112: Instituto Nacional de Estadística e Informática (INEI) - Registro Nacional de Municipalidades (RENAMU) | M112: https://www.inei.gob.pe/media/MenuRecursivo/publicaciones_digitales/Est/Lib1246/index.html | P112: Porcentaje Municipalidades informan que cuentan con Relleno sanitario o reciclan los RRSSMunicipalidades tienen Relleno sanitario Amazonas2014 | Q112: 25
A113: 3714 | B113: Ambiental | C113: IV. LINEAMIENTO DE POLITICA: Promover Ciudades y Comunidades Saludables en armonía con su entorno natural. | D113: Porcentaje Municipalidades informan que cuentan con Relleno sanitario o reciclan los RRSS | E113: AGA.35.2. | F113: Municipalidades tienen Relleno sanitario | G113: Amazonas | H113: 2015 | I113: 22.6 | J113: Porcentaje | K113: Instituto Nacional de Estadística e Informática (INEI) - Registro Nacional de Municipalidades (RENAMU) | L113: Instituto Nacional de Estadística e Informática (INEI) - Registro Nacional de Municipalidades (RENAMU) | M113: https://www.inei.gob.pe/media/MenuRecursivo/publicaciones_digitales/Est/Lib1362/index.html | P113: Porcentaje Municipalidades informan que cuentan con Relleno sanitario o reciclan los RRSSMunicipalidades tienen Relleno sanitario Amazonas2015 | Q113: 22.6
A114: 3715 | B114: Ambiental | C114: IV. LINEAMIENTO DE POLITICA: Promover Ciudades y Comunidades Saludables en armonía con su entorno natural. | D114: Porcentaje Municipalidades informan que cuentan con Relleno sanitario o reciclan los RRSS | E114: AGA.35.2. | F114: Municipalidades tienen Relleno sanitario | G114: Amazonas | H114: 2016 | I114: 22.6 | J114: Porcentaje | K114: Instituto Nacional de Estadística e Informática (INEI) - Registro Nacional de Municipalidades (RENAMU) | L114: Instituto Nacional de Estadística e Informática (INEI) - Registro Nacional de Municipalidades (RENAMU) | M114: https://www.inei.gob.pe/media/MenuRecursivo/publicaciones_digitales/Est/Lib1417/index.html | P114: Porcentaje Municipalidades informan que cuentan con Relleno sanitario o reciclan los RRSSMunicipalidades tienen Relleno sanitario Amazonas2016 | Q114: 22.6
A115: 3716 | B115: Ambiental | C115: IV. LINEAMIENTO DE POLITICA: Promover Ciudades y Comunidades Saludables en armonía con su entorno natural. | D115: Porcentaje Municipalidades informan que cuentan con Relleno sanitario o reciclan los RRSS | E115: AGA.35.2. | F115: Municipalidades tienen Relleno sanitario | G115: Amazonas | H115: 2017 | I115: 26.2 | J115: Porcentaje | K115: Instituto Nacional de Estadística e Informática (INEI) - Registro Nacional de Municipalidades (RENAMU) | L115: Instituto Nacional de Estadística e Informática (INEI) - Registro Nacional de Municipalidades (RENAMU) | M115: https://www.inei.gob.pe/media/MenuRecursivo/publicaciones_digitales/Est/Lib1474/index.html | P115: Porcentaje Municipalidades informan que cuentan con Relleno sanitario o reciclan los RRSSMunicipalidades tienen Relleno sanitario Amazonas2017 | Q115: 26.2
A116: 3717 | B116: Ambiental | C116: IV. LINEAMIENTO DE POLITICA: Promover Ciudades y Comunidades Saludables en armonía con su entorno natural. | D116: Porcentaje Municipalidades informan que cuentan con Relleno sanitario o reciclan los RRSS | E116: AGA.35.2. | F116: Municipalidades tienen Relleno sanitario | G116: Amazonas | H116: 2018 | I116: Sin datos | J116: Porcentaje | K116: Instituto Nacional de Estadística e Informática (INEI) - Registro Nacional de Municipalidades (RENAMU) | L116: Instituto Nacional de Estadística e Informática (INEI) - Registro Nacional de Municipalidades (RENAMU) | M116: https://www.inei.gob.pe/media/MenuRecursivo/publicaciones_digitales/Est/Lib1636/index.html | P116: Porcentaje Municipalidades informan que cuentan con Relleno sanitario o reciclan los RRSSMunicipalidades tienen Relleno sanitario Amazonas2018 | Q116: Sin datos
A117: 3855 | B117: Ambiental | C117: IV. LINEAMIENTO DE POLITICA: Promover Ciudades y Comunidades Saludables en armonía con su entorno natural. | D117: Porcentaje Municipalidades informan que disponen de los RRSS inadecuadamente | E117: AGA.35.3. | F117: Municipalidades los RRSS son quemados o incinerados | G117: Amazonas | H117: 2014 | I117: 9.5 | J117: Porcentaje | K117: Instituto Nacional de Estadística e Informática (INEI) - Registro Nacional de Municipalidades (RENAMU) | L117: Instituto Nacional de Estadística e Informática (INEI) - Registro Nacional de Municipalidades (RENAMU) | M117: https://www.inei.gob.pe/media/MenuRecursivo/publicaciones_digitales/Est/Lib1246/index.html | P117: Porcentaje Municipalidades informan que disponen de los RRSS inadecuadamenteMunicipalidades los RRSS son quemados o incineradosAmazonas2014 | Q117: 9.5
A118: 3856 | B118: Ambiental | C118: IV. LINEAMIENTO DE POLITICA: Promover Ciudades y Comunidades Saludables en armonía con su entorno natural. | D118: Porcentaje Municipalidades informan que disponen de los RRSS inadecuadamente | E118: AGA.35.3. | F118: Municipalidades los RRSS son quemados o incinerados | G118: Amazonas | H118: 2015 | I118: 13.1 | J118: Porcentaje | K118: Instituto Nacional de Estadística e Informática (INEI) - Registro Nacional de Municipalidades (RENAMU) | L118: Instituto Nacional de Estadística e Informática (INEI) - Registro Nacional de Municipalidades (RENAMU) | M118: https://www.inei.gob.pe/media/MenuRecursivo/publicaciones_digitales/Est/Lib1362/index.html | P118: Porcentaje Municipalidades informan que disponen de los RRSS inadecuadamenteMunicipalidades los RRSS son quemados o incineradosAmazonas2015 | Q118: 13.1
A119: 3857 | B119: Ambiental | C119: IV. LINEAMIENTO DE POLITICA: Promover Ciudades y Comunidades Saludables en armonía con su entorno natural. | D119: Porcentaje Municipalidades informan que disponen de los RRSS inadecuadamente | E119: AGA.35.3. | F119: Municipalidades los RRSS son quemados o incinerados | G119: Amazonas | H119: 2016 | I119: 10.7 | J119: Porcentaje | K119: Instituto Nacional de Estadística e Informática (INEI) - Registro Nacional de Municipalidades (RENAMU) | L119: Instituto Nacional de Estadística e Informática (INEI) - Registro Nacional de Municipalidades (RENAMU) | M119: https://www.inei.gob.pe/media/MenuRecursivo/publicaciones_digitales/Est/Lib1417/index.html | P119: Porcentaje Municipalidades informan que disponen de los RRSS inadecuadamenteMunicipalidades los RRSS son quemados o incineradosAmazonas2016 | Q119: 10.7
A120: 3858 | B120: Ambiental | C120: IV. LINEAMIENTO DE POLITICA: Promover Ciudades y Comunidades Saludables en armonía con su entorno natural. | D120: Porcentaje Municipalidades informan que disponen de los RRSS inadecuadamente | E120: AGA.35.3. | F120: Municipalidades los RRSS son quemados o incinerados | G120: Amazonas | H120: 2017 | I120: 8.3 | J120: Porcentaje | K120: Instituto Nacional de Estadística e Informática (INEI) - Registro Nacional de Municipalidades (RENAMU) | L120: Instituto Nacional de Estadística e Informática (INEI) - Registro Nacional de Municipalidades (RENAMU) | M120: https://www.inei.gob.pe/media/MenuRecursivo/publicaciones_digitales/Est/Lib1474/index.html | P120: Porcentaje Municipalidades informan que disponen de los RRSS inadecuadamenteMunicipalidades los RRSS son quemados o incineradosAmazonas2017 | Q120: 8.3
A121: 3859 | B121: Ambiental | C121: IV. LINEAMIENTO DE POLITICA: Promover Ciudades y Comunidades Saludables en armonía con su entorno natural. | D121: Porcentaje Municipalidades informan que disponen de los RRSS inadecuadamente | E121: AGA.35.3. | F121: Municipalidades los RRSS son quemados o incinerados | G121: Amazonas | H121: 2018 | I121: Sin datos | J121: Porcentaje | K121: Instituto Nacional de Estadística e Informática (INEI) - Registro Nacional de Municipalidades (RENAMU) | L121: Instituto Nacional de Estadística e Informática (INEI) - Registro Nacional de Municipalidades (RENAMU) | M121: https://www.inei.gob.pe/media/MenuRecursivo/publicaciones_digitales/Est/Lib1636/index.html | P121: Porcentaje Municipalidades informan que disponen de los RRSS inadecuadamenteMunicipalidades los RRSS son quemados o incineradosAmazonas2018 | Q121: Sin datos
A122: 3998 | B122: Ambiental | C122: IV. LINEAMIENTO DE POLITICA: Promover Ciudades y Comunidades Saludables en armonía con su entorno natural. | D122: Porcentaje Municipalidades informan que disponen de los RRSS inadecuadamente | E122: AGA.35.3. | F122: Municipalidades vierten los RRSS a botadero a cielo abierto | G122: Amazonas | H122: 2014 | I122: 61.9 | J122: Porcentaje | K122: Instituto Nacional de Estadística e Informática (INEI) - Registro Nacional de Municipalidades (RENAMU) | L122: Instituto Nacional de Estadística e Informática (INEI) - Registro Nacional de Municipalidades (RENAMU) | M122: https://www.inei.gob.pe/media/MenuRecursivo/publicaciones_digitales/Est/Lib1246/index.html | P122: Porcentaje Municipalidades informan que disponen de los RRSS inadecuadamenteMunicipalidades vierten los RRSS a botadero a cielo abierto Amazonas2014 | Q122: 61.9
A123: 3999 | B123: Ambiental | C123: IV. LINEAMIENTO DE POLITICA: Promover Ciudades y Comunidades Saludables en armonía con su entorno natural. | D123: Porcentaje Municipalidades informan que disponen de los RRSS inadecuadamente | E123: AGA.35.3. | F123: Municipalidades vierten los RRSS a botadero a cielo abierto | G123: Amazonas | H123: 2015 | I123: 71.4 | J123: Porcentaje | K123: Instituto Nacional de Estadística e Informática (INEI) - Registro Nacional de Municipalidades (RENAMU) | L123: Instituto Nacional de Estadística e Informática (INEI) - Registro Nacional de Municipalidades (RENAMU) | M123: https://www.inei.gob.pe/media/MenuRecursivo/publicaciones_digitales/Est/Lib1362/index.html | P123: Porcentaje Municipalidades informan que disponen de los RRSS inadecuadamenteMunicipalidades vierten los RRSS a botadero a cielo abierto Amazonas2015 | Q123: 71.4
A124: 4000 | B124: Ambiental | C124: IV. LINEAMIENTO DE POLITICA: Promover Ciudades y Comunidades Saludables en armonía con su entorno natural. | D124: Porcentaje Municipalidades informan que disponen de los RRSS inadecuadamente | E124: AGA.35.3. | F124: Municipalidades vierten los RRSS a botadero a cielo abierto | G124: Amazonas | H124: 2016 | I124: 75 | J124: Porcentaje | K124: Instituto Nacional de Estadística e Informática (INEI) - Registro Nacional de Municipalidades (RENAMU) | L124: Instituto Nacional de Estadística e Informática (INEI) - Registro Nacional de Municipalidades (RENAMU) | M124: https://www.inei.gob.pe/media/MenuRecursivo/publicaciones_digitales/Est/Lib1417/index.html | P124: Porcentaje Municipalidades informan que disponen de los RRSS inadecuadamenteMunicipalidades vierten los RRSS a botadero a cielo abierto Amazonas2016 | Q124: 75
A125: 4001 | B125: Ambiental | C125: IV. LINEAMIENTO DE POLITICA: Promover Ciudades y Comunidades Saludables en armonía con su entorno natural. | D125: Porcentaje Municipalidades informan que disponen de los RRSS inadecuadamente | E125: AGA.35.3. | F125: Municipalidades vierten los RRSS a botadero a cielo abierto | G125: Amazonas | H125: 2017 | I125: 72.6 | J125: Porcentaje | K125: Instituto Nacional de Estadística e Informática (INEI) - Registro Nacional de Municipalidades (RENAMU) | L125: Instituto Nacional de Estadística e Informática (INEI) - Registro Nacional de Municipalidades (RENAMU) | M125: https://www.inei.gob.pe/media/MenuRecursivo/publicaciones_digitales/Est/Lib1474/index.html | P125: Porcentaje Municipalidades informan que disponen de los RRSS inadecuadamenteMunicipalidades vierten los RRSS a botadero a cielo abierto Amazonas2017 | Q125: 72.6
A126: 4002 | B126: Ambiental | C126: IV. LINEAMIENTO DE POLITICA: Promover Ciudades y Comunidades Saludables en armonía con su entorno natural. | D126: Porcentaje Municipalidades informan que disponen de los RRSS inadecuadamente | E126: AGA.35.3. | F126: Municipalidades vierten los RRSS a botadero a cielo abierto | G126: Amazonas | H126: 2018 | I126: Sin datos | J126: Porcentaje | K126: Instituto Nacional de Estadística e Informática (INEI) - Registro Nacional de Municipalidades (RENAMU) | L126: Instituto Nacional de Estadística e Informática (INEI) - Registro Nacional de Municipalidades (RENAMU) | M126: https://www.inei.gob.pe/media/MenuRecursivo/publicaciones_digitales/Est/Lib1636/index.html | P126: Porcentaje Municipalidades informan que disponen de los RRSS inadecuadamenteMunicipalidades vierten los RRSS a botadero a cielo abierto Amazonas2018 | Q126: Sin datos
A127: 4145 | B127: Ambiental | C127: IV. LINEAMIENTO DE POLITICA: Promover Ciudades y Comunidades Saludables en armonía con su entorno natural. | D127: Presupuesto Ejecutado en Gestión Integral de RRSS (0036) - Soles | E127: AGA.35.6 | F127: Gobierno Locales | G127: Amazonas | H127: 2014 | I127: 3414497 | J127: Soles | K127: Ministerio de Economía y Finanzas (MEF)- Seguimiento de la Ejecución Presupuestal (Consulta amigable) | L127: Portal de Transparencia Económica | M127: http://apps5.mineco.gob.pe/transparencia/Navegador/default.aspx?y=2015&ap=ActProy | P127: Presupuesto Ejecutado en Gestión Integral de RRSS (0036) - SolesGobierno LocalesAmazonas2014 | Q127: 3414497
A128: 4146 | B128: Ambiental | C128: IV. LINEAMIENTO DE POLITICA: Promover Ciudades y Comunidades Saludables en armonía con su entorno natural. | D128: Presupuesto Ejecutado en Gestión Integral de RRSS (0036) - Soles | E128: AGA.35.6 | F128: Gobierno Locales | G128: Amazonas | H128: 2015 | I128: 3252577 | J128: Soles | K128: Ministerio de Economía y Finanzas (MEF)- Seguimiento de la Ejecución Presupuestal (Consulta amigable) | L128: Portal de Transparencia Económica | M128: http://apps5.mineco.gob.pe/transparencia/Navegador/default.aspx?y=2015&ap=ActProy | P128: Presupuesto Ejecutado en Gestión Integral de RRSS (0036) - SolesGobierno LocalesAmazonas2015 | Q128: 3252577
A129: 4147 | B129: Ambiental | C129: IV. LINEAMIENTO DE POLITICA: Promover Ciudades y Comunidades Saludables en armonía con su entorno natural. | D129: Presupuesto Ejecutado en Gestión Integral de RRSS (0036) - Soles | E129: AGA.35.6 | F129: Gobierno Locales | G129: Amazonas | H129: 2016 | I129: 5933734 | J129: Soles | K129: Ministerio de Economía y Finanzas (MEF)- Seguimiento de la Ejecución Presupuestal (Consulta amigable) | L129: Portal de Transparencia Económica | M129: http://apps5.mineco.gob.pe/transparencia/Navegador/default.aspx?y=2015&ap=ActProy | P129: Presupuesto Ejecutado en Gestión Integral de RRSS (0036) - SolesGobierno LocalesAmazonas2016 | Q129: 5933734
A130: 4148 | B130: Ambiental | C130: IV. LINEAMIENTO DE POLITICA: Promover Ciudades y Comunidades Saludables en armonía con su entorno natural. | D130: Presupuesto Ejecutado en Gestión Integral de RRSS (0036) - Soles | E130: AGA.35.6 | F130: Gobierno Locales | G130: Amazonas | H130: 2017 | I130: 6260814 | J130: Soles | K130: Ministerio de Economía y Finanzas (MEF)- Seguimiento de la Ejecución Presupuestal (Consulta amigable) | L130: Portal de Transparencia Económica | M130: http://apps5.mineco.gob.pe/transparencia/Navegador/default.aspx?y=2015&ap=ActProy | P130: Presupuesto Ejecutado en Gestión Integral de RRSS (0036) - SolesGobierno LocalesAmazonas2017 | Q130: 6260814
A131: 4149 | B131: Ambiental | C131: IV. LINEAMIENTO DE POLITICA: Promover Ciudades y Comunidades Saludables en armonía con su entorno natural. | D131: Presupuesto Ejecutado en Gestión Integral de RRSS (0036) - Soles | E131: AGA.35.6 | F131: Gobierno Locales | G131: Amazonas | H131: 2018 | I131: 9379454 | J131: Soles | K131: Ministerio de Economía y Finanzas (MEF)- Seguimiento de la Ejecución Presupuestal (Consulta amigable) | L131: Portal de Transparencia Económica | M131: http://apps5.mineco.gob.pe/transparencia/Navegador/default.aspx?y=2015&ap=ActProy | P131: Presupuesto Ejecutado en Gestión Integral de RRSS (0036) - SolesGobierno LocalesAmazonas2018 | Q131: 9379454
A132: 4274 | B132: Ambiental | C132: IV. LINEAMIENTO DE POLITICA: Promover Ciudades y Comunidades Saludables en armonía con su entorno natural. | D132: Presupuesto Ejecutado en Gestión Integral de RRSS (0036) - Soles | E132: AGA.35.6 | F132: Gobierno Nacional | G132: Amazonas | H132: 2014 | I132: 1569502 | J132: Soles | K132: Ministerio de Economía y Finanzas (MEF)- Seguimiento de la Ejecución Presupuestal (Consulta amigable) | L132: Portal de Transparencia Económica | M132: http://apps5.mineco.gob.pe/transparencia/Navegador/default.aspx?y=2015&ap=ActProy | P132: Presupuesto Ejecutado en Gestión Integral de RRSS (0036) - SolesGobierno NacionalAmazonas2014 | Q132: 1569502
A133: 4275 | B133: Ambiental | C133: IV. LINEAMIENTO DE POLITICA: Promover Ciudades y Comunidades Saludables en armonía con su entorno natural. | D133: Presupuesto Ejecutado en Gestión Integral de RRSS (0036) - Soles | E133: AGA.35.6 | F133: Gobierno Nacional | G133: Amazonas | H133: 2015 | I133: 348191 | J133: Soles | K133: Ministerio de Economía y Finanzas (MEF)- Seguimiento de la Ejecución Presupuestal (Consulta amigable) | L133: Portal de Transparencia Económica | M133: http://apps5.mineco.gob.pe/transparencia/Navegador/default.aspx?y=2015&ap=ActProy | P133: Presupuesto Ejecutado en Gestión Integral de RRSS (0036) - SolesGobierno NacionalAmazonas2015 | Q133: 348191
A134: 4276 | B134: Ambiental | C134: IV. LINEAMIENTO DE POLITICA: Promover Ciudades y Comunidades Saludables en armonía con su entorno natural. | D134: Presupuesto Ejecutado en Gestión Integral de RRSS (0036) - Soles | E134: AGA.35.6 | F134: Gobierno Nacional | G134: Amazonas | H134: 2016 | I134: 2158729 | J134: Soles | K134: Ministerio de Economía y Finanzas (MEF)- Seguimiento de la Ejecución Presupuestal (Consulta amigable) | L134: Portal de Transparencia Económica | M134: http://apps5.mineco.gob.pe/transparencia/Navegador/default.aspx?y=2015&ap=ActProy | P134: Presupuesto Ejecutado en Gestión Integral de RRSS (0036) - SolesGobierno NacionalAmazonas2016 | Q134: 2158729
A135: 4277 | B135: Ambiental | C135: IV. LINEAMIENTO DE POLITICA: Promover Ciudades y Comunidades Saludables en armonía con su entorno natural. | D135: Presupuesto Ejecutado en Gestión Integral de RRSS (0036) - Soles | E135: AGA.35.6 | F135: Gobierno Nacional | G135: Amazonas | H135: 2017 | I135: 2529282 | J135: Soles | K135: Ministerio de Economía y Finanzas (MEF)- Seguimiento de la Ejecución Presupuestal (Consulta amigable) | L135: Portal de Transparencia Económica | M135: http://apps5.mineco.gob.pe/transparencia/Navegador/default.aspx?y=2015&ap=ActProy | P135: Presupuesto Ejecutado en Gestión Integral de RRSS (0036) - SolesGobierno NacionalAmazonas2017 | Q135: 2529282
A136: 4278 | B136: Ambiental | C136: IV. LINEAMIENTO DE POLITICA: Promover Ciudades y Comunidades Saludables en armonía con su entorno natural. | D136: Presupuesto Ejecutado en Gestión Integral de RRSS (0036) - Soles | E136: AGA.35.6 | F136: Gobierno Nacional | G136: Amazonas | H136: 2018 | I136: 1592901 | J136: Soles | K136: Ministerio de Economía y Finanzas (MEF)- Seguimiento de la Ejecución Presupuestal (Consulta amigable) | L136: Portal de Transparencia Económica | M136: http://apps5.mineco.gob.pe/transparencia/Navegador/default.aspx?y=2015&ap=ActProy | P136: Presupuesto Ejecutado en Gestión Integral de RRSS (0036) - SolesGobierno NacionalAmazonas2018 | Q136: 1592901
A137: 4399 | B137: Ambiental | C137: IV. LINEAMIENTO DE POLITICA: Promover Ciudades y Comunidades Saludables en armonía con su entorno natural. | D137: Presupuesto Ejecutado en Gestión Integral de RRSS (0036) - Soles | E137: AGA.35.6 | F137: Gobierno Regional | G137: Amazonas | H137: 2015 | I137: 1284140 | J137: Soles | K137: Ministerio de Economía y Finanzas (MEF)- Seguimiento de la Ejecución Presupuestal (Consulta amigable) | L137: Portal de Transparencia Económica | M137: http://apps5.mineco.gob.pe/transparencia/Navegador/default.aspx?y=2015&ap=ActProy | N137: S/D en el año 2014 a nivel Regional | P137: Presupuesto Ejecutado en Gestión Integral de RRSS (0036) - SolesGobierno RegionalAmazonas2015 | Q137: 1284140
A138: 4400 | B138: Ambiental | C138: IV. LINEAMIENTO DE POLITICA: Promover Ciudades y Comunidades Saludables en armonía con su entorno natural. | D138: Presupuesto Ejecutado en Gestión Integral de RRSS (0036) - Soles | E138: AGA.35.6 | F138: Gobierno Regional | G138: Amazonas | H138: 2016 | I138: Sin datos | J138: Soles | K138: Ministerio de Economía y Finanzas (MEF)- Seguimiento de la Ejecución Presupuestal (Consulta amigable) | L138: Portal de Transparencia Económica | M138: http://apps5.mineco.gob.pe/transparencia/Navegador/default.aspx?y=2015&ap=ActProy | N138: S/D en el año 2014 a nivel Regional | P138: Presupuesto Ejecutado en Gestión Integral de RRSS (0036) - SolesGobierno RegionalAmazonas2016 | Q138: Sin datos
A139: 4401 | B139: Ambiental | C139: IV. LINEAMIENTO DE POLITICA: Promover Ciudades y Comunidades Saludables en armonía con su entorno natural. | D139: Presupuesto Ejecutado en Gestión Integral de RRSS (0036) - Soles | E139: AGA.35.6 | F139: Gobierno Regional | G139: Amazonas | H139: 2017 | I139: 2997301 | J139: Soles | K139: Ministerio de Economía y Finanzas (MEF)- Seguimiento de la Ejecución Presupuestal (Consulta amigable) | L139: Portal de Transparencia Económica | M139: http://apps5.mineco.gob.pe/transparencia/Navegador/default.aspx?y=2015&ap=ActProy | N139: S/D en el año 2014 a nivel Regional | P139: Presupuesto Ejecutado en Gestión Integral de RRSS (0036) - SolesGobierno RegionalAmazonas2017 | Q139: 2997301
A140: 4402 | B140: Ambiental | C140: IV. LINEAMIENTO DE POLITICA: Promover Ciudades y Comunidades Saludables en armonía con su entorno natural. | D140: Presupuesto Ejecutado en Gestión Integral de RRSS (0036) - Soles | E140: AGA.35.6 | F140: Gobierno Regional | G140: Amazonas | H140: 2018 | I140: 19509421 | J140: Soles | K140: Ministerio de Economía y Finanzas (MEF)- Seguimiento de la Ejecución Presupuestal (Consulta amigable) | L140: Portal de Transparencia Económica | M140: http://apps5.mineco.gob.pe/transparencia/Navegador/default.aspx?y=2015&ap=ActProy | N140: S/D en el año 2014 a nivel Regional | P140: Presupuesto Ejecutado en Gestión Integral de RRSS (0036) - SolesGobierno RegionalAmazonas2018 | Q140: 19509421
A141: 5725 | B141: Ambiental | C141: I. LINEAMIENTO DE POLITICA Mejorar la Gestión Ambiental. | D141: Monto del Presupuesto público ejecutado en la función ambiental (instancias, planes, programas y proyectos de gestión ambiental en los tres niveles de gobierno) - Millones de Soles | E141: AGA.1.6 | F141: Gobierno Locales | G141: Amazonas | H141: 2014 | I141: 7366917 | J141: Soles | K141: Ministerio de Economía y Finanzas (MEF)- Seguimiento de la Ejecución Presupuestal (Consulta amigable) | L141: Portal de Transparencia Económica | M141: http://apps5.mineco.gob.pe/transparencia/Navegador/default.aspx?y=2015&ap=ActProy | P141: Monto del Presupuesto público ejecutado en la función ambiental (instancias, planes, programas y proyectos de gestión ambiental en los tres niveles de gobierno) - Millones de SolesGobierno LocalesAmazonas2014 | Q141: 7366917
A142: 5726 | B142: Ambiental | C142: I. LINEAMIENTO DE POLITICA Mejorar la Gestión Ambiental. | D142: Monto del Presupuesto público ejecutado en la función ambiental (instancias, planes, programas y proyectos de gestión ambiental en los tres niveles de gobierno) - Millones de Soles | E142: AGA.1.6 | F142: Gobierno Locales | G142: Amazonas | H142: 2015 | I142: 5727320 | J142: Soles | K142: Ministerio de Economía y Finanzas (MEF)- Seguimiento de la Ejecución Presupuestal (Consulta amigable) | L142: Portal de Transparencia Económica | M142: http://apps5.mineco.gob.pe/transparencia/Navegador/default.aspx?y=2015&ap=ActProy | P142: Monto del Presupuesto público ejecutado en la función ambiental (instancias, planes, programas y proyectos de gestión ambiental en los tres niveles de gobierno) - Millones de SolesGobierno LocalesAmazonas2015 | Q142: 5727320
A143: 5727 | B143: Ambiental | C143: I. LINEAMIENTO DE POLITICA Mejorar la Gestión Ambiental. | D143: Monto del Presupuesto público ejecutado en la función ambiental (instancias, planes, programas y proyectos de gestión ambiental en los tres niveles de gobierno) - Millones de Soles | E143: AGA.1.6 | F143: Gobierno Locales | G143: Amazonas | H143: 2016 | I143: 7911974 | J143: Soles | K143: Ministerio de Economía y Finanzas (MEF)- Seguimiento de la Ejecución Presupuestal (Consulta amigable) | L143: Portal de Transparencia Económica | M143: http://apps5.mineco.gob.pe/transparencia/Navegador/default.aspx?y=2015&ap=ActProy | P143: Monto del Presupuesto público ejecutado en la función ambiental (instancias, planes, programas y proyectos de gestión ambiental en los tres niveles de gobierno) - Millones de SolesGobierno LocalesAmazonas2016 | Q143: 7911974
A144: 5728 | B144: Ambiental | C144: I. LINEAMIENTO DE POLITICA Mejorar la Gestión Ambiental. | D144: Monto del Presupuesto público ejecutado en la función ambiental (instancias, planes, programas y proyectos de gestión ambiental en los tres niveles de gobierno) - Millones de Soles | E144: AGA.1.6 | F144: Gobierno Locales | G144: Amazonas | H144: 2017 | I144: 8853327 | J144: Soles | K144: Ministerio de Economía y Finanzas (MEF)- Seguimiento de la Ejecución Presupuestal (Consulta amigable) | L144: Portal de Transparencia Económica | M144: http://apps5.mineco.gob.pe/transparencia/Navegador/default.aspx?y=2015&ap=ActProy | P144: Monto del Presupuesto público ejecutado en la función ambiental (instancias, planes, programas y proyectos de gestión ambiental en los tres niveles de gobierno) - Millones de SolesGobierno LocalesAmazonas2017 | Q144: 8853327
A145: 5729 | B145: Ambiental | C145: I. LINEAMIENTO DE POLITICA Mejorar la Gestión Ambiental. | D145: Monto del Presupuesto público ejecutado en la función ambiental (instancias, planes, programas y proyectos de gestión ambiental en los tres niveles de gobierno) - Millones de Soles | E145: AGA.1.6 | F145: Gobierno Locales | G145: Amazonas | H145: 2018 | I145: 12153961 | J145: Soles | K145: Ministerio de Economía y Finanzas (MEF)- Seguimiento de la Ejecución Presupuestal (Consulta amigable) | L145: Portal de Transparencia Económica | M145: http://apps5.mineco.gob.pe/transparencia/Navegador/default.aspx?y=2015&ap=ActProy | P145: Monto del Presupuesto público ejecutado en la función ambiental (instancias, planes, programas y proyectos de gestión ambiental en los tres niveles de gobierno) - Millones de SolesGobierno LocalesAmazonas2018 | Q145: 12153961
A146: 5850 | B146: Ambiental | C146: I. LINEAMIENTO DE POLITICA Mejorar la Gestión Ambiental. | D146: Monto del Presupuesto público ejecutado en la función ambiental (instancias, planes, programas y proyectos de gestión ambiental en los tres niveles de gobierno) - Millones de Soles | E146: AGA.1.6 | F146: Gobierno Nacional | G146: Amazonas | H146: 2014 | I146: 3436556 | J146: Soles | K146: Ministerio de Economía y Finanzas (MEF)- Seguimiento de la Ejecución Presupuestal (Consulta amigable) | L146: Portal de Transparencia Económica | M146: http://apps5.mineco.gob.pe/transparencia/Navegador/default.aspx?y=2015&ap=ActProy | P146: Monto del Presupuesto público ejecutado en la función ambiental (instancias, planes, programas y proyectos de gestión ambiental en los tres niveles de gobierno) - Millones de SolesGobierno NacionalAmazonas2014 | Q146: 3436556
A147: 5851 | B147: Ambiental | C147: I. LINEAMIENTO DE POLITICA Mejorar la Gestión Ambiental. | D147: Monto del Presupuesto público ejecutado en la función ambiental (instancias, planes, programas y proyectos de gestión ambiental en los tres niveles de gobierno) - Millones de Soles | E147: AGA.1.6 | F147: Gobierno Nacional | G147: Amazonas | H147: 2015 | I147: 2706778 | J147: Soles | K147: Ministerio de Economía y Finanzas (MEF)- Seguimiento de la Ejecución Presupuestal (Consulta amigable) | L147: Portal de Transparencia Económica | M147: http://apps5.mineco.gob.pe/transparencia/Navegador/default.aspx?y=2015&ap=ActProy | P147: Monto del Presupuesto público ejecutado en la función ambiental (instancias, planes, programas y proyectos de gestión ambiental en los tres niveles de gobierno) - Millones de SolesGobierno NacionalAmazonas2015 | Q147: 2706778
A148: 5852 | B148: Ambiental | C148: I. LINEAMIENTO DE POLITICA Mejorar la Gestión Ambiental. | D148: Monto del Presupuesto público ejecutado en la función ambiental (instancias, planes, programas y proyectos de gestión ambiental en los tres niveles de gobierno) - Millones de Soles | E148: AGA.1.6 | F148: Gobierno Nacional | G148: Amazonas | H148: 2016 | I148: 4528430 | J148: Soles | K148: Ministerio de Economía y Finanzas (MEF)- Seguimiento de la Ejecución Presupuestal (Consulta amigable) | L148: Portal de Transparencia Económica | M148: http://apps5.mineco.gob.pe/transparencia/Navegador/default.aspx?y=2015&ap=ActProy | P148: Monto del Presupuesto público ejecutado en la función ambiental (instancias, planes, programas y proyectos de gestión ambiental en los tres niveles de gobierno) - Millones de SolesGobierno NacionalAmazonas2016 | Q148: 4528430
